Local authority department which incurred the expenditure,Service Division,Cost Centre,Summary of the Purpose of Expenditure,Expense Type,Expense Code,Detailed Expense Type,Date of Transaction,Transaction Number,Beneficiary,Merchant Category Number,Merchant Category,Gross Amount,VAT,Net Amount
Children and Young Peoples Services,Head of Education and Skills,071801,Selby Cottage Childcare Centre,Supplies and Services,304259,Equipment and Materials,01-May-2018,000007308714883,ITUNES.COM/BILL,5735,Equipment-purchase and rental,0.79,0.00,0.79
Regeneration and Local Services,Culture & Sport,054813,Gala Theatre - Technical,Supplies and Services,304259,Equipment and Materials,01-May-2018,000007308715233,VERSANDHANDEL THOMANN,5733,Equipment-purchase and rental,3.06,0.00,3.06
Adult and Health Services,Head of Adults,055202,Support and Recovery,Supplies and Services,312009,Newspapers books and periodicals E312,01-May-2018,000007308715551,Amazon UK Marketplace,5942,Newspapers books and periodicals,12.15,0.00,12.15
Children and Young Peoples Services,Head of Education and Skills,071801,Selby Cottage Childcare Centre,Supplies and Services,304259,Equipment and Materials,01-May-2018,000007312556643,WILKO RETAIL LIMIT,5722,Equipment-purchase and rental,8.00,0.00,8.00
Children and Young Peoples Services,Head of Education and Skills,071801,Selby Cottage Childcare Centre,Supplies and Services,324117,Provisions E324,01-May-2018,000007312556647,ASDA GROCERIES ONLINE,5411,Catering costs - provisions,144.67,0.00,144.67
Regeneration and Local Services,Economic Development and Housing,030705,Visit County Durham,Supplies and Services,304999,Equipment and Materials,01-May-2018,000007312556665,MAILCHIMP MONTHLY,5968,Misc equipment tools and materials,8.83,0.00,8.83
Regeneration and Local Services,Economic Development and Housing,030544,Rural Employability - Client Engagement,Transport,230031,Contract Hire,01-May-2018,000007312556701,ARRIVA NORTH EAST,4131,Pupils-transport to play fields etc,28.00,0.00,28.00
Regeneration and Local Services,Direct Services,021242,Catering - County Hall,Supplies and Services,324117,Provisions E324,01-May-2018,000007312556703,JR HOLLAND FOODSERVICE,5422,Catering costs - provisions,66.10,0.00,66.10
Regeneration and Local Services,Direct Services,021242,Catering - County Hall,Supplies and Services,324117,Provisions E324,01-May-2018,000007312556705,JR HOLLAND FOODSERVICE,5422,Catering costs - provisions,5.28,0.00,5.28
Regeneration and Local Services,Economic Development and Housing,030544,Rural Employability - Client Engagement,Supplies and Services,304259,Equipment and Materials,01-May-2018,000007312556709,SCREWFIX,5211,Equipment-purchase and rental,49.99,0.00,49.99
Regeneration and Local Services,Culture & Sport,054812,Gala Theatre - Catering etc,Supplies and Services,324117,Provisions E324,01-May-2018,000007312556721,JR HOLLAND FOODSERVICE,5422,Catering costs - provisions,42.22,0.00,42.22
Regeneration and Local Services,Direct Services,021242,Catering - County Hall,Supplies and Services,324117,Provisions E324,01-May-2018,000007312556735,LIDL UK DURHAM,5411,Catering costs - provisions,4.08,0.00,4.08
Children and Young Peoples Services,Head of Childrens Social Care,085333,Coxhoe Satelite Home,Supplies and Services,344033,Telephones,01-May-2018,000007312556745,ORANGE HOME,4812,Telephones general-all costs,35.75,0.00,35.75
Regeneration and Local Services,Economic Development and Housing,031576,B& B - Temp Accom,Supplies and Services,364320,Grants to Voluntary Organisations,01-May-2018,000007312556759,HOTEL 52,7011,Accommodation assistance,60.00,10.00,50.00
Regeneration and Local Services,Economic Development and Housing,030749,Employability - Youth Contract,Transport,235057,Public Transport,01-May-2018,000007312556769,GO NORTH EAST LIMITED,4131,Staff travelling,6.50,0.00,6.50
Children and Young Peoples Services,Head of Childrens Social Care,085332,Middlestone Moor CU,Supplies and Services,328041,Clothing uniforms and laundry E328,01-May-2018,000007312556781,ARGOS RETAIL GROUP,5310,Clothing uniforms and laundry,12.99,0.00,12.99
Children and Young Peoples Services,"Head of Early Help, Inclusion and Vulnerable Children",071445,Chester le Street One Point Hub,Supplies and Services,308011,Furniture,01-May-2018,000007312556811,EDS BEDS LTD,5712,Furniture repair and replacement,114.00,0.00,114.00
Children and Young Peoples Services,"Head of Early Help, Inclusion and Vulnerable Children",085957,Secure Management,Supplies and Services,304245,Equipment and Materials,01-May-2018,000007312556817,Amazon UK Marketplace,5942,Materials,37.96,0.00,37.96
Children and Young Peoples Services,"Head of Early Help, Inclusion and Vulnerable Children",085957,Secure Management,Supplies and Services,384999,Miscellaneous Expenses,01-May-2018,000007312556823,BARRINGTON INTERNATION,5734,Other expenses,846.60,0.00,846.60
Children and Young Peoples Services,"Head of Early Help, Inclusion and Vulnerable Children",085954,Walworth,Supplies and Services,328041,Clothing uniforms and laundry E328,01-May-2018,000007312556825,M and M Direct Ltd,5941,Clothing uniforms and laundry,34.99,0.00,34.99
Children and Young Peoples Services,"Head of Early Help, Inclusion and Vulnerable Children",085956,Lumley,Supplies and Services,312011,Newspapers books and periodicals E312,01-May-2018,000007312556827,Amazon UK Marketplace,5942,Books-school library,7.92,0.00,7.92
Children and Young Peoples Services,"Head of Early Help, Inclusion and Vulnerable Children",085954,Walworth,Supplies and Services,328041,Clothing uniforms and laundry E328,01-May-2018,000007312556829,WWW.ASOS.COM,5651,Clothing uniforms and laundry,74.50,0.00,74.50
Children and Young Peoples Services,"Head of Early Help, Inclusion and Vulnerable Children",085962,Durham,Supplies and Services,324117,Provisions E324,01-May-2018,000007312556831,TESCO STORES 6329,5411,Catering costs - provisions,75.51,0.00,75.51
Regeneration and Local Services,Spatial Policy Planning Assets & Environment,031200,North Pennines Core,Supplies and Services,348037,Subsistence E348,01-May-2018,000007312556837,CAFE VISITORS CENTRE,5813,Subsistence,9.60,0.00,9.60
Regeneration and Local Services,Spatial Policy Planning Assets & Environment,031200,North Pennines Core,Supplies and Services,352001,Conference Expenses,01-May-2018,000007312556839,YE OLDE FIGHTING COCKS,7011,Conferencesseminars fees etc,7.95,0.00,7.95
Regeneration and Local Services,Culture & Sport,054815,Gala Theatre Stage School,Supplies and Services,324117,Provisions E324,01-May-2018,000007312556847,SAINSBURYS SACAT 0776,5411,Catering costs - provisions,35.62,0.00,35.62
Children and Young Peoples Services,Head of Childrens Social Care,085332,Middlestone Moor CU,Supplies and Services,324117,Provisions E324,01-May-2018,000007312556851,SAINSBURYS 2199,5411,Catering costs - provisions,7.35,0.00,7.35
Children and Young Peoples Services,Head of Childrens Social Care,085332,Middlestone Moor CU,Supplies and Services,324117,Provisions E324,01-May-2018,000007312556853,HOME BARGAINS,5251,Catering costs - provisions,48.54,8.09,40.45
Children and Young Peoples Services,Head of Childrens Social Care,085332,Middlestone Moor CU,Premises,145023,Cleaning and Domestic Supplies,01-May-2018,000007312556853 - 1,HOME BARGAINS,5251,Cleaning and domestic materials,22.43,,22.43
Children and Young Peoples Services,Head of Childrens Social Care,085332,Middlestone Moor CU,Supplies and Services,324117,Provisions E324,01-May-2018,000007312556855,TESCO STORES 2371,5411,Catering costs - provisions,204.17,0.00,204.17
Children and Young Peoples Services,"Head of Early Help, Inclusion and Vulnerable Children",071443,Stanley One Point Hub,Supplies and Services,304259,Equipment and Materials,01-May-2018,000007312556887,WWW.DURHAM.GOV.UK,9399,Equipment-purchase and rental,12.00,0.00,12.00
Resources,Finance & Transactional Services,065176,Quality/Subsidy/Appeals/Training/Support,Supplies and Services,338048,Services,01-May-2018,000007312556899,HMCOURTS-SERVICE.G,9222,Court costs 338048,"5,438.00",0.00,5438.00
Regeneration and Local Services,Economic Development and Housing,030749,Employability - Youth Contract,Transport,235057,Public Transport,01-May-2018,000007312556901,ARRIVA NORTH EAST,4131,Staff travelling,5.00,0.00,5.00
Adult and Health Services,Head of Adults,055643,Hawthorn House LD Respite Unit,Supplies and Services,324117,Provisions E324,01-May-2018,000007312556909,JR HOLLAND FOODSERVICE,5422,Catering costs - provisions,30.37,0.00,30.37
Adult and Health Services,Head of Adults,055643,Hawthorn House LD Respite Unit,Supplies and Services,324117,Provisions E324,01-May-2018,000007312556911,JR HOLLAND FOODSERVICE,5422,Catering costs - provisions,21.60,0.00,21.60
Adult and Health Services,Head of Adults,055643,Hawthorn House LD Respite Unit,Supplies and Services,324117,Provisions E324,01-May-2018,000007312556913,JR HOLLAND FOODSERVICE,5422,Catering costs - provisions,5.31,0.00,5.31
Children and Young Peoples Services,Head of Childrens Social Care,085380,Operations Manager Adoption & Fostering,Supplies and Services,324117,Provisions E324,01-May-2018,000007312556921,ASDA STORES,5411,Catering costs - provisions,8.29,0.00,8.29
Children and Young Peoples Services,"Head of Early Help, Inclusion and Vulnerable Children",074000,TTF-Attachment and Results,Supplies and Services,308011,Furniture,01-May-2018,000007312556937,MAGUIRES,5713,Furniture repair and replacement,150.00,0.00,150.00
Children and Young Peoples Services,"Head of Early Help, Inclusion and Vulnerable Children",074000,TTF-Attachment and Results,Supplies and Services,304259,Equipment and Materials,01-May-2018,000007312556939,WILKO.COM,5722,Equipment-purchase and rental,77.00,0.00,77.00
Children and Young Peoples Services,"Head of Early Help, Inclusion and Vulnerable Children",074000,TTF-Attachment and Results,Supplies and Services,324117,Provisions E324,01-May-2018,000007312556941,ASDA GEORGE COM LEEDS,5411,Catering costs - provisions,69.91,11.65,58.26
Resources,Legal & Democratic Services,067910,Democratic Representation,Supplies and Services,372009,Subscriptions E372,01-May-2018,000007312556949,WWW.ICO.GOV.UK,9399,Subscriptions 372009,35.00,0.00,35.00
Regeneration and Local Services,Culture & Sport,026591,Hardwick Park,Supplies and Services,332047,Printing Stationery and Gen Off Exps,01-May-2018,000007312556955,Amazon UK Marketplace,5942,Stationery,12.90,0.00,12.90
Regeneration and Local Services,Culture & Sport,026591,Hardwick Park,Supplies and Services,332047,Printing Stationery and Gen Off Exps,01-May-2018,000007312556957,Amazon UK Marketplace,5942,Stationery,38.99,0.00,38.99
Regeneration and Local Services,Culture & Sport,026591,Hardwick Park,Supplies and Services,304245,Equipment and Materials,01-May-2018,000007312556959,Amazon UK Marketplace,5942,Materials,25.47,0.00,25.47
Regeneration and Local Services,Culture & Sport,026591,Hardwick Park,Supplies and Services,384999,Miscellaneous Expenses,01-May-2018,000007312556961,BAKER ROSS LTD,5970,Other expenses,495.08,82.51,412.57
Regeneration and Local Services,Culture & Sport,026591,Hardwick Park,Supplies and Services,384999,Miscellaneous Expenses,01-May-2018,000007312556963,BAKER ROSS LTD,5970,Other expenses,70.60,11.77,58.83
Regeneration and Local Services,Culture & Sport,026591,Hardwick Park,Supplies and Services,332047,Printing Stationery and Gen Off Exps,01-May-2018,000007312556965,WWW LITTLECRAFTYBUGS C,5970,Stationery,35.34,5.89,29.45
Regeneration and Local Services,Culture & Sport,026591,Hardwick Park,Supplies and Services,332047,Printing Stationery and Gen Off Exps,01-May-2018,000007312556965 - 1,WWW LITTLECRAFTYBUGS C,5970,Stationery,5.00,,5.00
Children and Young Peoples Services,Head of Childrens Social Care,085333,Coxhoe Satelite Home,Supplies and Services,324117,Provisions E324,01-May-2018,000007312556971,TESCO STORES 2371,5411,Catering costs - provisions,41.01,0.00,41.01
Children and Young Peoples Services,Head of Childrens Social Care,085333,Coxhoe Satelite Home,Supplies and Services,324117,Provisions E324,01-May-2018,000007312556973,TESCO STORES 2371,5411,Catering costs - provisions,8.50,0.00,8.50
Adult and Health Services,Head of Adults,055309,Peterlee Pathways,Supplies and Services,328041,Clothing uniforms and laundry E328,01-May-2018,000007312557047,ARGOS LTD,5310,Clothing uniforms and laundry,43.98,0.00,43.98
Transformation and Partnerships,Partnerships & Community Engagement Div.,060472,Syrian Vulnerable Persons Scheme,Supplies and Services,384073,Miscellaneous Expenses,01-May-2018,000007312557063,HOME BARGAINS SPENNYMO,5251,Catering - meetings,1.98,0.33,1.65
Transformation and Partnerships,Partnerships & Community Engagement Div.,060472,Syrian Vulnerable Persons Scheme,Supplies and Services,384073,Miscellaneous Expenses,01-May-2018,000007312557063 - 1,HOME BARGAINS SPENNYMO,5251,Catering - meetings,2.98,,2.98
Children and Young Peoples Services,Head of Childrens Social Care,085801,CDYOS - Support,Supplies and Services,304403,Equipment and Materials,01-May-2018,000007312557069,BEAMISH MUSEUM LTD,5947,Other consumables,12.00,0.00,12.00
Adult and Health Services,Head of Adults,052753,Social Care Direct,Supplies and Services,384999,Miscellaneous Expenses,01-May-2018,000007317464981,IVOJO MULTIMEDIA LIMIT,5046,Other expenses,88.80,14.80,74.00
Regeneration and Local Services,Economic Development and Housing,031576,B& B - Temp Accom,Supplies and Services,364320,Grants to Voluntary Organisations,01-May-2018,000007317464983,PREMIER INN44023785,5812,Accommodation assistance,97.00,16.17,80.83
Regeneration and Local Services,Culture & Sport,011217,Commercial Management,Third Party Payments 4THIRD,430100,Rendered by Private Contractors,01-May-2018,000007317465091,CAMPAIGNMONITOR,7399,Payments to sub-contractors,368.12,0.00,368.12
Children and Young Peoples Services,"Head of Early Help, Inclusion and Vulnerable Children",085955,Auckland,Supplies and Services,328041,Clothing uniforms and laundry E328,01-May-2018,000007317465129,WWW.TOPSHOP.COM,5691,Clothing uniforms and laundry,49.95,0.00,49.95
Children and Young Peoples Services,"Head of Early Help, Inclusion and Vulnerable Children",085956,Lumley,Supplies and Services,328041,Clothing uniforms and laundry E328,01-May-2018,000007317465131,WWW.TOPSHOP.COM,5691,Clothing uniforms and laundry,12.95,0.00,12.95
Regeneration and Local Services,Culture & Sport,011060,Hardwick Park Catering,Supplies and Services,324117,Provisions E324,01-May-2018,000007317465149,BATLEYS PERTH,5300,Catering costs - provisions,41.04,6.84,34.20
Regeneration and Local Services,Culture & Sport,011060,Hardwick Park Catering,Supplies and Services,324117,Provisions E324,01-May-2018,000007317465149 - 1,BATLEYS PERTH,5300,Catering costs - provisions,128.23,,128.23
Regeneration and Local Services,Direct Services,021234,Catering - Locomotion,Supplies and Services,324117,Provisions E324,01-May-2018,000007317465183,BATLEYS PERTH,5300,Catering costs - provisions,237.06,39.51,197.55
Regeneration and Local Services,Direct Services,021234,Catering - Locomotion,Supplies and Services,324117,Provisions E324,01-May-2018,000007317465183 - 1,BATLEYS PERTH,5300,Catering costs - provisions,102.71,,102.71
Regeneration and Local Services,Culture & Sport,054235,Bishop Auckland Town Hall Cafe,Supplies and Services,324117,Provisions E324,01-May-2018,000007317465275,BATLEYS PERTH,5300,Catering costs - provisions,27.03,0.00,27.03
Regeneration and Local Services,Direct Services,021324,Catering - Meadowfield,Supplies and Services,324117,Provisions E324,01-May-2018,000007317465279,BATLEYS PERTH,5300,Catering costs - provisions,71.46,11.91,59.55
Regeneration and Local Services,Direct Services,021324,Catering - Meadowfield,Supplies and Services,324117,Provisions E324,01-May-2018,000007317465279 - 1,BATLEYS PERTH,5300,Catering costs - provisions,106.13,,106.13
Regeneration and Local Services,Economic Development and Housing,030705,Visit County Durham,Supplies and Services,304999,Equipment and Materials,02-May-2018,000007312556667,MAILCHIMP MONTHLY,5968,Misc equipment tools and materials,0.24,0.00,0.24
Regeneration and Local Services,Economic Development and Housing,030699,Business Growth and Innovation General,Supplies and Services,312011,Newspapers books and periodicals E312,02-May-2018,000007317464995,FASTHOSTS INTERNET,4816,Books-school library,59.99,10.00,49.99
Regeneration and Local Services,Culture & Sport,054731,Killhope Lead Mining Centre,Supplies and Services,304259,Equipment and Materials,02-May-2018,000007317465013,PAYPAL FULLBORE,5945,Equipment-purchase and rental,25.45,0.00,25.45
Regeneration and Local Services,Direct Services,021242,Catering - County Hall,Supplies and Services,324117,Provisions E324,02-May-2018,000007317465015,WWW.ADELIEFOODS.CO.UK,5499,Catering costs - provisions,604.04,0.00,604.04
Regeneration and Local Services,Direct Services,021242,Catering - County Hall,Supplies and Services,324117,Provisions E324,02-May-2018,000007317465017,WWW.ADELIEFOODS.CO.UK,5499,Catering costs - provisions,340.68,0.00,340.68
Regeneration and Local Services,Direct Services,021242,Catering - County Hall,Supplies and Services,324117,Provisions E324,02-May-2018,000007317465019,WWW.ADELIEFOODS.CO.UK,5499,Catering costs - provisions,289.16,0.00,289.16
Regeneration and Local Services,Direct Services,021242,Catering - County Hall,Supplies and Services,324117,Provisions E324,02-May-2018,000007317465021,WWW.ADELIEFOODS.CO.UK,5499,Catering costs - provisions,277.43,0.00,277.43
Regeneration and Local Services,Direct Services,021242,Catering - County Hall,Supplies and Services,324117,Provisions E324,02-May-2018,000007317465023,WWW.ADELIEFOODS.CO.UK,5499,Catering costs - provisions,247.10,0.00,247.10
Regeneration and Local Services,Direct Services,021242,Catering - County Hall,Supplies and Services,324117,Provisions E324,02-May-2018,000007317465025,WWW.ADELIEFOODS.CO.UK,5499,Catering costs - provisions,213.73,0.00,213.73
Regeneration and Local Services,Direct Services,021242,Catering - County Hall,Supplies and Services,324117,Provisions E324,02-May-2018,000007317465027,WWW.ADELIEFOODS.CO.UK,5499,Catering costs - provisions,204.52,0.00,204.52
Regeneration and Local Services,Direct Services,021242,Catering - County Hall,Supplies and Services,324117,Provisions E324,02-May-2018,000007317465029,WWW.ADELIEFOODS.CO.UK,5499,Catering costs - provisions,140.16,0.00,140.16
Regeneration and Local Services,Direct Services,021242,Catering - County Hall,Supplies and Services,324117,Provisions E324,02-May-2018,000007317465031,WWW.ADELIEFOODS.CO.UK,5499,Catering costs - provisions,129.92,0.00,129.92
Regeneration and Local Services,Direct Services,021242,Catering - County Hall,Supplies and Services,324117,Provisions E324,02-May-2018,000007317465033,WWW.ADELIEFOODS.CO.UK,5499,Catering costs - provisions,129.74,0.00,129.74
Regeneration and Local Services,Direct Services,021242,Catering - County Hall,Supplies and Services,324117,Provisions E324,02-May-2018,000007317465035,WWW.ADELIEFOODS.CO.UK,5499,Catering costs - provisions,123.20,0.00,123.20
Regeneration and Local Services,Direct Services,021242,Catering - County Hall,Supplies and Services,324117,Provisions E324,02-May-2018,000007317465037,WWW.ADELIEFOODS.CO.UK,5499,Catering costs - provisions,119.03,0.00,119.03
Regeneration and Local Services,Direct Services,021242,Catering - County Hall,Supplies and Services,324117,Provisions E324,02-May-2018,000007317465039,WWW.ADELIEFOODS.CO.UK,5499,Catering costs - provisions,113.38,0.00,113.38
Regeneration and Local Services,Direct Services,021242,Catering - County Hall,Supplies and Services,324117,Provisions E324,02-May-2018,000007317465041,WWW.ADELIEFOODS.CO.UK,5499,Catering costs - provisions,107.22,0.00,107.22
Regeneration and Local Services,Direct Services,021242,Catering - County Hall,Supplies and Services,324117,Provisions E324,02-May-2018,000007317465043,WWW.ADELIEFOODS.CO.UK,5499,Catering costs - provisions,96.34,0.00,96.34
Regeneration and Local Services,Direct Services,021242,Catering - County Hall,Supplies and Services,324117,Provisions E324,02-May-2018,000007317465045,WWW.ADELIEFOODS.CO.UK,5499,Catering costs - provisions,87.28,0.00,87.28
Regeneration and Local Services,Direct Services,021242,Catering - County Hall,Supplies and Services,324117,Provisions E324,02-May-2018,000007317465047,WWW.ADELIEFOODS.CO.UK,5499,Catering costs - provisions,84.34,0.00,84.34
Regeneration and Local Services,Direct Services,021242,Catering - County Hall,Supplies and Services,324117,Provisions E324,02-May-2018,000007317465049,WWW.ADELIEFOODS.CO.UK,5499,Catering costs - provisions,83.98,0.00,83.98
Regeneration and Local Services,Direct Services,021242,Catering - County Hall,Supplies and Services,324117,Provisions E324,02-May-2018,000007317465051,WWW.ADELIEFOODS.CO.UK,5499,Catering costs - provisions,66.12,0.00,66.12
Regeneration and Local Services,Direct Services,021242,Catering - County Hall,Supplies and Services,324117,Provisions E324,02-May-2018,000007317465053,WWW.ADELIEFOODS.CO.UK,5499,Catering costs - provisions,44.22,0.00,44.22
Regeneration and Local Services,Direct Services,021242,Catering - County Hall,Supplies and Services,324117,Provisions E324,02-May-2018,000007317465055,WWW.ADELIEFOODS.CO.UK,5499,Catering costs - provisions,34.33,0.00,34.33
Regeneration and Local Services,Direct Services,021242,Catering - County Hall,Supplies and Services,324117,Provisions E324,02-May-2018,000007317465057,WWW.ADELIEFOODS.CO.UK,5499,Catering costs - provisions,16.08,0.00,16.08
Regeneration and Local Services,Direct Services,021242,Catering - County Hall,Supplies and Services,324117,Provisions E324,02-May-2018,000007317465059,JR HOLLAND FOODSERVICE,5422,Catering costs - provisions,96.22,0.00,96.22
Regeneration and Local Services,Direct Services,010367,C&G - South Grounds Maintenance,Supplies and Services,304259,Equipment and Materials,02-May-2018,000007317465061,BTL TIMBER AND HARDWAR,5099,Equipment-purchase and rental,65.52,10.92,54.60
Regeneration and Local Services,Culture & Sport,054812,Gala Theatre - Catering etc,Supplies and Services,324117,Provisions E324,02-May-2018,000007317465065,JR HOLLAND FOODSERVICE,5422,Catering costs - provisions,21.84,0.00,21.84
Regeneration and Local Services,Economic Development and Housing,031576,B& B - Temp Accom,Supplies and Services,364320,Grants to Voluntary Organisations,02-May-2018,000007317465095,HOTEL 52,7011,Accommodation assistance,60.00,0.00,60.00
Regeneration and Local Services,Economic Development and Housing,031576,B& B - Temp Accom,Supplies and Services,364320,Grants to Voluntary Organisations,02-May-2018,000007317465097,HOTEL 52,7011,Accommodation assistance,120.00,20.00,100.00
Children and Young Peoples Services,Head of Childrens Social Care,085334,West Rainton Satelite Home,Supplies and Services,324117,Provisions E324,02-May-2018,000007317465099,TESCO STORES 2371,5411,Catering costs - provisions,3.36,0.56,2.80
Children and Young Peoples Services,Head of Childrens Social Care,085334,West Rainton Satelite Home,Supplies and Services,324117,Provisions E324,02-May-2018,000007317465099 - 1,TESCO STORES 2371,5411,Catering costs - provisions,27.44,,27.44
Children and Young Peoples Services,Head of Childrens Social Care,085334,West Rainton Satelite Home,Supplies and Services,324117,Provisions E324,02-May-2018,000007317465101,TESCO STORES 2371,5411,Catering costs - provisions,3.40,0.57,2.83
Regeneration and Local Services,Economic Development and Housing,030737,Durham Works Flexible Fund,Transport,235057,Public Transport,02-May-2018,000007317465111,GO NORTH EAST LIMITED,4131,Staff travelling,6.50,0.00,6.50
Children and Young Peoples Services,"Head of Early Help, Inclusion and Vulnerable Children",071445,Chester le Street One Point Hub,Supplies and Services,308011,Furniture,02-May-2018,000007317465123,EDS BEDS LTD,5712,Furniture repair and replacement,-114.00,0.00,-114.00
Children and Young Peoples Services,"Head of Early Help, Inclusion and Vulnerable Children",085955,Auckland,Supplies and Services,324117,Provisions E324,02-May-2018,000007317465127,TESCO STORES 6329,5411,Catering costs - provisions,82.99,0.00,82.99
Regeneration and Local Services,Spatial Policy Planning Assets & Environment,031222,North Pennines Allen Valleys Landscape Partnership,Supplies and Services,348037,Subsistence E348,02-May-2018,000007317465135,THE HEMMEL CAFE,5812,Subsistence,36.00,0.00,36.00
Regeneration and Local Services,Culture & Sport,011060,Hardwick Park Catering,Supplies and Services,324117,Provisions E324,02-May-2018,000007317465145,JR HOLLAND FOODSERVICE,5422,Catering costs - provisions,48.35,0.00,48.35
Regeneration and Local Services,Culture & Sport,011060,Hardwick Park Catering,Supplies and Services,324117,Provisions E324,02-May-2018,000007317465147,JR HOLLAND FOODSERVICE,5422,Catering costs - provisions,23.60,0.00,23.60
Regeneration and Local Services,Spatial Policy Planning Assets & Environment,031200,North Pennines Core,Supplies and Services,352001,Conference Expenses,02-May-2018,000007317465159,YE OLDE FIGHTING COCKS,7011,Conferencesseminars fees etc,6.00,0.00,6.00
Children and Young Peoples Services,Head of Childrens Social Care,085332,Middlestone Moor CU,Supplies and Services,304245,Equipment and Materials,02-May-2018,000007317465167,HOMEPLAN DIY,5211,Materials,22.50,0.00,22.50
Children and Young Peoples Services,Head of Childrens Social Care,085332,Middlestone Moor CU,Supplies and Services,324117,Provisions E324,02-May-2018,000007317465169,TESCO STORES 2916,5411,Catering costs - provisions,12.20,0.00,12.20
Regeneration and Local Services,Direct Services,021234,Catering - Locomotion,Supplies and Services,324117,Provisions E324,02-May-2018,000007317465173,WWW.ADELIEFOODS.CO.UK,5499,Catering costs - provisions,98.23,0.00,98.23
Regeneration and Local Services,Direct Services,021234,Catering - Locomotion,Supplies and Services,324117,Provisions E324,02-May-2018,000007317465175,WWW.ADELIEFOODS.CO.UK,5499,Catering costs - provisions,90.81,0.00,90.81
Regeneration and Local Services,Direct Services,021234,Catering - Locomotion,Supplies and Services,324117,Provisions E324,02-May-2018,000007317465177,WWW.ADELIEFOODS.CO.UK,5499,Catering costs - provisions,90.81,0.00,90.81
Regeneration and Local Services,Direct Services,021234,Catering - Locomotion,Supplies and Services,324117,Provisions E324,02-May-2018,000007317465181,WWW.ADELIEFOODS.CO.UK,5499,Catering costs - provisions,75.71,0.00,75.71
Regeneration and Local Services,Direct Services,021234,Catering - Locomotion,Supplies and Services,324117,Provisions E324,02-May-2018,000007317465185,WWW.ADELIEFOODS.CO.UK,5499,Catering costs - provisions,-8.65,0.00,-8.65
Regeneration and Local Services,Direct Services,021234,Catering - Locomotion,Supplies and Services,324117,Provisions E324,02-May-2018,000007317465187,WWW.ADELIEFOODS.CO.UK,5499,Catering costs - provisions,-32.80,0.00,-32.80
Adult and Health Services,Head of Adults,052269,Intermediate Care Plus - North,Supplies and Services,340001,Postages E340,02-May-2018,000007317465203,ROYAL MAIL ONLINE SHOP,9402,Postages,58.00,0.00,58.00
Regeneration and Local Services,Economic Development and Housing,030692,Durham Dales Centre - Management and Admin,Supplies and Services,324117,Provisions E324,02-May-2018,000007317465237,JR HOLLAND FOODSERVICE,5422,Catering costs - provisions,120.28,0.00,120.28
Regeneration and Local Services,Economic Development and Housing,030692,Durham Dales Centre - Management and Admin,Supplies and Services,324117,Provisions E324,02-May-2018,000007317465239,JR HOLLAND FOODSERVICE,5422,Catering costs - provisions,52.52,0.00,52.52
Adult and Health Services,Head of Adults,055643,Hawthorn House LD Respite Unit,Supplies and Services,324117,Provisions E324,02-May-2018,000007317465249,JR HOLLAND FOODSERVICE,5422,Catering costs - provisions,21.60,0.00,21.60
Adult and Health Services,Head of Adults,055643,Hawthorn House LD Respite Unit,Supplies and Services,324117,Provisions E324,02-May-2018,000007317465251,JR HOLLAND FOODSERVICE,5422,Catering costs - provisions,19.48,0.00,19.48
Children and Young Peoples Services,"Head of Early Help, Inclusion and Vulnerable Children",074000,TTF-Attachment and Results,Supplies and Services,308011,Furniture,02-May-2018,000007317465255,MAGUIRES,5713,Furniture repair and replacement,150.00,25.00,125.00
Children and Young Peoples Services,"Head of Early Help, Inclusion and Vulnerable Children",074000,TTF-Attachment and Results,Supplies and Services,308011,Furniture,02-May-2018,000007317465259,MAGUIRES,5713,Furniture repair and replacement,140.00,23.33,116.67
Resources,Digital and Customer Services,065335,School Services - Implementations,Supplies and Services,304639,Equipment and Materials,02-May-2018,000007317465261,WWW.TOOLSTATION.COM,5251,Technicians-supplies,27.86,4.64,23.22
Children and Young Peoples Services,Head of Childrens Social Care,085100,Strategic Manager Families First Area South,Supplies and Services,384199,Miscellaneous Expenses,02-May-2018,000007317465269,SUNDERLAND CC,9399,Other hired and contracted services,20.00,0.00,20.00
Regeneration and Local Services,Culture & Sport,054235,Bishop Auckland Town Hall Cafe,Supplies and Services,324117,Provisions E324,02-May-2018,000007317465273,WWW.ADELIEFOODS.CO.UK,5499,Catering costs - provisions,48.17,0.00,48.17
Regeneration and Local Services,Culture & Sport,026591,Hardwick Park,Supplies and Services,332047,Printing Stationery and Gen Off Exps,02-May-2018,000007317465277,Amazon UK Marketplace,5942,Stationery,18.44,0.00,18.44
Regeneration and Local Services,Technical Services,010984,Training and Development,Supplies and Services,312011,Newspapers books and periodicals E312,02-May-2018,000007317465307,Amazon EU,5969,Books-school library,80.40,0.00,80.40
Regeneration and Local Services,Technical Services,010984,Training and Development,Supplies and Services,312011,Newspapers books and periodicals E312,02-May-2018,000007317465309,Amazon EU,5969,Books-school library,120.59,0.00,120.59
Regeneration and Local Services,Direct Services,021235,Catering - Wharton Park,Supplies and Services,324117,Provisions E324,02-May-2018,000007317465343,WWW.ADELIEFOODS.CO.UK,5499,Catering costs - provisions,72.66,0.00,72.66
Regeneration and Local Services,Economic Development and Housing,030692,Durham Dales Centre - Management and Admin,Supplies and Services,324117,Provisions E324,02-May-2018,000007317465355,Castle Bank Butchers,5422,Catering costs - provisions,116.79,0.00,116.79
Regeneration and Local Services,Economic Development and Housing,030692,Durham Dales Centre - Management and Admin,Supplies and Services,324117,Provisions E324,02-May-2018,000007317465359,W Peat,5422,Catering costs - provisions,94.09,0.00,94.09
Regeneration and Local Services,Direct Services,021242,Catering - County Hall,Supplies and Services,324117,Provisions E324,02-May-2018,000007322683399,BATLEYS PERTH,5300,Catering costs - provisions,-6.00,0.00,-6.00
Regeneration and Local Services,Economic Development and Housing,031576,B& B - Temp Accom,Supplies and Services,364320,Grants to Voluntary Organisations,02-May-2018,000007322683445,PREMIER INN,3811,Accommodation assistance,152.00,25.33,126.67
Children and Young Peoples Services,Head of Childrens Social Care,085334,West Rainton Satelite Home,Supplies and Services,324117,Provisions E324,02-May-2018,000007322683449,ALDI 12 774,5411,Catering costs - provisions,5.94,0.99,4.95
Children and Young Peoples Services,Head of Childrens Social Care,085334,West Rainton Satelite Home,Supplies and Services,324117,Provisions E324,02-May-2018,000007322683449 - 1,ALDI 12 774,5411,Catering costs - provisions,0.03,,0.03
Children and Young Peoples Services,Head of Childrens Social Care,085334,West Rainton Satelite Home,Supplies and Services,324117,Provisions E324,02-May-2018,000007322683451,ALDI 12 774,5411,Catering costs - provisions,9.90,1.65,8.25
Children and Young Peoples Services,Head of Childrens Social Care,085334,West Rainton Satelite Home,Supplies and Services,324117,Provisions E324,02-May-2018,000007322683451 - 1,ALDI 12 774,5411,Catering costs - provisions,35.84,,35.84
Children and Young Peoples Services,"Head of Early Help, Inclusion and Vulnerable Children",085965,Barnard,Supplies and Services,328041,Clothing uniforms and laundry E328,02-May-2018,000007322683511,FOOTASYLUM PLC,5941,Clothing uniforms and laundry,95.97,0.00,95.97
Children and Young Peoples Services,"Head of Early Help, Inclusion and Vulnerable Children",085955,Auckland,Supplies and Services,328041,Clothing uniforms and laundry E328,02-May-2018,000007322683513,FOOTASYLUM PLC,5941,Clothing uniforms and laundry,119.99,0.00,119.99
Regeneration and Local Services,Culture & Sport,026591,Hardwick Park,Supplies and Services,304259,Equipment and Materials,02-May-2018,000007322683517,SCREWFIX,5211,Equipment-purchase and rental,37.95,6.33,31.62
Resources,Digital and Customer Services,065335,School Services - Implementations,Supplies and Services,304639,Equipment and Materials,02-May-2018,000007322683617,ALIEXPRESS,5311,Technicians-supplies,38.75,0.00,38.75
Regeneration and Local Services,Transport and Contracted Services,031704,Care Connect - CCTV Countywide,Supplies and Services,384956,Miscellaneous Expenses,02-May-2018,000007322683643,SECURITY INDUSTRY,7393,Licences,220.00,0.00,220.00
Regeneration and Local Services,Transport and Contracted Services,031704,Care Connect - CCTV Countywide,Supplies and Services,384956,Miscellaneous Expenses,02-May-2018,000007322683645,SECURITY INDUSTRY,7393,Licences,220.00,0.00,220.00
Regeneration and Local Services,Transport and Contracted Services,031704,Care Connect - CCTV Countywide,Supplies and Services,384956,Miscellaneous Expenses,02-May-2018,000007322683647,SECURITY INDUSTRY,7393,Licences,220.00,0.00,220.00
Children and Young Peoples Services,Head of Childrens Social Care,085333,Coxhoe Satelite Home,Supplies and Services,324117,Provisions E324,02-May-2018,000007322683655,ALDI 12 774,5411,Catering costs - provisions,11.14,0.00,11.14
Children and Young Peoples Services,Head of Childrens Social Care,085333,Coxhoe Satelite Home,Supplies and Services,324117,Provisions E324,02-May-2018,000007322683657,ALDI 12 774,5411,Catering costs - provisions,136.15,0.00,136.15
Regeneration and Local Services,Economic Development and Housing,031576,B& B - Temp Accom,Supplies and Services,364320,Grants to Voluntary Organisations,02-May-2018,000007322683663,PREMIER INN,3811,Accommodation assistance,152.00,25.33,126.67
Regeneration and Local Services,Direct Services,010318,C&G - North Street Cleansing,Third Party Payments 4THIRD,430100,Rendered by Private Contractors,02-May-2018,000007322683667,JOHN WARREN (ANIMAL BY,7399,Payments to sub-contractors,10.80,0.00,10.80
Children and Young Peoples Services,Head of Childrens Social Care,085363,LAC & Permanence Team 3,Supplies and Services,304259,Equipment and Materials,02-May-2018,000007322683673,WWW.DURHAM.GOV.UK,9399,Equipment-purchase and rental,50.00,0.00,50.00
Regeneration and Local Services,Economic Development and Housing,030554,International Relations,Transport,235057,Public Transport,02-May-2018,000007322683687,EUROWINGS 104UCMUVJ_1436,4511,Staff travelling,"1,606.80",0.00,1606.80
Regeneration and Local Services,Direct Services,015015,Spectrum 8 Seaham,Supplies and Services,384956,Miscellaneous Expenses,02-May-2018,000007336720631,TVLICENSING.CO.UK,7392,Licences,150.50,0.00,150.50
Regeneration and Local Services,Culture & Sport,011217,Commercial Management,Third Party Payments 4THIRD,430100,Rendered by Private Contractors,03-May-2018,000007317465093,CAMPAIGNMONITOR,7399,Payments to sub-contractors,10.12,0.00,10.12
Children and Young Peoples Services,Head of Education and Skills,054640,Durham Learning Resources,Supplies and Services,304245,Equipment and Materials,03-May-2018,000007322683331,Amazon UK Marketplace,5942,Materials,4.39,0.73,3.66
Children and Young Peoples Services,Head of Education and Skills,054640,Durham Learning Resources,Supplies and Services,312011,Newspapers books and periodicals E312,03-May-2018,000007322683333,Amazon UK Marketplace,5942,Books-school library,5.80,0.00,5.80
Children and Young Peoples Services,Head of Education and Skills,054640,Durham Learning Resources,Supplies and Services,312011,Newspapers books and periodicals E312,03-May-2018,000007322683335,Amazon EU,5969,Books-school library,10.05,0.00,10.05
Regeneration and Local Services,Direct Services,010383,C&G - South Street Cleansing,Supplies and Services,324117,Provisions E324,03-May-2018,000007322683361,J M RAINE,5399,Catering costs - provisions,79.01,13.17,65.84
Children and Young Peoples Services,Head of Childrens Social Care,085342,9 Cedar Drive Aycliffe,Supplies and Services,312011,Newspapers books and periodicals E312,03-May-2018,000007322683367,Amazon UK Marketplace,5942,Books-school library,46.95,0.00,46.95
Regeneration and Local Services,Economic Development and Housing,030699,Business Growth and Innovation General,Supplies and Services,304403,Equipment and Materials,03-May-2018,000007322683371,ADOBE CREATIVE CLOUD,5734,Other consumables,50.57,0.00,50.57
Regeneration and Local Services,Economic Development and Housing,030699,Business Growth and Innovation General,Supplies and Services,312011,Newspapers books and periodicals E312,03-May-2018,000007322683373,FASTHOSTS INTERNET,4816,Books-school library,43.15,7.19,35.96
Children and Young Peoples Services,Head of Childrens Social Care,085517,Supporting Solutions Service (Edge of Care),Supplies and Services,332047,Printing Stationery and Gen Off Exps,03-May-2018,000007322683387,Amazon UK Marketplace,5942,Stationery,64.95,0.00,64.95
Regeneration and Local Services,Culture & Sport,054731,Killhope Lead Mining Centre,Supplies and Services,304259,Equipment and Materials,03-May-2018,000007322683389,Amazon UK Marketplace,5942,Equipment-purchase and rental,12.50,0.00,12.50
Regeneration and Local Services,Culture & Sport,054731,Killhope Lead Mining Centre,Supplies and Services,304259,Equipment and Materials,03-May-2018,000007322683391,Amazon UK Marketplace,5942,Equipment-purchase and rental,18.98,3.16,15.82
Regeneration and Local Services,Direct Services,021242,Catering - County Hall,Supplies and Services,324117,Provisions E324,03-May-2018,000007322683393,HOPWELLS LTD,5811,Catering costs - provisions,285.54,0.00,285.54
Regeneration and Local Services,Direct Services,021242,Catering - County Hall,Supplies and Services,324117,Provisions E324,03-May-2018,000007322683395,HOPWELLS LTD,5811,Catering costs - provisions,154.81,0.00,154.81
Regeneration and Local Services,Direct Services,021242,Catering - County Hall,Supplies and Services,324117,Provisions E324,03-May-2018,000007322683397,HOPWELLS LTD,5811,Catering costs - provisions,-7.58,0.00,-7.58
Regeneration and Local Services,Direct Services,010367,C&G - South Grounds Maintenance,Supplies and Services,304259,Equipment and Materials,03-May-2018,000007322683409,TRAVIS PERKINS,5211,Equipment-purchase and rental,22.20,3.70,18.50
Regeneration and Local Services,Culture & Sport,054812,Gala Theatre - Catering etc,Supplies and Services,324117,Provisions E324,03-May-2018,000007322683413,HOPWELLS LTD,5811,Catering costs - provisions,45.37,0.00,45.37
Regeneration and Local Services,Culture & Sport,054812,Gala Theatre - Catering etc,Supplies and Services,324117,Provisions E324,03-May-2018,000007322683415,HOPWELLS LTD,5811,Catering costs - provisions,36.98,0.00,36.98
Children and Young Peoples Services,Head of Education and Skills,071732,Dean Bank Childcare,Supplies and Services,324117,Provisions E324,03-May-2018,000007322683467,CO-OP GROUP 310027,5411,Catering costs - provisions,1.29,0.00,1.29
Regeneration and Local Services,Culture & Sport,054813,Gala Theatre - Technical,Supplies and Services,304259,Equipment and Materials,03-May-2018,000007322683483,DURAHOOKLIM,5099,Equipment-purchase and rental,76.15,0.00,76.15
Regeneration and Local Services,Economic Development and Housing,030737,Durham Works Flexible Fund,Transport,235057,Public Transport,03-May-2018,000007322683497,ARRIVA NORTH EAST,4131,Staff travelling,25.00,0.00,25.00
Regeneration and Local Services,Economic Development and Housing,030737,Durham Works Flexible Fund,Transport,235057,Public Transport,03-May-2018,000007322683499,ARRIVA NORTH EAST,4131,Staff travelling,6.50,0.00,6.50
Children and Young Peoples Services,"Head of Early Help, Inclusion and Vulnerable Children",085965,Barnard,Supplies and Services,324117,Provisions E324,03-May-2018,000007322683515,TESCO STORES 6329,5411,Catering costs - provisions,86.03,0.00,86.03
Regeneration and Local Services,Culture & Sport,011060,Hardwick Park Catering,Supplies and Services,324117,Provisions E324,03-May-2018,000007322683521,HOPWELLS LTD,5811,Catering costs - provisions,350.82,58.47,292.35
Regeneration and Local Services,Culture & Sport,011060,Hardwick Park Catering,Supplies and Services,324117,Provisions E324,03-May-2018,000007322683521 - 1,HOPWELLS LTD,5811,Catering costs - provisions,37.31,,37.31
Regeneration and Local Services,Culture & Sport,011060,Hardwick Park Catering,Supplies and Services,324117,Provisions E324,03-May-2018,000007322683523,HOPWELLS LTD,5811,Catering costs - provisions,89.34,14.89,74.45
Regeneration and Local Services,Culture & Sport,011060,Hardwick Park Catering,Supplies and Services,324117,Provisions E324,03-May-2018,000007322683523 - 1,HOPWELLS LTD,5811,Catering costs - provisions,70.03,,70.03
Regeneration and Local Services,Culture & Sport,011060,Hardwick Park Catering,Supplies and Services,324117,Provisions E324,03-May-2018,000007322683525,HOPWELLS LTD,5811,Catering costs - provisions,13.08,2.18,10.90
Regeneration and Local Services,Culture & Sport,011060,Hardwick Park Catering,Supplies and Services,324117,Provisions E324,03-May-2018,000007322683525 - 1,HOPWELLS LTD,5811,Catering costs - provisions,87.04,,87.04
Children and Young Peoples Services,Head of Childrens Social Care,085332,Middlestone Moor CU,Supplies and Services,324117,Provisions E324,03-May-2018,000007322683535,ASDA SUPERSTORE 4987,5411,Catering costs - provisions,51.75,0.00,51.75
Children and Young Peoples Services,Head of Childrens Social Care,085332,Middlestone Moor CU,Supplies and Services,324117,Provisions E324,03-May-2018,000007322683537,ASDA SUPERSTORE 4987,5411,Catering costs - provisions,23.00,0.00,23.00
Children and Young Peoples Services,Head of Childrens Social Care,085332,Middlestone Moor CU,Supplies and Services,304259,Equipment and Materials,03-May-2018,000007322683539,CURRYS ONLINE,5732,Equipment-purchase and rental,69.99,0.00,69.99
Children and Young Peoples Services,Head of Childrens Social Care,085332,Middlestone Moor CU,Supplies and Services,304083,Equipment and Materials,03-May-2018,000007322683541,TESCO - Seller_IST_1_2,5999,Catering equipment,10.69,0.00,10.69
Regeneration and Local Services,Direct Services,021234,Catering - Locomotion,Supplies and Services,324117,Provisions E324,03-May-2018,000007322683543,HOPWELLS LTD,5811,Catering costs - provisions,90.96,15.16,75.80
Regeneration and Local Services,Direct Services,021234,Catering - Locomotion,Supplies and Services,324117,Provisions E324,03-May-2018,000007322683543 - 1,HOPWELLS LTD,5811,Catering costs - provisions,245.82,,245.82
Regeneration and Local Services,Direct Services,010525,Catering - Green Lane,Supplies and Services,324117,Provisions E324,03-May-2018,000007322683545,HOPWELLS LTD,5811,Catering costs - provisions,131.79,0.00,131.79
Regeneration and Local Services,Economic Development and Housing,030554,International Relations,Supplies and Services,324117,Provisions E324,03-May-2018,000007322683559,MARKS&SPENCER PLC SACA,5411,Catering costs - provisions,29.55,0.00,29.55
Regeneration and Local Services,Economic Development and Housing,030749,Employability - Youth Contract,Transport,230031,Contract Hire,03-May-2018,000007322683583,ARRIVA NORTH EAST,4131,Pupils-transport to play fields etc,23.00,0.00,23.00
Regeneration and Local Services,Economic Development and Housing,030737,Durham Works Flexible Fund,Transport,230031,Contract Hire,03-May-2018,000007322683585,GO NORTH EAST LIMITED,4131,Pupils-transport to play fields etc,6.50,0.00,6.50
Adult and Health Services,Head of Adults,055643,Hawthorn House LD Respite Unit,Supplies and Services,324117,Provisions E324,03-May-2018,000007322683599,HOPWELLS LTD,5811,Catering costs - provisions,65.87,0.00,65.87
Regeneration and Local Services,Direct Services,010301,C&G - North Grounds Maintenance,Supplies and Services,328041,Clothing uniforms and laundry E328,03-May-2018,000007322683613,THOMAS OWEN & SONS /N/,5611,Clothing uniforms and laundry,151.46,25.24,126.22
Regeneration and Local Services,Direct Services,010301,C&G - North Grounds Maintenance,Supplies and Services,304999,Equipment and Materials,03-May-2018,000007322683615,NEW ROW FARM NURSERIES,5193,Misc equipment tools and materials,495.00,82.50,412.50
Resources,Legal & Democratic Services,067910,Democratic Representation,Supplies and Services,372009,Subscriptions E372,03-May-2018,000007322683633,WWW.ICO.GOV.UK,9399,Subscriptions 372009,35.00,0.00,35.00
Regeneration and Local Services,Culture & Sport,054235,Bishop Auckland Town Hall Cafe,Supplies and Services,324117,Provisions E324,03-May-2018,000007322683641,HOPWELLS LTD,5811,Catering costs - provisions,94.29,0.00,94.29
Regeneration and Local Services,Direct Services,021324,Catering - Meadowfield,Supplies and Services,324117,Provisions E324,03-May-2018,000007322683651,HOPWELLS LTD,5811,Catering costs - provisions,60.82,0.00,60.82
Regeneration and Local Services,Direct Services,021324,Catering - Meadowfield,Supplies and Services,324117,Provisions E324,03-May-2018,000007322683653,HOPWELLS LTD,5811,Catering costs - provisions,45.55,0.00,45.55
Children and Young Peoples Services,Head of Childrens Social Care,085333,Coxhoe Satelite Home,Supplies and Services,348037,Subsistence E348,03-May-2018,000007322683659,WOODLAND TEA ROOMS,5814,Subsistence,9.00,0.00,9.00
Regeneration and Local Services,Direct Services,010301,C&G - North Grounds Maintenance,Supplies and Services,304221,Equipment and Materials,03-May-2018,000007322683665,THOMAS OWEN & SONS /N/,5611,Direct materials,63.60,0.00,63.60
Regeneration and Local Services,Direct Services,010318,C&G - North Street Cleansing,Third Party Payments 4THIRD,430100,Rendered by Private Contractors,03-May-2018,000007322683669,JOHN WARREN (ANIMAL BY,7399,Payments to sub-contractors,8.10,0.00,8.10
Resources,Finance & Transactional Services,065180,Collections,Income 7SUM,720130,Fees and Charges,03-May-2018,000007322683691,REGISTERS OF SCOTLAND,9399,Fees-legal,24.00,4.00,20.00
Regeneration and Local Services,Direct Services,021235,Catering - Wharton Park,Supplies and Services,324117,Provisions E324,03-May-2018,000007322683707,HOPWELLS LTD,5811,Catering costs - provisions,78.96,13.16,65.80
Regeneration and Local Services,Direct Services,021235,Catering - Wharton Park,Supplies and Services,324117,Provisions E324,03-May-2018,000007322683707 - 1,HOPWELLS LTD,5811,Catering costs - provisions,87.99,,87.99
Regeneration and Local Services,Direct Services,021235,Catering - Wharton Park,Supplies and Services,324117,Provisions E324,03-May-2018,000007322683709,HOPWELLS LTD,5811,Catering costs - provisions,117.00,19.50,97.50
Regeneration and Local Services,Direct Services,021235,Catering - Wharton Park,Supplies and Services,324117,Provisions E324,03-May-2018,000007322683709 - 1,HOPWELLS LTD,5811,Catering costs - provisions,18.86,,18.86
Regeneration and Local Services,Spatial Policy Planning Assets & Environment,031200,North Pennines Core,Supplies and Services,304259,Equipment and Materials,03-May-2018,000007322683721,BRITISH GEOLOGICAL SUR,9399,Equipment-purchase and rental,18.00,0.00,18.00
Children and Young Peoples Services,Head of Childrens Social Care,085801,CDYOS - Support,Supplies and Services,324117,Provisions E324,03-May-2018,000007322683723,MARKS&SPENCER PLC,5411,Catering costs - provisions,59.50,0.00,59.50
Regeneration and Local Services,Economic Development and Housing,031576,B& B - Temp Accom,Supplies and Services,364320,Grants to Voluntary Organisations,03-May-2018,000007336720527,PREMIER INN,3811,Accommodation assistance,324.50,54.08,270.42
Regeneration and Local Services,Direct Services,021242,Catering - County Hall,Supplies and Services,324117,Provisions E324,03-May-2018,000007336720635,JR HOLLAND FOODSERVICE,5422,Catering costs - provisions,93.66,0.00,93.66
Regeneration and Local Services,Direct Services,021242,Catering - County Hall,Supplies and Services,324117,Provisions E324,03-May-2018,000007336720637,JR HOLLAND FOODSERVICE,5422,Catering costs - provisions,17.95,0.00,17.95
Regeneration and Local Services,Direct Services,021242,Catering - County Hall,Supplies and Services,324117,Provisions E324,03-May-2018,000007336720639,JR HOLLAND FOODSERVICE,5422,Catering costs - provisions,13.20,0.00,13.20
Regeneration and Local Services,Direct Services,021242,Catering - County Hall,Supplies and Services,324117,Provisions E324,03-May-2018,000007336720641,JR HOLLAND FOODSERVICE,5422,Catering costs - provisions,8.16,0.00,8.16
Regeneration and Local Services,Culture & Sport,011060,Hardwick Park Catering,Supplies and Services,324117,Provisions E324,03-May-2018,000007336720821,BATLEYS PERTH,5300,Catering costs - provisions,293.46,48.91,244.55
Regeneration and Local Services,Culture & Sport,011060,Hardwick Park Catering,Supplies and Services,324117,Provisions E324,03-May-2018,000007336720821 - 1,BATLEYS PERTH,5300,Catering costs - provisions,207.43,,207.43
Regeneration and Local Services,Economic Development and Housing,031576,B& B - Temp Accom,Supplies and Services,364320,Grants to Voluntary Organisations,03-May-2018,000007336721029,PREMIER INN,3811,Accommodation assistance,231.00,38.50,192.50
Regeneration and Local Services,Economic Development and Housing,030554,International Relations,Transport,235057,Public Transport,03-May-2018,000007336721051,EUROWINGS 104B4KP4L_1437,4511,Staff travelling,26.52,0.00,26.52
Regeneration and Local Services,Economic Development and Housing,030554,International Relations,Transport,235057,Public Transport,03-May-2018,000007336721053,EUROWINGS 104UCMUVJ_1437,4511,Staff travelling,344.71,0.00,344.71
Regeneration and Local Services,Direct Services,021235,Catering - Wharton Park,Supplies and Services,324117,Provisions E324,03-May-2018,000007336721093,BATLEYS PERTH,5300,Catering costs - provisions,58.08,9.68,48.40
Regeneration and Local Services,Direct Services,021235,Catering - Wharton Park,Supplies and Services,324117,Provisions E324,03-May-2018,000007336721093 - 1,BATLEYS PERTH,5300,Catering costs - provisions,26.01,,26.01
Regeneration and Local Services,Economic Development and Housing,030554,International Relations,Transport,235057,Public Transport,04-May-2018,000007322683689,EUROWINGS 104UCMUVJ_1436,4511,Staff travelling,44.19,0.00,44.19
Children and Young Peoples Services,Head of Education and Skills,071801,Selby Cottage Childcare Centre,Supplies and Services,304259,Equipment and Materials,04-May-2018,000007336720525,WILKO RETAIL LIMIT,5722,Equipment-purchase and rental,25.55,0.00,25.55
Regeneration and Local Services,Transport and Contracted Services,032170,Integrated Passenger Transport,Supplies and Services,332047,Printing Stationery and Gen Off Exps,04-May-2018,000007336720531,Amazon UK Marketplace,5942,Stationery,17.80,0.00,17.80
Regeneration and Local Services,Economic Development and Housing,031500,Housing Solutions - Core Team,Employees,040149,Recruitment Instruction and Training,04-May-2018,000007336720561,PREMIER INN,3811,Training-all costs,52.50,8.75,43.75
Regeneration and Local Services,Direct Services,010383,C&G - South Street Cleansing,Supplies and Services,384999,Miscellaneous Expenses,04-May-2018,000007336720575,WWW.MUTTSBUTTS.COM,5995,Other expenses,165.90,27.65,138.25
Regeneration and Local Services,Culture & Sport,011252,Community Physical Activity Programmes,Supplies and Services,304259,Equipment and Materials,04-May-2018,000007336720577,ENGLAND ATHLETICS,5941,Equipment-purchase and rental,840.00,0.00,840.00
Regeneration and Local Services,Economic Development and Housing,030705,Visit County Durham,Supplies and Services,312011,Newspapers books and periodicals E312,04-May-2018,000007336720583,Amazon UK Marketplace,5942,Books-school library,139.02,0.00,139.02
Regeneration and Local Services,Economic Development and Housing,030699,Business Growth and Innovation General,Supplies and Services,304403,Equipment and Materials,04-May-2018,000007336720599,MEETEDGAR MONTHLY,5734,Other consumables,36.32,0.00,36.32
Regeneration and Local Services,Economic Development and Housing,030699,Business Growth and Innovation General,Supplies and Services,312011,Newspapers books and periodicals E312,04-May-2018,000007336720601,FASTHOSTS INTERNET,4816,Books-school library,6.34,1.06,5.28
Regeneration and Local Services,EnvironmentHealth & Consumer Protection,010934,Works in Default Holding Code,Income 7SUM,720130,Fees and Charges,04-May-2018,000007336720605,WWW.HMCOURT-SERVIC,9222,Fees-legal,55.00,0.00,55.00
Adult and Health Services,Head of Adults,052720,Mental Health S28A and Central,Income 7SUM,720130,Fees and Charges,04-May-2018,000007336720607,WWW.MONEYCLAIM.GOV,9399,Fees-legal,60.00,0.00,60.00
Regeneration and Local Services,Economic Development and Housing,030544,Rural Employability - Client Engagement,Transport,230031,Contract Hire,04-May-2018,000007336720633,ARRIVA NORTH EAST,4131,Pupils-transport to play fields etc,35.00,0.00,35.00
Children and Young Peoples Services,Head of Childrens Social Care,085352,Tow Law CU,Transport,235057,Public Transport,04-May-2018,000007336720721,WYNVRCOUK HOLIDAY ACCO,4722,Staff travelling,218.00,0.00,218.00
Regeneration and Local Services,Culture & Sport,010664,Freemans Quay Leisure Centre,Supplies and Services,324117,Provisions E324,04-May-2018,000007336720727,ASDA SUPERSTORE,5411,Catering costs - provisions,45.21,0.00,45.21
Regeneration and Local Services,Culture & Sport,010664,Freemans Quay Leisure Centre,Supplies and Services,324117,Provisions E324,04-May-2018,000007336720729,ASDA SUPERSTORE,5411,Catering costs - provisions,28.30,0.00,28.30
Children and Young Peoples Services,Head of Education and Skills,071732,Dean Bank Childcare,Supplies and Services,312011,Newspapers books and periodicals E312,04-May-2018,000007336720737,Amazon UK Marketplace,5942,Books-school library,1.98,0.00,1.98
Children and Young Peoples Services,Head of Education and Skills,071732,Dean Bank Childcare,Supplies and Services,312011,Newspapers books and periodicals E312,04-May-2018,000007336720739,Amazon UK Marketplace,5942,Books-school library,13.99,0.00,13.99
Children and Young Peoples Services,Head of Education and Skills,071732,Dean Bank Childcare,Supplies and Services,312011,Newspapers books and periodicals E312,04-May-2018,000007336720741,Amazon UK Marketplace,5942,Books-school library,39.83,0.00,39.83
Children and Young Peoples Services,Head of Education and Skills,071732,Dean Bank Childcare,Supplies and Services,312011,Newspapers books and periodicals E312,04-May-2018,000007336720743,Amazon EU,5969,Books-school library,13.98,0.00,13.98
Children and Young Peoples Services,Head of Education and Skills,071732,Dean Bank Childcare,Supplies and Services,312011,Newspapers books and periodicals E312,04-May-2018,000007336720745,Amazon UK Marketplace,5942,Books-school library,21.92,0.00,21.92
Children and Young Peoples Services,Head of Education and Skills,071732,Dean Bank Childcare,Supplies and Services,312011,Newspapers books and periodicals E312,04-May-2018,000007336720747,Amazon UK Marketplace,5942,Books-school library,19.20,0.00,19.20
Regeneration and Local Services,Culture & Sport,054813,Gala Theatre - Technical,Supplies and Services,304259,Equipment and Materials,04-May-2018,000007336720759,SCREWFIX,5211,Equipment-purchase and rental,179.16,29.86,149.30
Regeneration and Local Services,Direct Services,010301,C&G - North Grounds Maintenance,Supplies and Services,304403,Equipment and Materials,04-May-2018,000007336720775,BESCOL,5231,Other consumables,499.00,0.00,499.00
Regeneration and Local Services,Direct Services,010301,C&G - North Grounds Maintenance,Supplies and Services,304403,Equipment and Materials,04-May-2018,000007336720777,BESCOL,5231,Other consumables,22.56,0.00,22.56
Regeneration and Local Services,Direct Services,010301,C&G - North Grounds Maintenance,Supplies and Services,304403,Equipment and Materials,04-May-2018,000007336720779,BESCOL,5231,Other consumables,15.00,0.00,15.00
Regeneration and Local Services,Direct Services,010301,C&G - North Grounds Maintenance,Supplies and Services,304403,Equipment and Materials,04-May-2018,000007336720781,BESCOL,5231,Other consumables,9.71,0.00,9.71
Regeneration and Local Services,Direct Services,010301,C&G - North Grounds Maintenance,Supplies and Services,304403,Equipment and Materials,04-May-2018,000007336720783,BESCOL,5231,Other consumables,8.42,0.00,8.42
Regeneration and Local Services,Direct Services,010301,C&G - North Grounds Maintenance,Supplies and Services,304403,Equipment and Materials,04-May-2018,000007336720785,BESCOL,5231,Other consumables,7.82,0.00,7.82
Children and Young Peoples Services,"Head of Early Help, Inclusion and Vulnerable Children",085965,Barnard,Supplies and Services,384999,Miscellaneous Expenses,04-May-2018,000007336720787,Amazon UK Marketplace,5942,Other expenses,39.88,0.00,39.88
Children and Young Peoples Services,"Head of Early Help, Inclusion and Vulnerable Children",085956,Lumley,Supplies and Services,324117,Provisions E324,04-May-2018,000007336720789,TESCO STORES 6329,5411,Catering costs - provisions,93.12,0.00,93.12
Regeneration and Local Services,Culture & Sport,054813,Gala Theatre - Technical,Supplies and Services,304403,Equipment and Materials,04-May-2018,000007336720799,AMZ fashionoutletstore,5999,Other consumables,-56.54,0.00,-56.54
Regeneration and Local Services,Economic Development and Housing,030755,Durham Employment & Skills - Other Training,Employees,040149,Recruitment Instruction and Training,04-May-2018,000007336720849,WWW.CSKILLS.ORG,8249,Training-all costs,30.00,5.00,25.00
Regeneration and Local Services,Economic Development and Housing,030755,Durham Employment & Skills - Other Training,Employees,040149,Recruitment Instruction and Training,04-May-2018,000007336720851,WWW.CSKILLS.ORG,8249,Training-all costs,30.00,5.00,25.00
Children and Young Peoples Services,Head of Childrens Social Care,085332,Middlestone Moor CU,Supplies and Services,324117,Provisions E324,04-May-2018,000007336720853,ASDA SUPERSTORE 4987,5411,Catering costs - provisions,24.89,4.15,20.74
Children and Young Peoples Services,Head of Childrens Social Care,085333,Coxhoe Satelite Home,Supplies and Services,324117,Provisions E324,04-May-2018,000007336720911,ASDA SUPERSTORE 4987,5411,Catering costs - provisions,39.00,0.00,39.00
Regeneration and Local Services,Economic Development and Housing,031576,B& B - Temp Accom,Supplies and Services,364320,Grants to Voluntary Organisations,04-May-2018,000007336720933,HOTEL 52,7011,Accommodation assistance,290.00,48.33,241.67
Regeneration and Local Services,Economic Development and Housing,031576,B& B - Temp Accom,Supplies and Services,364320,Grants to Voluntary Organisations,04-May-2018,000007336720935,PREMIER INN,3811,Accommodation assistance,478.00,79.67,398.33
Children and Young Peoples Services,"Head of Early Help, Inclusion and Vulnerable Children",074000,TTF-Attachment and Results,Supplies and Services,324117,Provisions E324,04-May-2018,000007336720967,ASDA GEORGE COM LEEDS,5411,Catering costs - provisions,147.95,24.66,123.29
Children and Young Peoples Services,"Head of Early Help, Inclusion and Vulnerable Children",074000,TTF-Attachment and Results,Supplies and Services,324117,Provisions E324,04-May-2018,000007336720969,ASDA GEORGE COM LEEDS,5411,Catering costs - provisions,50.95,8.49,42.46
Children and Young Peoples Services,"Head of Early Help, Inclusion and Vulnerable Children",074000,TTF-Attachment and Results,Supplies and Services,324117,Provisions E324,04-May-2018,000007336720971,ASDA GEORGE COM LEEDS,5411,Catering costs - provisions,42.53,7.09,35.44
Resources,Digital and Customer Services,065335,School Services - Implementations,Supplies and Services,304639,Equipment and Materials,04-May-2018,000007336720981,WWW.ALIEXPRESS.COM,5964,Technicians-supplies,19.42,0.00,19.42
Resources,Digital and Customer Services,065335,School Services - Implementations,Supplies and Services,304639,Equipment and Materials,04-May-2018,000007336720983,GEDAT Datentechnik Gmb,5045,Technicians-supplies,73.19,0.00,73.19
Children and Young Peoples Services,Head of Childrens Social Care,085372,Young People Services - North,Supplies and Services,304403,Equipment and Materials,04-May-2018,000007336721005,TESCO DIRECT,5999,Other consumables,399.00,0.00,399.00
Children and Young Peoples Services,Head of Childrens Social Care,085372,Young People Services - North,Supplies and Services,304403,Equipment and Materials,04-May-2018,000007336721007,TESCO DIRECT,5999,Other consumables,159.00,0.00,159.00
Regeneration and Local Services,Culture & Sport,026591,Hardwick Park,Supplies and Services,332047,Printing Stationery and Gen Off Exps,04-May-2018,000007336721011,Amazon UK Marketplace,5942,Stationery,5.49,0.00,5.49
Regeneration and Local Services,Culture & Sport,026591,Hardwick Park,Supplies and Services,304245,Equipment and Materials,04-May-2018,000007336721013,VALUE PRODUCTS LTD,5999,Materials,66.60,11.10,55.50
Regeneration and Local Services,Economic Development and Housing,030737,Durham Works Flexible Fund,Supplies and Services,304259,Equipment and Materials,04-May-2018,000007336721103,SPORTSDIRECT.COM,5941,Equipment-purchase and rental,31.99,0.00,31.99
Regeneration and Local Services,Spatial Policy Planning Assets & Environment,031200,North Pennines Core,Supplies and Services,304259,Equipment and Materials,04-May-2018,000007336721105,WWW.OYPLA.COM,5722,Equipment-purchase and rental,49.99,8.33,41.66
Regeneration and Local Services,Direct Services,021242,Catering - County Hall,Supplies and Services,324117,Provisions E324,04-May-2018,000007340088487,BATLEYS PERTH,5300,Catering costs - provisions,518.76,86.46,432.30
Regeneration and Local Services,Direct Services,021242,Catering - County Hall,Supplies and Services,324117,Provisions E324,04-May-2018,000007340088487 - 1,BATLEYS PERTH,5300,Catering costs - provisions,255.66,,255.66
Regeneration and Local Services,Culture & Sport,011060,Hardwick Park Catering,Supplies and Services,324117,Provisions E324,04-May-2018,000007340088687,BATLEYS PERTH,5300,Catering costs - provisions,230.04,38.34,191.70
Regeneration and Local Services,Culture & Sport,011060,Hardwick Park Catering,Supplies and Services,324117,Provisions E324,04-May-2018,000007340088687 - 1,BATLEYS PERTH,5300,Catering costs - provisions,228.21,,228.21
Regeneration and Local Services,Culture & Sport,011060,Hardwick Park Catering,Supplies and Services,324117,Provisions E324,04-May-2018,000007340088689,BATLEYS PERTH,5300,Catering costs - provisions,58.31,9.72,48.59
Resources,Internal Audit and Insurance,065104,Internal Audit,Employees,040149,Recruitment Instruction and Training,05-May-2018,000007336720533,THE INST OF INT AUDITO,8398,Training-all costs,333.57,0.00,333.57
Children and Young Peoples Services,Head of Education and Skills,071732,Dean Bank Childcare,Supplies and Services,312011,Newspapers books and periodicals E312,05-May-2018,000007336720749,Amazon UK Marketplace,5942,Books-school library,6.49,0.00,6.49
Children and Young Peoples Services,Head of Education and Skills,071732,Dean Bank Childcare,Supplies and Services,312011,Newspapers books and periodicals E312,05-May-2018,000007336720751,Amazon UK Marketplace,5942,Books-school library,14.99,0.00,14.99
Children and Young Peoples Services,"Head of Early Help, Inclusion and Vulnerable Children",085954,Walworth,Supplies and Services,324117,Provisions E324,05-May-2018,000007336720791,TESCO STORES 6329,5411,Catering costs - provisions,85.86,0.00,85.86
Children and Young Peoples Services,"Head of Early Help, Inclusion and Vulnerable Children",085957,Secure Management,Supplies and Services,324117,Provisions E324,05-May-2018,000007336720793,TESCO DELIVERY SAVER2,5968,Catering costs - provisions,6.99,0.00,6.99
Regeneration and Local Services,Culture & Sport,054813,Gala Theatre - Technical,Supplies and Services,312011,Newspapers books and periodicals E312,05-May-2018,000007336720801,Amazon UK Marketplace,5942,Books-school library,15.95,0.00,15.95
Regeneration and Local Services,Culture & Sport,054813,Gala Theatre - Technical,Supplies and Services,304259,Equipment and Materials,05-May-2018,000007336720803,Amazon Digital Video,5735,Equipment-purchase and rental,4.49,0.00,4.49
Regeneration and Local Services,Culture & Sport,054813,Gala Theatre - Technical,Supplies and Services,312011,Newspapers books and periodicals E312,05-May-2018,000007336720805,Amazon UK Marketplace,5942,Books-school library,49.99,0.00,49.99
Children and Young Peoples Services,"Head of Early Help, Inclusion and Vulnerable Children",085954,Walworth,Supplies and Services,328041,Clothing uniforms and laundry E328,05-May-2018,000007336720993,WWW.ASOS.COM,5651,Clothing uniforms and laundry,-100.00,0.00,-100.00
Children and Young Peoples Services,Head of Childrens Social Care,085331,New Lea Childrens Home,Transport,235057,Public Transport,05-May-2018,000007336721075,ONTHEBEACH.CO.UK,4722,Staff travelling,28.98,0.00,28.98
Children and Young Peoples Services,Head of Childrens Social Care,085331,New Lea Childrens Home,Supplies and Services,324117,Provisions E324,05-May-2018,000007336721077,ASDA GROCERIES ONLINE,5411,Catering costs - provisions,114.68,0.00,114.68
Children and Young Peoples Services,Head of Childrens Social Care,085331,New Lea Childrens Home,Transport,235057,Public Transport,05-May-2018,000007336721079,EASYJET,3245,Staff travelling,359.49,0.00,359.49
Children and Young Peoples Services,Head of Childrens Social Care,085331,New Lea Childrens Home,Supplies and Services,324117,Provisions E324,05-May-2018,000007336721081,ASDA GROCERIES ONLINE,5411,Catering costs - provisions,-1.12,0.00,-1.12
Children and Young Peoples Services,Head of Education and Skills,075021,Youth Employment Initiative,Supplies and Services,304999,Equipment and Materials,06-May-2018,000007336720563,GOOGLE ADWS7021127990,5968,Misc equipment tools and materials,160.50,0.00,160.50
Dedicated Schools Grant,DSG High Needs Block,079063,Partial Hearing-Belmont Comp,Supplies and Services,304403,Equipment and Materials,06-May-2018,000007336720597,Amazon UK Marketplace,5942,Other consumables,19.95,0.00,19.95
Children and Young Peoples Services,Head of Education and Skills,071732,Dean Bank Childcare,Supplies and Services,312011,Newspapers books and periodicals E312,06-May-2018,000007336720753,Amazon UK Marketplace,5942,Books-school library,7.60,0.00,7.60
Children and Young Peoples Services,Head of Education and Skills,071732,Dean Bank Childcare,Supplies and Services,312011,Newspapers books and periodicals E312,06-May-2018,000007336720757,Amazon UK Marketplace,5942,Books-school library,72.96,0.00,72.96
Regeneration and Local Services,Culture & Sport,054813,Gala Theatre - Technical,Supplies and Services,304259,Equipment and Materials,06-May-2018,000007336720807,Amazon Digital Video,5735,Equipment-purchase and rental,11.99,0.00,11.99
Regeneration and Local Services,Culture & Sport,054813,Gala Theatre - Technical,Supplies and Services,312011,Newspapers books and periodicals E312,06-May-2018,000007336720809,Amazon EU,5969,Books-school library,1.06,0.00,1.06
Children and Young Peoples Services,"Head of Early Help, Inclusion and Vulnerable Children",074000,TTF-Attachment and Results,Supplies and Services,324117,Provisions E324,06-May-2018,000007336720973,ASDA GEORGE COM LEEDS,5411,Catering costs - provisions,-49.96,0.00,-49.96
Regeneration and Local Services,Economic Development and Housing,030692,Durham Dales Centre - Management and Admin,Supplies and Services,324117,Provisions E324,06-May-2018,000007336721107,SCOTMID CO-OP STANHOPE,5411,Catering costs - provisions,9.78,0.00,9.78
Children and Young Peoples Services,Head of Childrens Social Care,085341,High Etherley Satelite Home,Supplies and Services,324117,Provisions E324,07-May-2018,000007336720515,TESCO STORES 6329,5411,Catering costs - provisions,135.38,0.00,135.38
Children and Young Peoples Services,Head of Childrens Social Care,085342,9 Cedar Drive Aycliffe,Supplies and Services,328041,Clothing uniforms and laundry E328,07-May-2018,000007336720589,W BOYES & CO LTD NEWTO,5310,Clothing uniforms and laundry,2.84,0.00,2.84
Children and Young Peoples Services,Head of Childrens Social Care,085342,9 Cedar Drive Aycliffe,Supplies and Services,304259,Equipment and Materials,07-May-2018,000007336720591,WILKO RETAIL LIMIT,5722,Equipment-purchase and rental,7.55,0.00,7.55
Children and Young Peoples Services,Head of Childrens Social Care,085342,9 Cedar Drive Aycliffe,Supplies and Services,328041,Clothing uniforms and laundry E328,07-May-2018,000007336720593,PEACOCK STORES LTD,5331,Clothing uniforms and laundry,16.00,0.00,16.00
Children and Young Peoples Services,Head of Childrens Social Care,085342,9 Cedar Drive Aycliffe,Supplies and Services,324117,Provisions E324,07-May-2018,000007336720595,TESCO STORES 2916,5411,Catering costs - provisions,129.91,0.00,129.91
Regeneration and Local Services,Culture & Sport,010664,Freemans Quay Leisure Centre,Supplies and Services,328041,Clothing uniforms and laundry E328,07-May-2018,000007336720731,ARGOS RETAIL GROUP,5310,Clothing uniforms and laundry,149.99,0.00,149.99
Regeneration and Local Services,Culture & Sport,010664,Freemans Quay Leisure Centre,Supplies and Services,328041,Clothing uniforms and laundry E328,07-May-2018,000007336720733,ARGOS RETAIL GROUP,5310,Clothing uniforms and laundry,149.99,0.00,149.99
Children and Young Peoples Services,"Head of Early Help, Inclusion and Vulnerable Children",085955,Auckland,Supplies and Services,304335,Equipment and Materials,07-May-2018,000007336720795,Amazon UK Marketplace,5942,ICT supplies etc,6.49,0.00,6.49
Children and Young Peoples Services,"Head of Early Help, Inclusion and Vulnerable Children",085955,Auckland,Supplies and Services,384999,Miscellaneous Expenses,07-May-2018,000007336720797,Amazon EU,5969,Other expenses,14.99,2.50,12.49
Regeneration and Local Services,Culture & Sport,054813,Gala Theatre - Technical,Supplies and Services,312011,Newspapers books and periodicals E312,07-May-2018,000007336720811,Amazon EU,5969,Books-school library,10.48,0.00,10.48
Regeneration and Local Services,Culture & Sport,054813,Gala Theatre - Technical,Supplies and Services,312011,Newspapers books and periodicals E312,07-May-2018,000007336720813,Amazon EU,5969,Books-school library,70.00,0.00,70.00
Regeneration and Local Services,Culture & Sport,054813,Gala Theatre - Technical,Supplies and Services,312011,Newspapers books and periodicals E312,07-May-2018,000007336720815,Amazon EU,5969,Books-school library,31.76,0.00,31.76
Regeneration and Local Services,Culture & Sport,054813,Gala Theatre - Technical,Supplies and Services,312011,Newspapers books and periodicals E312,07-May-2018,000007336720817,Amazon EU,5969,Books-school library,46.31,0.00,46.31
Regeneration and Local Services,Culture & Sport,054813,Gala Theatre - Technical,Supplies and Services,312011,Newspapers books and periodicals E312,07-May-2018,000007336720819,Amazon EU,5969,Books-school library,219.49,0.00,219.49
Regeneration and Local Services,Spatial Policy Planning Assets & Environment,031200,North Pennines Core,Transport,235057,Public Transport,07-May-2018,000007336720939,NS SCHIPHOL,4112,Staff travelling,14.59,0.00,14.59
Regeneration and Local Services,Spatial Policy Planning Assets & Environment,031200,North Pennines Core,Supplies and Services,348037,Subsistence E348,07-May-2018,000007336720941,BURGER KING,5814,Subsistence,6.89,0.00,6.89
Children and Young Peoples Services,Head of Education and Skills,078100,Curric and Professional Development,Supplies and Services,312011,Newspapers books and periodicals E312,07-May-2018,000007336720963,Amazon UK Marketplace,5942,Books-school library,22.99,0.00,22.99
Resources,Digital and Customer Services,065335,School Services - Implementations,Supplies and Services,304639,Equipment and Materials,07-May-2018,000007336720985,Amazon UK Marketplace,5942,Technicians-supplies,35.00,0.00,35.00
Regeneration and Local Services,Culture & Sport,011060,Hardwick Park Catering,Supplies and Services,324117,Provisions E324,07-May-2018,000007336721015,SAINSBURYS (2303),5411,Catering costs - provisions,22.40,0.00,22.40
Regeneration and Local Services,Culture & Sport,011060,Hardwick Park Catering,Supplies and Services,324117,Provisions E324,07-May-2018,000007336721017,SAINSBURYS (2303),5411,Catering costs - provisions,11.20,0.00,11.20
Children and Young Peoples Services,Head of Childrens Social Care,085333,Coxhoe Satelite Home,Supplies and Services,312011,Newspapers books and periodicals E312,07-May-2018,000007336721027,Amazon EU,5969,Books-school library,13.00,0.00,13.00
Regeneration and Local Services,Economic Development and Housing,030692,Durham Dales Centre - Management and Admin,Supplies and Services,324117,Provisions E324,07-May-2018,000007336721109,SCOTMID CO-OP STANHOPE,5411,Catering costs - provisions,8.82,0.00,8.82
Regeneration and Local Services,Culture & Sport,054812,Gala Theatre - Catering etc,Supplies and Services,324117,Provisions E324,07-May-2018,000007340088515,BATLEYS PERTH,5300,Catering costs - provisions,59.76,9.96,49.80
Regeneration and Local Services,Culture & Sport,054812,Gala Theatre - Catering etc,Supplies and Services,324117,Provisions E324,07-May-2018,000007340088515 - 1,BATLEYS PERTH,5300,Catering costs - provisions,66.22,,66.22
Resources,Internal Audit and Insurance,065104,Internal Audit,Employees,040149,Recruitment Instruction and Training,08-May-2018,000007336720535,THE INST OF INT AUDITO,8398,Training-all costs,9.17,0.00,9.17
Regeneration and Local Services,Economic Development and Housing,030699,Business Growth and Innovation General,Supplies and Services,304403,Equipment and Materials,08-May-2018,000007336720603,MEETEDGAR MONTHLY,5734,Other consumables,1.00,0.00,1.00
Regeneration and Local Services,Spatial Policy Planning Assets & Environment,031200,North Pennines Core,Transport,235057,Public Transport,08-May-2018,000007336720943,NS SCHIPHOL,4112,Staff travelling,0.40,0.00,0.40
Resources,Digital and Customer Services,065335,School Services - Implementations,Supplies and Services,304639,Equipment and Materials,08-May-2018,000007336720987,GEDAT Datentechnik Gmb,5045,Technicians-supplies,2.01,0.00,2.01
Regeneration and Local Services,Economic Development and Housing,030554,International Relations,Transport,235057,Public Transport,08-May-2018,000007336721055,EUROWINGS 104B4KP4L_1437,4511,Staff travelling,0.73,0.00,0.73
Regeneration and Local Services,Economic Development and Housing,030554,International Relations,Transport,235057,Public Transport,08-May-2018,000007336721057,EUROWINGS 104UCMUVJ_1437,4511,Staff travelling,9.48,0.00,9.48
Regeneration and Local Services,Direct Services,021242,Catering - County Hall,Supplies and Services,324117,Provisions E324,08-May-2018,000007340088405,TESCO STORES 2916,5411,Catering costs - provisions,4.00,0.00,4.00
Children and Young Peoples Services,Head of Education and Skills,071801,Selby Cottage Childcare Centre,Supplies and Services,304999,Equipment and Materials,08-May-2018,000007340088407,Amazon Prime,5968,Misc equipment tools and materials,7.99,0.00,7.99
Children and Young Peoples Services,Head of Education and Skills,071801,Selby Cottage Childcare Centre,Supplies and Services,304259,Equipment and Materials,08-May-2018,000007340088409,WILKO RETAIL LIMIT,5722,Equipment-purchase and rental,5.00,0.00,5.00
Children and Young Peoples Services,Head of Education and Skills,071801,Selby Cottage Childcare Centre,Supplies and Services,324117,Provisions E324,08-May-2018,000007340088411,TESCO STORES 2278,5411,Catering costs - provisions,5.59,0.00,5.59
Resources,Digital and Customer Services,069010,Administration,Transport,235057,Public Transport,08-May-2018,000007340088413,OYSTER RENEW WEB,4112,Staff travelling,50.00,0.00,50.00
Regeneration and Local Services,Direct Services,010341,Nei.Prot - N. Wardens,Supplies and Services,342033,Computers and Communications,08-May-2018,000007340088417,WWW.MCSCOM.CO.UK,7372,Computer hardware,80.34,13.39,66.95
Regeneration and Local Services,Economic Development and Housing,031576,B& B - Temp Accom,Supplies and Services,364320,Grants to Voluntary Organisations,08-May-2018,000007340088421,HOTEL 52,7011,Accommodation assistance,70.00,0.00,70.00
Regeneration and Local Services,Economic Development and Housing,030732,Rural Employability Project - South Durham,Supplies and Services,304259,Equipment and Materials,08-May-2018,000007340088435,WWW.DURHAM.GOV.UK,9399,Equipment-purchase and rental,20.00,0.00,20.00
Regeneration and Local Services,Economic Development and Housing,030699,Business Growth and Innovation General,Employees,040149,Recruitment Instruction and Training,08-May-2018,000007340088453,WWW.CIM.CO.UK,8999,Training-all costs,480.00,80.00,400.00
Children and Young Peoples Services,Head of Childrens Social Care,085342,9 Cedar Drive Aycliffe,Supplies and Services,324117,Provisions E324,08-May-2018,000007340088457,TESCO STORES 2916,5411,Catering costs - provisions,213.97,0.00,213.97
Regeneration and Local Services,Direct Services,021242,Catering - County Hall,Supplies and Services,324117,Provisions E324,08-May-2018,000007340088471,FREEMAN CATERING BUTCH,5422,Catering costs - provisions,234.13,0.00,234.13
Regeneration and Local Services,Direct Services,021242,Catering - County Hall,Supplies and Services,324117,Provisions E324,08-May-2018,000007340088473,JR HOLLAND FOODSERVICE,5422,Catering costs - provisions,90.81,0.00,90.81
Regeneration and Local Services,Direct Services,021242,Catering - County Hall,Supplies and Services,324117,Provisions E324,08-May-2018,000007340088475,JR HOLLAND FOODSERVICE,5422,Catering costs - provisions,34.27,0.00,34.27
Regeneration and Local Services,Direct Services,021242,Catering - County Hall,Supplies and Services,324117,Provisions E324,08-May-2018,000007340088477,JR HOLLAND FOODSERVICE,5422,Catering costs - provisions,23.28,0.00,23.28
Regeneration and Local Services,Direct Services,021242,Catering - County Hall,Supplies and Services,324117,Provisions E324,08-May-2018,000007340088481,JR HOLLAND FOODSERVICE,5422,Catering costs - provisions,13.20,0.00,13.20
Regeneration and Local Services,Direct Services,021242,Catering - County Hall,Supplies and Services,324117,Provisions E324,08-May-2018,000007340088483,JR HOLLAND FOODSERVICE,5422,Catering costs - provisions,6.94,0.00,6.94
Resources,Digital and Customer Services,065461,Business Support,Supplies and Services,372009,Subscriptions E372,08-May-2018,000007340088497,NOMINET UK,5734,Subscriptions 372009,27.00,4.50,22.50
Resources,Digital and Customer Services,065461,Business Support,Supplies and Services,372009,Subscriptions E372,08-May-2018,000007340088503,NOMINET UK,5734,Subscriptions 372009,13.50,2.25,11.25
Resources,Digital and Customer Services,065461,Business Support,Supplies and Services,372009,Subscriptions E372,08-May-2018,000007340088505,WEB NETWORKSOLUTIONS,5968,Subscriptions 372009,101.41,0.00,101.41
Regeneration and Local Services,Economic Development and Housing,030737,Durham Works Flexible Fund,Transport,235057,Public Transport,08-May-2018,000007340088511,ARRIVA NORTH EAST,4131,Staff travelling,7.00,0.00,7.00
Regeneration and Local Services,Direct Services,021242,Catering - County Hall,Supplies and Services,324117,Provisions E324,08-May-2018,000007340088525,LIDL UK DURHAM,5411,Catering costs - provisions,26.45,0.00,26.45
Regeneration and Local Services,Direct Services,021242,Catering - County Hall,Supplies and Services,324117,Provisions E324,08-May-2018,000007340088527,CO-OP GROUP FOOD,5411,Catering costs - provisions,6.50,0.00,6.50
Children and Young Peoples Services,Head of Childrens Social Care,085511,Emergency Duty Team,Supplies and Services,352001,Conference Expenses,08-May-2018,000007340088529,HOTEL 52,7011,Conferencesseminars fees etc,70.00,0.00,70.00
Children and Young Peoples Services,Head of Childrens Social Care,085333,Coxhoe Satelite Home,Supplies and Services,324117,Provisions E324,08-May-2018,000007340088543,CO-OP GROUP 310016,5411,Catering costs - provisions,8.80,0.00,8.80
Children and Young Peoples Services,Head of Childrens Social Care,085334,West Rainton Satelite Home,Supplies and Services,312011,Newspapers books and periodicals E312,08-May-2018,000007340088559,Amazon UK Marketplace,5942,Books-school library,3.95,0.00,3.95
Children and Young Peoples Services,Head of Childrens Social Care,085334,West Rainton Satelite Home,Supplies and Services,312011,Newspapers books and periodicals E312,08-May-2018,000007340088561,Amazon UK Marketplace,5942,Books-school library,10.45,0.00,10.45
Children and Young Peoples Services,Head of Childrens Social Care,085334,West Rainton Satelite Home,Supplies and Services,384999,Miscellaneous Expenses,08-May-2018,000007340088563,THE YORKSHIRE LINE,5949,Other expenses,226.50,0.00,226.50
Children and Young Peoples Services,Head of Childrens Social Care,085334,West Rainton Satelite Home,Supplies and Services,304259,Equipment and Materials,08-May-2018,000007340088565,B & Q 1343,5211,Equipment-purchase and rental,44.00,0.00,44.00
Children and Young Peoples Services,Head of Childrens Social Care,085334,West Rainton Satelite Home,Supplies and Services,328041,Clothing uniforms and laundry E328,08-May-2018,000007340088573,B&M RETAIL LTD,5310,Clothing uniforms and laundry,31.62,0.00,31.62
Regeneration and Local Services,Economic Development and Housing,030749,Employability - Youth Contract,Transport,235057,Public Transport,08-May-2018,000007340088597,ARRIVA NORTH EAST,4131,Staff travelling,6.50,0.00,6.50
Regeneration and Local Services,Economic Development and Housing,030749,Employability - Youth Contract,Transport,235057,Public Transport,08-May-2018,000007340088599,GO NORTH EAST LIMITED,4131,Staff travelling,6.50,0.00,6.50
Children and Young Peoples Services,Head of Education and Skills,071732,Dean Bank Childcare,Supplies and Services,312011,Newspapers books and periodicals E312,08-May-2018,000007340088605,Amazon EU,5969,Books-school library,36.00,0.00,36.00
Children and Young Peoples Services,Head of Education and Skills,071732,Dean Bank Childcare,Supplies and Services,324117,Provisions E324,08-May-2018,000007340088607,JR HOLLAND FOODSERVICE,5422,Catering costs - provisions,86.84,0.00,86.84
Children and Young Peoples Services,Head of Education and Skills,071732,Dean Bank Childcare,Supplies and Services,304259,Equipment and Materials,08-May-2018,000007340088611,WILKO.COM,5722,Equipment-purchase and rental,6.00,0.00,6.00
Children and Young Peoples Services,Head of Education and Skills,071732,Dean Bank Childcare,Supplies and Services,324117,Provisions E324,08-May-2018,000007340088613,ASDA GROCERIES ONLINE,5411,Catering costs - provisions,53.89,0.00,53.89
Children and Young Peoples Services,Head of Education and Skills,071732,Dean Bank Childcare,Supplies and Services,324117,Provisions E324,08-May-2018,000007340088617,ASDA GROCERIES ONLINE,5411,Catering costs - provisions,50.93,0.00,50.93
Children and Young Peoples Services,Head of Education and Skills,071732,Dean Bank Childcare,Supplies and Services,328041,Clothing uniforms and laundry E328,08-May-2018,000007340088621,B & M RETAIL,5310,Clothing uniforms and laundry,50.69,0.00,50.69
Children and Young Peoples Services,Head of Education and Skills,071732,Dean Bank Childcare,Supplies and Services,324117,Provisions E324,08-May-2018,000007340088625,CO-OP GROUP 010503,5411,Catering costs - provisions,9.79,0.00,9.79
Children and Young Peoples Services,Head of Education and Skills,071732,Dean Bank Childcare,Supplies and Services,324117,Provisions E324,08-May-2018,000007340088631,ASDA GROCERIES ONLINE,5411,Catering costs - provisions,-0.30,0.00,-0.30
Children and Young Peoples Services,Head of Education and Skills,071903,EYDCP-Sustainability EDS,Supplies and Services,328041,Clothing uniforms and laundry E328,08-May-2018,000007340088653,THE WORKS,5310,Clothing uniforms and laundry,9.00,0.00,9.00
Children and Young Peoples Services,"Head of Early Help, Inclusion and Vulnerable Children",071445,Chester le Street One Point Hub,Supplies and Services,304259,Equipment and Materials,08-May-2018,000007340088659,WWW.DURHAM.GOV.UK,9399,Equipment-purchase and rental,24.00,0.00,24.00
Regeneration and Local Services,Culture & Sport,054813,Gala Theatre - Technical,Supplies and Services,312011,Newspapers books and periodicals E312,08-May-2018,000007340088661,Amazon UK Marketplace,5942,Books-school library,6.45,0.00,6.45
Regeneration and Local Services,Culture & Sport,054813,Gala Theatre - Technical,Supplies and Services,312011,Newspapers books and periodicals E312,08-May-2018,000007340088663,Amazon UK Marketplace,5942,Books-school library,11.50,0.00,11.50
Regeneration and Local Services,Culture & Sport,054813,Gala Theatre - Technical,Supplies and Services,312011,Newspapers books and periodicals E312,08-May-2018,000007340088667,Amazon UK Marketplace,5942,Books-school library,85.79,0.00,85.79
Regeneration and Local Services,Culture & Sport,054813,Gala Theatre - Technical,Supplies and Services,312011,Newspapers books and periodicals E312,08-May-2018,000007340088669,Amazon EU,5969,Books-school library,499.00,0.00,499.00
Regeneration and Local Services,Culture & Sport,011060,Hardwick Park Catering,Supplies and Services,324117,Provisions E324,08-May-2018,000007340088677,FREEMAN CATERING BUTCH,5422,Catering costs - provisions,82.60,0.00,82.60
Regeneration and Local Services,Culture & Sport,011060,Hardwick Park Catering,Supplies and Services,324117,Provisions E324,08-May-2018,000007340088679,FREEMAN CATERING BUTCH,5422,Catering costs - provisions,25.89,0.00,25.89
Regeneration and Local Services,Culture & Sport,011060,Hardwick Park Catering,Supplies and Services,324117,Provisions E324,08-May-2018,000007340088681,FREEMAN CATERING BUTCH,5422,Catering costs - provisions,23.40,0.00,23.40
Regeneration and Local Services,Culture & Sport,011060,Hardwick Park Catering,Supplies and Services,324117,Provisions E324,08-May-2018,000007340088683,JR HOLLAND FOODSERVICE,5422,Catering costs - provisions,39.41,0.00,39.41
Regeneration and Local Services,Culture & Sport,011060,Hardwick Park Catering,Supplies and Services,324117,Provisions E324,08-May-2018,000007340088685,JR HOLLAND FOODSERVICE,5422,Catering costs - provisions,38.12,0.00,38.12
Regeneration and Local Services,Culture & Sport,054815,Gala Theatre Stage School,Supplies and Services,312011,Newspapers books and periodicals E312,08-May-2018,000007340088701,Amazon UK Marketplace,5942,Books-school library,7.48,0.00,7.48
Regeneration and Local Services,Culture & Sport,054815,Gala Theatre Stage School,Supplies and Services,312011,Newspapers books and periodicals E312,08-May-2018,000007340088703,Amazon UK Marketplace,5942,Books-school library,4.99,0.00,4.99
Regeneration and Local Services,Culture & Sport,054815,Gala Theatre Stage School,Supplies and Services,312011,Newspapers books and periodicals E312,08-May-2018,000007340088705,Amazon UK Marketplace,5942,Books-school library,15.50,0.00,15.50
Regeneration and Local Services,Culture & Sport,054815,Gala Theatre Stage School,Supplies and Services,312011,Newspapers books and periodicals E312,08-May-2018,000007340088707,Amazon UK Marketplace,5942,Books-school library,8.55,0.00,8.55
Regeneration and Local Services,Culture & Sport,054815,Gala Theatre Stage School,Supplies and Services,312011,Newspapers books and periodicals E312,08-May-2018,000007340088709,Amazon UK Marketplace,5942,Books-school library,11.98,0.00,11.98
Regeneration and Local Services,Culture & Sport,054815,Gala Theatre Stage School,Supplies and Services,312011,Newspapers books and periodicals E312,08-May-2018,000007340088711,Amazon UK Marketplace,5942,Books-school library,13.25,0.00,13.25
Children and Young Peoples Services,Head of Childrens Social Care,085332,Middlestone Moor CU,Supplies and Services,324117,Provisions E324,08-May-2018,000007340088721,HOME BARGAINS SPENNYMO,5251,Catering costs - provisions,9.49,0.00,9.49
Children and Young Peoples Services,Head of Childrens Social Care,085332,Middlestone Moor CU,Supplies and Services,324117,Provisions E324,08-May-2018,000007340088723,ALDI 59 774,5411,Catering costs - provisions,56.08,0.00,56.08
Regeneration and Local Services,Direct Services,021234,Catering - Locomotion,Supplies and Services,324117,Provisions E324,08-May-2018,000007340088727,FREEMAN CATERING BUTCH,5422,Catering costs - provisions,94.38,0.00,94.38
Regeneration and Local Services,Direct Services,021234,Catering - Locomotion,Supplies and Services,324117,Provisions E324,08-May-2018,000007340088731,JR HOLLAND FOODSERVICE,5422,Catering costs - provisions,78.81,0.00,78.81
Regeneration and Local Services,Direct Services,021234,Catering - Locomotion,Supplies and Services,324117,Provisions E324,08-May-2018,000007340088735,JR HOLLAND FOODSERVICE,5422,Catering costs - provisions,3.48,0.00,3.48
Regeneration and Local Services,Direct Services,010525,Catering - Green Lane,Supplies and Services,324117,Provisions E324,08-May-2018,000007340088747,FREEMAN CATERING BUTCH,5422,Catering costs - provisions,54.81,0.00,54.81
Regeneration and Local Services,Direct Services,010525,Catering - Green Lane,Supplies and Services,324117,Provisions E324,08-May-2018,000007340088749,FREEMAN CATERING BUTCH,5422,Catering costs - provisions,51.28,0.00,51.28
Regeneration and Local Services,Direct Services,010525,Catering - Green Lane,Supplies and Services,324117,Provisions E324,08-May-2018,000007340088751,JR HOLLAND FOODSERVICE,5422,Catering costs - provisions,37.58,0.00,37.58
Regeneration and Local Services,Direct Services,010367,C&G - South Grounds Maintenance,Supplies and Services,304259,Equipment and Materials,08-May-2018,000007340088809,MACHINE MART LTD,5722,Equipment-purchase and rental,28.75,4.79,23.96
Regeneration and Local Services,Economic Development and Housing,030692,Durham Dales Centre - Management and Admin,Supplies and Services,324117,Provisions E324,08-May-2018,000007340088819,JR HOLLAND FOODSERVICE,5422,Catering costs - provisions,89.03,0.00,89.03
Regeneration and Local Services,Economic Development and Housing,030692,Durham Dales Centre - Management and Admin,Supplies and Services,324117,Provisions E324,08-May-2018,000007340088823,JR HOLLAND FOODSERVICE,5422,Catering costs - provisions,30.47,0.00,30.47
Regeneration and Local Services,Direct Services,010367,C&G - South Grounds Maintenance,Supplies and Services,304259,Equipment and Materials,08-May-2018,000007340088829,SCREWFIX,5211,Equipment-purchase and rental,54.97,0.00,54.97
Adult and Health Services,Head of Adults,055643,Hawthorn House LD Respite Unit,Supplies and Services,324117,Provisions E324,08-May-2018,000007340088833,FREEMAN CATERING BUTCH,5422,Catering costs - provisions,29.80,0.00,29.80
Adult and Health Services,Head of Adults,055643,Hawthorn House LD Respite Unit,Supplies and Services,324117,Provisions E324,08-May-2018,000007340088835,JR HOLLAND FOODSERVICE,5422,Catering costs - provisions,12.66,0.00,12.66
Adult and Health Services,Head of Adults,055643,Hawthorn House LD Respite Unit,Supplies and Services,324117,Provisions E324,08-May-2018,000007340088837,JR HOLLAND FOODSERVICE,5422,Catering costs - provisions,3.52,0.00,3.52
Children and Young Peoples Services,Head of Childrens Social Care,085380,Operations Manager Adoption & Fostering,Supplies and Services,324117,Provisions E324,08-May-2018,000007340088853,ASDA STORES,5411,Catering costs - provisions,29.14,0.00,29.14
Children and Young Peoples Services,Head of Childrens Social Care,085380,Operations Manager Adoption & Fostering,Supplies and Services,324117,Provisions E324,08-May-2018,000007340088855,LIDL UK LANGLEY MOOR,5411,Catering costs - provisions,1.98,0.00,1.98
Regeneration and Local Services,Direct Services,010301,C&G - North Grounds Maintenance,Supplies and Services,324117,Provisions E324,08-May-2018,000007340088861,J VAN VLIET GATESHEAD,5399,Catering costs - provisions,150.96,25.16,125.80
Regeneration and Local Services,Direct Services,010301,C&G - North Grounds Maintenance,Supplies and Services,304403,Equipment and Materials,08-May-2018,000007340088865,BESCOL,5231,Other consumables,69.49,11.58,57.91
Regeneration and Local Services,Direct Services,010301,C&G - North Grounds Maintenance,Supplies and Services,304403,Equipment and Materials,08-May-2018,000007340088867,BESCOL,5231,Other consumables,21.62,3.60,18.02
Children and Young Peoples Services,"Head of Early Help, Inclusion and Vulnerable Children",074000,TTF-Attachment and Results,Supplies and Services,312011,Newspapers books and periodicals E312,08-May-2018,000007340088873,Amazon UK Marketplace,5942,Books-school library,1.85,0.00,1.85
Children and Young Peoples Services,"Head of Early Help, Inclusion and Vulnerable Children",074000,TTF-Attachment and Results,Supplies and Services,312011,Newspapers books and periodicals E312,08-May-2018,000007340088875,Amazon UK Marketplace,5942,Books-school library,10.99,0.00,10.99
Children and Young Peoples Services,"Head of Early Help, Inclusion and Vulnerable Children",074000,TTF-Attachment and Results,Supplies and Services,312011,Newspapers books and periodicals E312,08-May-2018,000007340088877,Amazon UK Marketplace,5942,Books-school library,10.99,0.00,10.99
Children and Young Peoples Services,"Head of Early Help, Inclusion and Vulnerable Children",074000,TTF-Attachment and Results,Supplies and Services,312011,Newspapers books and periodicals E312,08-May-2018,000007340088879,Amazon UK Marketplace,5942,Books-school library,10.99,0.00,10.99
Children and Young Peoples Services,"Head of Early Help, Inclusion and Vulnerable Children",074000,TTF-Attachment and Results,Supplies and Services,324117,Provisions E324,08-May-2018,000007340088881,ASDA GEORGE COM LEEDS,5411,Catering costs - provisions,50.95,8.49,42.46
Children and Young Peoples Services,"Head of Early Help, Inclusion and Vulnerable Children",074000,TTF-Attachment and Results,Supplies and Services,324117,Provisions E324,08-May-2018,000007340088883,ASDA GEORGE COM LEEDS,5411,Catering costs - provisions,32.95,5.49,27.46
Children and Young Peoples Services,"Head of Early Help, Inclusion and Vulnerable Children",074000,TTF-Attachment and Results,Supplies and Services,324117,Provisions E324,08-May-2018,000007340088885,ASDA GEORGE COM LEEDS,5411,Catering costs - provisions,32.95,5.49,27.46
Children and Young Peoples Services,"Head of Early Help, Inclusion and Vulnerable Children",074000,TTF-Attachment and Results,Supplies and Services,324117,Provisions E324,08-May-2018,000007340088887,ASDA GEORGE COM LEEDS,5411,Catering costs - provisions,32.95,5.49,27.46
Children and Young Peoples Services,"Head of Early Help, Inclusion and Vulnerable Children",074000,TTF-Attachment and Results,Supplies and Services,324117,Provisions E324,08-May-2018,000007340088889,ASDA GEORGE COM LEEDS,5411,Catering costs - provisions,32.95,5.49,27.46
Children and Young Peoples Services,Childrens Services Operational Support,052986,CYPS - Locality and Operational Support,Supplies and Services,304259,Equipment and Materials,08-May-2018,000007340088907,HARTLEPOOL BC CNP,9399,Equipment-purchase and rental,19.02,3.17,15.85
Children and Young Peoples Services,Childrens Services Operational Support,052986,CYPS - Locality and Operational Support,Supplies and Services,304259,Equipment and Materials,08-May-2018,000007340088907 - 1,HARTLEPOOL BC CNP,9399,Equipment-purchase and rental,9.98,,9.98
Regeneration and Local Services,Culture & Sport,054235,Bishop Auckland Town Hall Cafe,Supplies and Services,324117,Provisions E324,08-May-2018,000007340088909,JR HOLLAND FOODSERVICE,5422,Catering costs - provisions,22.30,0.00,22.30
Regeneration and Local Services,Direct Services,021324,Catering - Meadowfield,Supplies and Services,324117,Provisions E324,08-May-2018,000007340088917,FREEMAN CATERING BUTCH,5422,Catering costs - provisions,87.23,0.00,87.23
Regeneration and Local Services,Direct Services,021324,Catering - Meadowfield,Supplies and Services,324117,Provisions E324,08-May-2018,000007340088919,FREEMAN CATERING BUTCH,5422,Catering costs - provisions,55.57,0.00,55.57
Regeneration and Local Services,Direct Services,021324,Catering - Meadowfield,Supplies and Services,324117,Provisions E324,08-May-2018,000007340088921,JR HOLLAND FOODSERVICE,5422,Catering costs - provisions,40.82,0.00,40.82
Regeneration and Local Services,Direct Services,021324,Catering - Meadowfield,Supplies and Services,324117,Provisions E324,08-May-2018,000007340088923,JR HOLLAND FOODSERVICE,5422,Catering costs - provisions,9.90,0.00,9.90
Children and Young Peoples Services,Head of Childrens Social Care,085331,New Lea Childrens Home,Supplies and Services,308011,Furniture,08-May-2018,000007340088983,EDS BEDS LTD,5712,Furniture repair and replacement,440.00,0.00,440.00
Resources,Internal Audit and Insurance,065104,Internal Audit,Supplies and Services,312009,Newspapers books and periodicals E312,08-May-2018,000007340088985,WWW.OSBORNEBOOKS.CO.UK,5964,Newspapers books and periodicals,43.70,0.00,43.70
Regeneration and Local Services,Direct Services,021235,Catering - Wharton Park,Supplies and Services,324117,Provisions E324,08-May-2018,000007340088993,JR HOLLAND FOODSERVICE,5422,Catering costs - provisions,18.20,0.00,18.20
Adult and Health Services,Head of Adults,055309,Peterlee Pathways,Supplies and Services,304259,Equipment and Materials,08-May-2018,000007340089015,WILKO RETAIL LIMIT,5722,Equipment-purchase and rental,15.00,0.00,15.00
Regeneration and Local Services,Economic Development and Housing,030737,Durham Works Flexible Fund,Transport,235057,Public Transport,08-May-2018,000007340089031,GO NORTH EAST LIMITED,4131,Staff travelling,105.00,0.00,105.00
Regeneration and Local Services,Economic Development and Housing,030737,Durham Works Flexible Fund,Transport,235057,Public Transport,08-May-2018,000007340089033,GO NORTH EAST LIMITED,4131,Staff travelling,70.00,0.00,70.00
Children and Young Peoples Services,Head of Childrens Social Care,085801,CDYOS - Support,Supplies and Services,304259,Equipment and Materials,08-May-2018,000007340089043,GRO HM PASSPORT OFFICE,9399,Equipment-purchase and rental,9.25,0.00,9.25
Resources,Digital and Customer Services,065303,Design & Print - Design,Supplies and Services,342033,Computers and Communications,08-May-2018,000007345088707,ISSUU,5045,Computer hardware,311.45,0.00,311.45
Regeneration and Local Services,Economic Development and Housing,031576,B& B - Temp Accom,Supplies and Services,364320,Grants to Voluntary Organisations,08-May-2018,000007345088923,PREMIER INN,3811,Accommodation assistance,80.00,13.33,66.67
Regeneration and Local Services,Economic Development and Housing,031576,B& B - Temp Accom,Supplies and Services,364320,Grants to Voluntary Organisations,08-May-2018,000007345088927,PREMIER INN,3811,Accommodation assistance,123.50,20.58,102.92
Regeneration and Local Services,Economic Development and Housing,031576,B& B - Temp Accom,Supplies and Services,364320,Grants to Voluntary Organisations,08-May-2018,000007345088979,PREMIER INN,3811,Accommodation assistance,151.00,25.17,125.83
Regeneration and Local Services,Culture & Sport,011060,Hardwick Park Catering,Supplies and Services,324117,Provisions E324,08-May-2018,000007345089147,BATLEYS PERTH,5300,Catering costs - provisions,279.36,46.56,232.80
Regeneration and Local Services,Culture & Sport,011060,Hardwick Park Catering,Supplies and Services,324117,Provisions E324,08-May-2018,000007345089147 - 1,BATLEYS PERTH,5300,Catering costs - provisions,106.76,,106.76
Regeneration and Local Services,Direct Services,021234,Catering - Locomotion,Supplies and Services,324117,Provisions E324,08-May-2018,000007345089239,BATLEYS PERTH,5300,Catering costs - provisions,59.58,9.93,49.65
Regeneration and Local Services,Direct Services,021234,Catering - Locomotion,Supplies and Services,324117,Provisions E324,08-May-2018,000007345089239 - 1,BATLEYS PERTH,5300,Catering costs - provisions,48.70,,48.70
Regeneration and Local Services,Direct Services,010525,Catering - Green Lane,Supplies and Services,324117,Provisions E324,08-May-2018,000007345089307,BATLEYS PERTH,5300,Catering costs - provisions,118.20,19.70,98.50
Regeneration and Local Services,Direct Services,010525,Catering - Green Lane,Supplies and Services,324117,Provisions E324,08-May-2018,000007345089307 - 1,BATLEYS PERTH,5300,Catering costs - provisions,113.45,,113.45
Regeneration and Local Services,Direct Services,010525,Catering - Green Lane,Supplies and Services,324117,Provisions E324,08-May-2018,000007345089313,BATLEYS PERTH,5300,Catering costs - provisions,5.55,0.00,5.55
Regeneration and Local Services,Direct Services,010525,Catering - Green Lane,Supplies and Services,324117,Provisions E324,08-May-2018,000007345089317,BATLEYS PERTH,5300,Catering costs - provisions,15.00,0.00,15.00
Regeneration and Local Services,Economic Development and Housing,030690,Durham Dales Centre - Tourist Information Centre,Supplies and Services,328041,Clothing uniforms and laundry E328,08-May-2018,000007345089537,WWW.AKHOSIERY.CO.UK,5621,Clothing uniforms and laundry,649.74,108.29,541.45
Regeneration and Local Services,Economic Development and Housing,030690,Durham Dales Centre - Tourist Information Centre,Supplies and Services,328041,Clothing uniforms and laundry E328,08-May-2018,000007345089537 - 1,WWW.AKHOSIERY.CO.UK,5621,Clothing uniforms and laundry,50.88,,50.88
Regeneration and Local Services,Culture & Sport,054235,Bishop Auckland Town Hall Cafe,Supplies and Services,324117,Provisions E324,08-May-2018,000007345089557,BATLEYS PERTH,5300,Catering costs - provisions,32.22,5.37,26.85
Regeneration and Local Services,Culture & Sport,054235,Bishop Auckland Town Hall Cafe,Supplies and Services,324117,Provisions E324,08-May-2018,000007345089557 - 1,BATLEYS PERTH,5300,Catering costs - provisions,92.72,,92.72
Regeneration and Local Services,Direct Services,021324,Catering - Meadowfield,Supplies and Services,324117,Provisions E324,08-May-2018,000007345089565,BATLEYS PERTH,5300,Catering costs - provisions,66.30,11.05,55.25
Regeneration and Local Services,Direct Services,021324,Catering - Meadowfield,Supplies and Services,324117,Provisions E324,08-May-2018,000007345089565 - 1,BATLEYS PERTH,5300,Catering costs - provisions,90.55,,90.55
Regeneration and Local Services,Economic Development and Housing,031576,B& B - Temp Accom,Supplies and Services,364320,Grants to Voluntary Organisations,08-May-2018,000007345089575,PREMIER INN,3811,Accommodation assistance,144.00,24.00,120.00
Resources,Digital and Customer Services,065461,Business Support,Supplies and Services,372009,Subscriptions E372,09-May-2018,000007340088507,WEB NETWORKSOLUTIONS,5968,Subscriptions 372009,2.79,0.00,2.79
Children and Young Peoples Services,Head of Childrens Social Care,085334,West Rainton Satelite Home,Supplies and Services,312011,Newspapers books and periodicals E312,09-May-2018,000007340088569,Amazon UK Marketplace,5942,Books-school library,3.88,0.00,3.88
Children and Young Peoples Services,Head of Childrens Social Care,085334,West Rainton Satelite Home,Supplies and Services,312011,Newspapers books and periodicals E312,09-May-2018,000007340088571,Amazon UK Marketplace,5942,Books-school library,2.98,0.00,2.98
Children and Young Peoples Services,Head of Education and Skills,071801,Selby Cottage Childcare Centre,Supplies and Services,324117,Provisions E324,09-May-2018,000007345088683,TESCO STORES 2278,5411,Catering costs - provisions,6.25,0.00,6.25
Children and Young Peoples Services,Head of Education and Skills,071801,Selby Cottage Childcare Centre,Supplies and Services,304259,Equipment and Materials,09-May-2018,000007345088687,WILKO RETAIL LIMIT,5722,Equipment-purchase and rental,16.00,0.00,16.00
Resources,Digital and Customer Services,065487,ICT Telephony Recharges,Supplies and Services,344033,Telephones,09-May-2018,000007345088711,Amazon UK Marketplace,5942,Telephones general-all costs,49.39,8.23,41.16
Resources,Digital and Customer Services,065487,ICT Telephony Recharges,Supplies and Services,344033,Telephones,09-May-2018,000007345088715,Amazon UK Marketplace,5942,Telephones general-all costs,49.39,8.23,41.16
Resources,Digital and Customer Services,065487,ICT Telephony Recharges,Supplies and Services,344033,Telephones,09-May-2018,000007345088717,Amazon UK Marketplace,5942,Telephones general-all costs,31.43,5.24,26.19
Regeneration and Local Services,Economic Development and Housing,031576,B& B - Temp Accom,Supplies and Services,364320,Grants to Voluntary Organisations,09-May-2018,000007345088733,HOTEL 52,7011,Accommodation assistance,630.00,0.00,630.00
Regeneration and Local Services,Culture & Sport,011252,Community Physical Activity Programmes,Supplies and Services,304259,Equipment and Materials,09-May-2018,000007345088765,ENGLAND ATHLETICS,5941,Equipment-purchase and rental,160.00,0.00,160.00
Regeneration and Local Services,Culture & Sport,011252,Community Physical Activity Programmes,Supplies and Services,304999,Equipment and Materials,09-May-2018,000007345088769,Amazon Prime,5968,Misc equipment tools and materials,-7.99,0.00,-7.99
Resources,Finance & Transactional Services,065180,Collections,Income 7SUM,720130,Fees and Charges,09-May-2018,000007345088791,WWW.MONEYCLAIM.GOV,9399,Fees-legal,70.00,0.00,70.00
Adult and Health Services,Head of Adults,052760,OP Management,Income 7SUM,720130,Fees and Charges,09-May-2018,000007345088797,WWW.MONEYCLAIM.GOV,9399,Fees-legal,60.00,0.00,60.00
Adult and Health Services,Head of Adults,052909,Head of Adult Care,Income 7SUM,720130,Fees and Charges,09-May-2018,000007345088799,WWW.MONEYCLAIM.GOV,9399,Fees-legal,922.70,0.00,922.70
Children and Young Peoples Services,Head of Childrens Social Care,085624,Families First Crook,Supplies and Services,304403,Equipment and Materials,09-May-2018,000007345088845,Amazon UK Marketplace,5942,Other consumables,77.96,0.00,77.96
Regeneration and Local Services,Economic Development and Housing,030737,Durham Works Flexible Fund,Supplies and Services,328041,Clothing uniforms and laundry E328,09-May-2018,000007345088847,SCREWFIX DIRECT LT,5211,Clothing uniforms and laundry,25.99,0.00,25.99
Regeneration and Local Services,Direct Services,021242,Catering - County Hall,Supplies and Services,324117,Provisions E324,09-May-2018,000007345088853,WWW.ADELIEFOODS.CO.UK,5499,Catering costs - provisions,250.19,0.00,250.19
Regeneration and Local Services,Direct Services,021242,Catering - County Hall,Supplies and Services,324117,Provisions E324,09-May-2018,000007345088857,WWW.ADELIEFOODS.CO.UK,5499,Catering costs - provisions,247.50,0.00,247.50
Regeneration and Local Services,Direct Services,021242,Catering - County Hall,Supplies and Services,324117,Provisions E324,09-May-2018,000007345088859,WWW.ADELIEFOODS.CO.UK,5499,Catering costs - provisions,226.74,0.00,226.74
Regeneration and Local Services,Direct Services,021242,Catering - County Hall,Supplies and Services,324117,Provisions E324,09-May-2018,000007345088863,WWW.ADELIEFOODS.CO.UK,5499,Catering costs - provisions,204.42,0.00,204.42
Regeneration and Local Services,Direct Services,021242,Catering - County Hall,Supplies and Services,324117,Provisions E324,09-May-2018,000007345088865,WWW.ADELIEFOODS.CO.UK,5499,Catering costs - provisions,204.25,0.00,204.25
Regeneration and Local Services,Direct Services,021242,Catering - County Hall,Supplies and Services,324117,Provisions E324,09-May-2018,000007345088869,WWW.ADELIEFOODS.CO.UK,5499,Catering costs - provisions,192.48,0.00,192.48
Regeneration and Local Services,Direct Services,021242,Catering - County Hall,Supplies and Services,324117,Provisions E324,09-May-2018,000007345088871,WWW.ADELIEFOODS.CO.UK,5499,Catering costs - provisions,192.26,0.00,192.26
Regeneration and Local Services,Direct Services,021242,Catering - County Hall,Supplies and Services,324117,Provisions E324,09-May-2018,000007345088875,WWW.ADELIEFOODS.CO.UK,5499,Catering costs - provisions,153.67,0.00,153.67
Regeneration and Local Services,Direct Services,021242,Catering - County Hall,Supplies and Services,324117,Provisions E324,09-May-2018,000007345088877,WWW.ADELIEFOODS.CO.UK,5499,Catering costs - provisions,143.90,0.00,143.90
Regeneration and Local Services,Direct Services,021242,Catering - County Hall,Supplies and Services,324117,Provisions E324,09-May-2018,000007345088881,WWW.ADELIEFOODS.CO.UK,5499,Catering costs - provisions,138.88,0.00,138.88
Regeneration and Local Services,Direct Services,021242,Catering - County Hall,Supplies and Services,324117,Provisions E324,09-May-2018,000007345088885,WWW.ADELIEFOODS.CO.UK,5499,Catering costs - provisions,134.29,0.00,134.29
Regeneration and Local Services,Direct Services,021242,Catering - County Hall,Supplies and Services,324117,Provisions E324,09-May-2018,000007345088889,WWW.ADELIEFOODS.CO.UK,5499,Catering costs - provisions,116.50,0.00,116.50
Regeneration and Local Services,Direct Services,021242,Catering - County Hall,Supplies and Services,324117,Provisions E324,09-May-2018,000007345088891,WWW.ADELIEFOODS.CO.UK,5499,Catering costs - provisions,112.74,0.00,112.74
Regeneration and Local Services,Direct Services,021242,Catering - County Hall,Supplies and Services,324117,Provisions E324,09-May-2018,000007345088895,WWW.ADELIEFOODS.CO.UK,5499,Catering costs - provisions,90.54,0.00,90.54
Regeneration and Local Services,Direct Services,021242,Catering - County Hall,Supplies and Services,324117,Provisions E324,09-May-2018,000007345088897,WWW.ADELIEFOODS.CO.UK,5499,Catering costs - provisions,78.64,0.00,78.64
Regeneration and Local Services,Direct Services,021242,Catering - County Hall,Supplies and Services,324117,Provisions E324,09-May-2018,000007345088901,WWW.ADELIEFOODS.CO.UK,5499,Catering costs - provisions,65.92,0.00,65.92
Regeneration and Local Services,Direct Services,021242,Catering - County Hall,Supplies and Services,324117,Provisions E324,09-May-2018,000007345088903,WWW.ADELIEFOODS.CO.UK,5499,Catering costs - provisions,28.36,0.00,28.36
Regeneration and Local Services,Direct Services,010367,C&G - South Grounds Maintenance,Supplies and Services,304259,Equipment and Materials,09-May-2018,000007345088913,ARBOR TIMBER & BUILDER,5211,Equipment-purchase and rental,7.00,1.17,5.83
Children and Young Peoples Services,Head of Childrens Social Care,085361,LAC & Permanence Team 1,Supplies and Services,384999,Miscellaneous Expenses,09-May-2018,000007345088957,HM PASSPORT OFFICE,9399,Other expenses,98.00,0.00,98.00
Children and Young Peoples Services,Head of Childrens Social Care,085362,LAC & Permanence Team 2,Supplies and Services,384999,Miscellaneous Expenses,09-May-2018,000007345088961,GRO HM PASSPORT OFFICE,9399,Other expenses,46.25,0.00,46.25
Children and Young Peoples Services,Head of Childrens Social Care,085334,West Rainton Satelite Home,Supplies and Services,312011,Newspapers books and periodicals E312,09-May-2018,000007345088983,Amazon UK Marketplace,5942,Books-school library,8.88,0.00,8.88
Children and Young Peoples Services,Head of Childrens Social Care,085334,West Rainton Satelite Home,Supplies and Services,312011,Newspapers books and periodicals E312,09-May-2018,000007345088987,Amazon UK Marketplace,5942,Books-school library,20.98,0.00,20.98
Children and Young Peoples Services,Head of Childrens Social Care,085334,West Rainton Satelite Home,Supplies and Services,312011,Newspapers books and periodicals E312,09-May-2018,000007345088989,Amazon UK Marketplace,5942,Books-school library,2.36,0.00,2.36
Children and Young Peoples Services,Head of Childrens Social Care,085334,West Rainton Satelite Home,Supplies and Services,312011,Newspapers books and periodicals E312,09-May-2018,000007345088993,Amazon UK Marketplace,5942,Books-school library,8.99,0.00,8.99
Children and Young Peoples Services,Head of Childrens Social Care,085334,West Rainton Satelite Home,Supplies and Services,312011,Newspapers books and periodicals E312,09-May-2018,000007345088995,Amazon UK Marketplace,5942,Books-school library,6.99,0.00,6.99
Children and Young Peoples Services,Head of Childrens Social Care,085334,West Rainton Satelite Home,Supplies and Services,312011,Newspapers books and periodicals E312,09-May-2018,000007345088999,HOME BARGAINS,5251,Books-school library,0.12,0.02,0.10
Children and Young Peoples Services,Head of Childrens Social Care,085334,West Rainton Satelite Home,Supplies and Services,312011,Newspapers books and periodicals E312,09-May-2018,000007345088999 - 1,HOME BARGAINS,5251,Books-school library,19.72,,19.72
Children and Young Peoples Services,Head of Childrens Social Care,085334,West Rainton Satelite Home,Supplies and Services,312011,Newspapers books and periodicals E312,09-May-2018,000007345089001,HOME BARGAINS,5251,Books-school library,5.48,0.91,4.57
Children and Young Peoples Services,Head of Childrens Social Care,085334,West Rainton Satelite Home,Supplies and Services,324117,Provisions E324,09-May-2018,000007345089003,TESCO STORES 2371,5411,Catering costs - provisions,17.66,0.00,17.66
Children and Young Peoples Services,Head of Childrens Social Care,085334,West Rainton Satelite Home,Supplies and Services,324117,Provisions E324,09-May-2018,000007345089007,ALDI 12 774,5411,Catering costs - provisions,16.02,2.67,13.35
Children and Young Peoples Services,Head of Childrens Social Care,085334,West Rainton Satelite Home,Supplies and Services,324117,Provisions E324,09-May-2018,000007345089007 - 1,ALDI 12 774,5411,Catering costs - provisions,64.74,,64.74
Children and Young Peoples Services,Head of Childrens Social Care,085334,West Rainton Satelite Home,Supplies and Services,304259,Equipment and Materials,09-May-2018,000007345089009,WILKO DURHAM 426,5722,Equipment-purchase and rental,-32.00,0.00,-32.00
Regeneration and Local Services,Economic Development and Housing,030749,Employability - Youth Contract,Transport,235057,Public Transport,09-May-2018,000007345089017,ARRIVA NORTH EAST,4131,Staff travelling,6.50,0.00,6.50
Regeneration and Local Services,Economic Development and Housing,030749,Employability - Youth Contract,Transport,235057,Public Transport,09-May-2018,000007345089019,ARRIVA NORTH EAST,4131,Staff travelling,6.50,0.00,6.50
Regeneration and Local Services,Economic Development and Housing,030749,Employability - Youth Contract,Transport,235057,Public Transport,09-May-2018,000007345089023,GO NORTH EAST LIMITED,4131,Staff travelling,6.50,0.00,6.50
Regeneration and Local Services,Economic Development and Housing,030749,Employability - Youth Contract,Transport,235057,Public Transport,09-May-2018,000007345089027,GO NORTH EAST LIMITED,4131,Staff travelling,6.50,0.00,6.50
Children and Young Peoples Services,"Head of Early Help, Inclusion and Vulnerable Children",071445,Chester le Street One Point Hub,Supplies and Services,324117,Provisions E324,09-May-2018,000007345089109,BESTWAY WHOLESALE,5451,Catering costs - provisions,30.47,0.00,30.47
Children and Young Peoples Services,"Head of Early Help, Inclusion and Vulnerable Children",085956,Lumley,Supplies and Services,328041,Clothing uniforms and laundry E328,09-May-2018,000007345089117,WWW.ARGOS.CO.UK,5310,Clothing uniforms and laundry,45.93,0.00,45.93
Children and Young Peoples Services,"Head of Early Help, Inclusion and Vulnerable Children",085956,Lumley,Supplies and Services,328041,Clothing uniforms and laundry E328,09-May-2018,000007345089121,VERY,5964,Clothing uniforms and laundry,204.99,0.00,204.99
Children and Young Peoples Services,"Head of Early Help, Inclusion and Vulnerable Children",085955,Auckland,Supplies and Services,324117,Provisions E324,09-May-2018,000007345089123,TESCO STORES 6329,5411,Catering costs - provisions,117.32,0.00,117.32
Regeneration and Local Services,Culture & Sport,054813,Gala Theatre - Technical,Supplies and Services,304259,Equipment and Materials,09-May-2018,000007345089129,Amazon Digital Video,5735,Equipment-purchase and rental,2.49,0.00,2.49
Regeneration and Local Services,Culture & Sport,054813,Gala Theatre - Technical,Supplies and Services,304259,Equipment and Materials,09-May-2018,000007345089133,Amazon Digital Video,5735,Equipment-purchase and rental,16.50,0.00,16.50
Regeneration and Local Services,Culture & Sport,054815,Gala Theatre Stage School,Supplies and Services,312011,Newspapers books and periodicals E312,09-May-2018,000007345089169,Amazon UK Marketplace,5942,Books-school library,31.83,0.00,31.83
Regeneration and Local Services,Culture & Sport,054815,Gala Theatre Stage School,Supplies and Services,312011,Newspapers books and periodicals E312,09-May-2018,000007345089173,Amazon UK Marketplace,5942,Books-school library,21.21,0.00,21.21
Regeneration and Local Services,Culture & Sport,054815,Gala Theatre Stage School,Supplies and Services,312011,Newspapers books and periodicals E312,09-May-2018,000007345089177,Amazon UK Marketplace,5942,Books-school library,8.99,0.00,8.99
Regeneration and Local Services,Culture & Sport,054815,Gala Theatre Stage School,Supplies and Services,312011,Newspapers books and periodicals E312,09-May-2018,000007345089181,Amazon UK Marketplace,5942,Books-school library,10.00,0.00,10.00
Regeneration and Local Services,Culture & Sport,054815,Gala Theatre Stage School,Supplies and Services,312011,Newspapers books and periodicals E312,09-May-2018,000007345089185,Amazon UK Marketplace,5942,Books-school library,3.00,0.00,3.00
Regeneration and Local Services,Culture & Sport,054815,Gala Theatre Stage School,Supplies and Services,312011,Newspapers books and periodicals E312,09-May-2018,000007345089189,Amazon UK Marketplace,5942,Books-school library,3.45,0.00,3.45
Regeneration and Local Services,Culture & Sport,054815,Gala Theatre Stage School,Supplies and Services,312011,Newspapers books and periodicals E312,09-May-2018,000007345089193,Amazon UK Marketplace,5942,Books-school library,11.48,0.00,11.48
Children and Young Peoples Services,Head of Childrens Social Care,085332,Middlestone Moor CU,Supplies and Services,324117,Provisions E324,09-May-2018,000007345089205,TESCO STORES 2916,5411,Catering costs - provisions,17.00,0.00,17.00
Children and Young Peoples Services,Head of Childrens Social Care,085332,Middlestone Moor CU,Supplies and Services,324117,Provisions E324,09-May-2018,000007345089209,ALDI 74 774,5411,Catering costs - provisions,8.62,0.00,8.62
Regeneration and Local Services,Direct Services,021234,Catering - Locomotion,Supplies and Services,324117,Provisions E324,09-May-2018,000007345089215,WWW.ADELIEFOODS.CO.UK,5499,Catering costs - provisions,107.32,0.00,107.32
Regeneration and Local Services,Direct Services,021234,Catering - Locomotion,Supplies and Services,324117,Provisions E324,09-May-2018,000007345089217,WWW.ADELIEFOODS.CO.UK,5499,Catering costs - provisions,90.81,0.00,90.81
Regeneration and Local Services,Direct Services,021234,Catering - Locomotion,Supplies and Services,324117,Provisions E324,09-May-2018,000007345089221,WWW.ADELIEFOODS.CO.UK,5499,Catering costs - provisions,90.81,0.00,90.81
Regeneration and Local Services,Direct Services,021234,Catering - Locomotion,Supplies and Services,324117,Provisions E324,09-May-2018,000007345089225,WWW.ADELIEFOODS.CO.UK,5499,Catering costs - provisions,88.22,0.00,88.22
Regeneration and Local Services,Direct Services,021234,Catering - Locomotion,Supplies and Services,324117,Provisions E324,09-May-2018,000007345089229,WWW.ADELIEFOODS.CO.UK,5499,Catering costs - provisions,83.10,0.00,83.10
Regeneration and Local Services,Direct Services,021234,Catering - Locomotion,Supplies and Services,324117,Provisions E324,09-May-2018,000007345089231,WWW.ADELIEFOODS.CO.UK,5499,Catering costs - provisions,75.74,0.00,75.74
Regeneration and Local Services,Direct Services,021234,Catering - Locomotion,Supplies and Services,324117,Provisions E324,09-May-2018,000007345089235,WWW.ADELIEFOODS.CO.UK,5499,Catering costs - provisions,38.12,0.00,38.12
Regeneration and Local Services,Economic Development and Housing,030714,Salvus House,Supplies and Services,304259,Equipment and Materials,09-May-2018,000007345089245,WILKO DURHAM 426,5722,Equipment-purchase and rental,8.00,1.33,6.67
Regeneration and Local Services,Direct Services,010525,Catering - Green Lane,Supplies and Services,324117,Provisions E324,09-May-2018,000007345089283,WWW.ADELIEFOODS.CO.UK,5499,Catering costs - provisions,60.02,0.00,60.02
Regeneration and Local Services,Direct Services,010525,Catering - Green Lane,Supplies and Services,324117,Provisions E324,09-May-2018,000007345089287,WWW.ADELIEFOODS.CO.UK,5499,Catering costs - provisions,56.33,0.00,56.33
Regeneration and Local Services,Direct Services,010525,Catering - Green Lane,Supplies and Services,324117,Provisions E324,09-May-2018,000007345089289,WWW.ADELIEFOODS.CO.UK,5499,Catering costs - provisions,55.97,0.00,55.97
Regeneration and Local Services,Direct Services,010525,Catering - Green Lane,Supplies and Services,324117,Provisions E324,09-May-2018,000007345089293,WWW.ADELIEFOODS.CO.UK,5499,Catering costs - provisions,55.97,0.00,55.97
Regeneration and Local Services,Direct Services,010525,Catering - Green Lane,Supplies and Services,324117,Provisions E324,09-May-2018,000007345089297,WWW.ADELIEFOODS.CO.UK,5499,Catering costs - provisions,53.23,0.00,53.23
Regeneration and Local Services,Direct Services,010525,Catering - Green Lane,Supplies and Services,324117,Provisions E324,09-May-2018,000007345089301,WWW.ADELIEFOODS.CO.UK,5499,Catering costs - provisions,34.46,0.00,34.46
Regeneration and Local Services,Direct Services,010525,Catering - Green Lane,Supplies and Services,324117,Provisions E324,09-May-2018,000007345089303,WWW.ADELIEFOODS.CO.UK,5499,Catering costs - provisions,34.14,0.00,34.14
Regeneration and Local Services,Economic Development and Housing,030749,Employability - Youth Contract,Supplies and Services,384700,Miscellaneous Expenses,09-May-2018,000007345089405,GRO HM PASSPORT OFFICE,9399,Miscellaneous grants,9.25,0.00,9.25
Children and Young Peoples Services,Head of Childrens Social Care,085333,Coxhoe Satelite Home,Supplies and Services,324117,Provisions E324,09-May-2018,000007345089411,CO-OP GROUP 310016,5411,Catering costs - provisions,15.44,0.00,15.44
Regeneration and Local Services,Spatial Policy Planning Assets & Environment,031200,North Pennines Core,Supplies and Services,352001,Conference Expenses,09-May-2018,000007345089445,ALSTON HOUSE,7011,Conferencesseminars fees etc,38.95,0.00,38.95
Regeneration and Local Services,Spatial Policy Planning Assets & Environment,031200,North Pennines Core,Transport,235057,Public Transport,09-May-2018,000007345089447,Syntus B.V.,4111,Staff travelling,1.75,0.00,1.75
Regeneration and Local Services,Spatial Policy Planning Assets & Environment,031200,North Pennines Core,Transport,235057,Public Transport,09-May-2018,000007345089451,Syntus B.V.,4111,Staff travelling,3.51,0.00,3.51
Children and Young Peoples Services,"Head of Early Help, Inclusion and Vulnerable Children",074000,TTF-Attachment and Results,Supplies and Services,312011,Newspapers books and periodicals E312,09-May-2018,000007345089489,Amazon UK Marketplace,5942,Books-school library,23.95,0.00,23.95
Children and Young Peoples Services,"Head of Early Help, Inclusion and Vulnerable Children",074000,TTF-Attachment and Results,Supplies and Services,312011,Newspapers books and periodicals E312,09-May-2018,000007345089493,Amazon UK Marketplace,5942,Books-school library,23.95,0.00,23.95
Children and Young Peoples Services,"Head of Early Help, Inclusion and Vulnerable Children",074000,TTF-Attachment and Results,Supplies and Services,312011,Newspapers books and periodicals E312,09-May-2018,000007345089497,Amazon UK Marketplace,5942,Books-school library,2.79,0.00,2.79
Children and Young Peoples Services,"Head of Early Help, Inclusion and Vulnerable Children",074000,TTF-Attachment and Results,Supplies and Services,312011,Newspapers books and periodicals E312,09-May-2018,000007345089499,Amazon UK Marketplace,5942,Books-school library,23.95,0.00,23.95
Children and Young Peoples Services,"Head of Early Help, Inclusion and Vulnerable Children",074000,TTF-Attachment and Results,Supplies and Services,312011,Newspapers books and periodicals E312,09-May-2018,000007345089503,Amazon UK Marketplace,5942,Books-school library,2.79,0.00,2.79
Children and Young Peoples Services,"Head of Early Help, Inclusion and Vulnerable Children",074000,TTF-Attachment and Results,Supplies and Services,312011,Newspapers books and periodicals E312,09-May-2018,000007345089505,Amazon UK Marketplace,5942,Books-school library,2.79,0.00,2.79
Children and Young Peoples Services,"Head of Early Help, Inclusion and Vulnerable Children",074000,TTF-Attachment and Results,Supplies and Services,312011,Newspapers books and periodicals E312,09-May-2018,000007345089507,Amazon UK Marketplace,5942,Books-school library,2.79,0.00,2.79
Children and Young Peoples Services,"Head of Early Help, Inclusion and Vulnerable Children",074000,TTF-Attachment and Results,Supplies and Services,308011,Furniture,09-May-2018,000007345089511,FRANKS THE FLOORING ST,5713,Furniture repair and replacement,150.00,0.00,150.00
Children and Young Peoples Services,"Head of Early Help, Inclusion and Vulnerable Children",074000,TTF-Attachment and Results,Supplies and Services,324117,Provisions E324,09-May-2018,000007345089515,ASDA GEORGE COM LEEDS,5411,Catering costs - provisions,52.91,8.82,44.09
Regeneration and Local Services,Economic Development and Housing,030690,Durham Dales Centre - Tourist Information Centre,Supplies and Services,328041,Clothing uniforms and laundry E328,09-May-2018,000007345089539,ZELLY UK TRADING LTD,5651,Clothing uniforms and laundry,471.78,78.63,393.15
Children and Young Peoples Services,Head of Education and Skills,071903,EYDCP-Sustainability EDS,Supplies and Services,312011,Newspapers books and periodicals E312,09-May-2018,000007345089543,Amazon UK Marketplace,5942,Books-school library,349.85,0.00,349.85
Children and Young Peoples Services,Head of Education and Skills,071903,EYDCP-Sustainability EDS,Supplies and Services,304403,Equipment and Materials,09-May-2018,000007345089549,OUT OF SCHOOL ALLIANCE,5999,Other consumables,35.00,0.00,35.00
Regeneration and Local Services,Direct Services,010318,C&G - North Street Cleansing,Supplies and Services,304221,Equipment and Materials,09-May-2018,000007345089579,TOOLSTATION LTD,5251,Direct materials,24.33,0.00,24.33
Regeneration and Local Services,Direct Services,010318,C&G - North Street Cleansing,Third Party Payments 4THIRD,430100,Rendered by Private Contractors,09-May-2018,000007345089583,JOHN WARREN (ANIMAL BY,7399,Payments to sub-contractors,21.60,0.00,21.60
Regeneration and Local Services,Technical Services,010984,Training and Development,Supplies and Services,384999,Miscellaneous Expenses,09-May-2018,000007345089635,WWW.LIFESAVERSDIRECT,5965,Other expenses,108.95,0.00,108.95
Children and Young Peoples Services,Head of Childrens Social Care,085331,New Lea Childrens Home,Supplies and Services,304259,Equipment and Materials,09-May-2018,000007345089705,CURRYS ONLINE,5732,Equipment-purchase and rental,249.00,41.50,207.50
Resources,Digital and Customer Services,069010,Administration,Transport,235057,Public Transport,09-May-2018,000007345089727,OYSTER RENEW WEB,4112,Staff travelling,50.00,0.00,50.00
Regeneration and Local Services,Direct Services,021235,Catering - Wharton Park,Supplies and Services,324117,Provisions E324,09-May-2018,000007345089737,WWW.ADELIEFOODS.CO.UK,5499,Catering costs - provisions,94.56,0.00,94.56
Children and Young Peoples Services,Head of Childrens Social Care,085363,LAC & Permanence Team 3,Supplies and Services,304259,Equipment and Materials,09-May-2018,000007345089767,WWW.DURHAM.GOV.UK,9399,Equipment-purchase and rental,24.00,0.00,24.00
Resources,Finance & Transactional Services,065175,Administration,Supplies and Services,384956,Miscellaneous Expenses,09-May-2018,000007345089775,NCC SERVICES,8699,Licences,756.00,126.00,630.00
Resources,Finance & Transactional Services,065120,Income,Supplies and Services,384956,Miscellaneous Expenses,09-May-2018,000007345089781,NCC SERVICES,8699,Licences,756.00,126.00,630.00
Regeneration and Local Services,Economic Development and Housing,030692,Durham Dales Centre - Management and Admin,Supplies and Services,324117,Provisions E324,09-May-2018,000007345089811,Castle Bank Butchers,5422,Catering costs - provisions,189.76,0.00,189.76
Regeneration and Local Services,Economic Development and Housing,030692,Durham Dales Centre - Management and Admin,Supplies and Services,304259,Equipment and Materials,09-May-2018,000007345089815,WWW.DURHAM.GOV.UK,9399,Equipment-purchase and rental,23.00,0.00,23.00
Resources,Finance & Transactional Services,065116,Creditors/Purchasing,Supplies and Services,338064,Services,09-May-2018,000007345089819,DISCLOSURE SCOT,9399,Disclosure & Barring (DBS) Fees,25.00,0.00,25.00
Children and Young Peoples Services,"Head of Early Help, Inclusion and Vulnerable Children",085956,Lumley,Supplies and Services,328041,Clothing uniforms and laundry E328,09-May-2018,000007350360619,WWW.TOPSHOP.COM,5691,Clothing uniforms and laundry,25.95,0.00,25.95
Regeneration and Local Services,Economic Development and Housing,031576,B& B - Temp Accom,Supplies and Services,364320,Grants to Voluntary Organisations,09-May-2018,000007350360899,PREMIER INN,3811,Accommodation assistance,136.00,22.67,113.33
Resources,Digital and Customer Services,065303,Design & Print - Design,Supplies and Services,342033,Computers and Communications,10-May-2018,000007345088719,ISSUU,5045,Computer hardware,8.56,0.00,8.56
Regeneration and Local Services,Spatial Policy Planning Assets & Environment,031200,North Pennines Core,Transport,235057,Public Transport,10-May-2018,000007345089455,Syntus B.V.,4111,Staff travelling,0.05,0.00,0.05
Regeneration and Local Services,Spatial Policy Planning Assets & Environment,031200,North Pennines Core,Transport,235057,Public Transport,10-May-2018,000007345089457,Syntus B.V.,4111,Staff travelling,0.10,0.00,0.10
Children and Young Peoples Services,Head of Education and Skills,071801,Selby Cottage Childcare Centre,Supplies and Services,324117,Provisions E324,10-May-2018,000007350360301,ASDA GROCERIES ONLINE,5411,Catering costs - provisions,90.87,0.00,90.87
Children and Young Peoples Services,Head of Education and Skills,071801,Selby Cottage Childcare Centre,Supplies and Services,324117,Provisions E324,10-May-2018,000007350360303,ASDA GROCERIES ONLINE,5411,Catering costs - provisions,-5.40,0.00,-5.40
Children and Young Peoples Services,Head of Childrens Social Care,085624,Families First Crook,Supplies and Services,304403,Equipment and Materials,10-May-2018,000007350360397,Amazon UK Marketplace,5942,Other consumables,31.47,0.00,31.47
Adult and Health Services,Head of Adults,051602,OP/PD Derwentside,Supplies and Services,338057,Services,10-May-2018,000007350360399,GIRODMEDICAL,5976,Medical fees 338057,58.24,9.71,48.53
Regeneration and Local Services,Economic Development and Housing,030544,Rural Employability - Client Engagement,Supplies and Services,328041,Clothing uniforms and laundry E328,10-May-2018,000007350360403,WORKWEAR EXPRESS LIMIT,5699,Clothing uniforms and laundry,40.09,0.00,40.09
Regeneration and Local Services,Direct Services,021242,Catering - County Hall,Supplies and Services,324117,Provisions E324,10-May-2018,000007350360407,JR HOLLAND FOODSERVICE,5422,Catering costs - provisions,30.14,0.00,30.14
Children and Young Peoples Services,Head of Childrens Social Care,085380,Operations Manager Adoption & Fostering,Supplies and Services,304259,Equipment and Materials,10-May-2018,000007350360411,GRO HM PASSPORT OFFICE,9399,Equipment-purchase and rental,23.40,0.00,23.40
Children and Young Peoples Services,Head of Childrens Social Care,085334,West Rainton Satelite Home,Supplies and Services,312011,Newspapers books and periodicals E312,10-May-2018,000007350360449,Amazon UK Marketplace,5942,Books-school library,12.95,0.00,12.95
Children and Young Peoples Services,Head of Childrens Social Care,085334,West Rainton Satelite Home,Supplies and Services,312011,Newspapers books and periodicals E312,10-May-2018,000007350360453,Amazon UK Marketplace,5942,Books-school library,24.80,0.00,24.80
Children and Young Peoples Services,Head of Childrens Social Care,085334,West Rainton Satelite Home,Supplies and Services,312011,Newspapers books and periodicals E312,10-May-2018,000007350360457,Amazon UK Marketplace,5942,Books-school library,25.98,0.00,25.98
Children and Young Peoples Services,Head of Childrens Social Care,085334,West Rainton Satelite Home,Supplies and Services,312011,Newspapers books and periodicals E312,10-May-2018,000007350360461,Amazon UK Marketplace,5942,Books-school library,13.99,0.00,13.99
Children and Young Peoples Services,Head of Childrens Social Care,085334,West Rainton Satelite Home,Supplies and Services,312011,Newspapers books and periodicals E312,10-May-2018,000007350360465,Amazon UK Marketplace,5942,Books-school library,5.99,0.00,5.99
Children and Young Peoples Services,Head of Childrens Social Care,085352,Tow Law CU,Supplies and Services,324117,Provisions E324,10-May-2018,000007350360467,ASDA STORES LTD 4313,5411,Catering costs - provisions,60.02,0.00,60.02
Regeneration and Local Services,Direct Services,010900,Fleet - Meadowfield Fleet,Transport,215013,Running Costs of Vehicles,10-May-2018,000007350360475,DVLA VEHICLE TAX,9399,Vehicle Excise Duty (VED),167.50,0.00,167.50
Regeneration and Local Services,Direct Services,010900,Fleet - Meadowfield Fleet,Transport,215013,Running Costs of Vehicles,10-May-2018,000007350360479,DVLA VEHICLE TAX,9399,Vehicle Excise Duty (VED),252.50,0.00,252.50
Regeneration and Local Services,Direct Services,010561,Fleet - Morrison Busty Fleet,Transport,215013,Running Costs of Vehicles,10-May-2018,000007350360483,DVLA VEHICLE TAX,9399,Vehicle Excise Duty (VED),252.50,0.00,252.50
Regeneration and Local Services,Direct Services,010551,Fleet - Chilton Fleet,Transport,215013,Running Costs of Vehicles,10-May-2018,000007350360487,DVLA VEHICLE TAX,9399,Vehicle Excise Duty (VED),652.50,0.00,652.50
Regeneration and Local Services,Direct Services,010551,Fleet - Chilton Fleet,Transport,215013,Running Costs of Vehicles,10-May-2018,000007350360491,DVLA VEHICLE TAX,9399,Vehicle Excise Duty (VED),252.50,0.00,252.50
Regeneration and Local Services,Direct Services,010864,Fleet - Hackworth Road Fleet,Transport,215013,Running Costs of Vehicles,10-May-2018,000007350360493,DVLA VEHICLE TAX,9399,Vehicle Excise Duty (VED),652.50,0.00,652.50
Regeneration and Local Services,Direct Services,010900,Fleet - Meadowfield Fleet,Transport,215013,Running Costs of Vehicles,10-May-2018,000007350360495,DVLA VEHICLE TAX,9399,Vehicle Excise Duty (VED),252.50,0.00,252.50
Regeneration and Local Services,Direct Services,010561,Fleet - Morrison Busty Fleet,Transport,215013,Running Costs of Vehicles,10-May-2018,000007350360499,DVLA VEHICLE TAX,9399,Vehicle Excise Duty (VED),167.50,0.00,167.50
Regeneration and Local Services,Direct Services,010561,Fleet - Morrison Busty Fleet,Transport,215013,Running Costs of Vehicles,10-May-2018,000007350360503,DVLA VEHICLE TAX,9399,Vehicle Excise Duty (VED),252.50,0.00,252.50
Regeneration and Local Services,Direct Services,010900,Fleet - Meadowfield Fleet,Transport,215013,Running Costs of Vehicles,10-May-2018,000007350360505,DVLA VEHICLE TAX,9399,Vehicle Excise Duty (VED),252.50,0.00,252.50
Regeneration and Local Services,Direct Services,010551,Fleet - Chilton Fleet,Transport,215013,Running Costs of Vehicles,10-May-2018,000007350360509,DVLA VEHICLE TAX,9399,Vehicle Excise Duty (VED),252.50,0.00,252.50
Regeneration and Local Services,Direct Services,010864,Fleet - Hackworth Road Fleet,Transport,215013,Running Costs of Vehicles,10-May-2018,000007350360511,DVLA VEHICLE TAX,9399,Vehicle Excise Duty (VED),652.50,0.00,652.50
Regeneration and Local Services,Direct Services,010551,Fleet - Chilton Fleet,Transport,215013,Running Costs of Vehicles,10-May-2018,000007350360515,DVLA VEHICLE TAX,9399,Vehicle Excise Duty (VED),652.50,0.00,652.50
Regeneration and Local Services,Direct Services,010900,Fleet - Meadowfield Fleet,Transport,215013,Running Costs of Vehicles,10-May-2018,000007350360517,DVLA VEHICLE TAX,9399,Vehicle Excise Duty (VED),167.50,0.00,167.50
Regeneration and Local Services,Direct Services,010900,Fleet - Meadowfield Fleet,Transport,215013,Running Costs of Vehicles,10-May-2018,000007350360519,DVLA VEHICLE TAX,9399,Vehicle Excise Duty (VED),167.50,0.00,167.50
Regeneration and Local Services,Direct Services,010900,Fleet - Meadowfield Fleet,Transport,215013,Running Costs of Vehicles,10-May-2018,000007350360523,DVLA VEHICLE TAX,9399,Vehicle Excise Duty (VED),167.50,0.00,167.50
Regeneration and Local Services,Direct Services,010900,Fleet - Meadowfield Fleet,Transport,215013,Running Costs of Vehicles,10-May-2018,000007350360527,DVLA VEHICLE TAX,9399,Vehicle Excise Duty (VED),252.50,0.00,252.50
Regeneration and Local Services,Direct Services,010561,Fleet - Morrison Busty Fleet,Transport,215013,Running Costs of Vehicles,10-May-2018,000007350360529,DVLA VEHICLE TAX,9399,Vehicle Excise Duty (VED),252.50,0.00,252.50
Regeneration and Local Services,Direct Services,010900,Fleet - Meadowfield Fleet,Transport,215013,Running Costs of Vehicles,10-May-2018,000007350360533,DVLA VEHICLE TAX,9399,Vehicle Excise Duty (VED),167.50,0.00,167.50
Regeneration and Local Services,Direct Services,010900,Fleet - Meadowfield Fleet,Transport,215013,Running Costs of Vehicles,10-May-2018,000007350360537,DVLA VEHICLE TAX,9399,Vehicle Excise Duty (VED),157.50,0.00,157.50
Regeneration and Local Services,Direct Services,010900,Fleet - Meadowfield Fleet,Transport,215013,Running Costs of Vehicles,10-May-2018,000007350360539,DVLA VEHICLE TAX,9399,Vehicle Excise Duty (VED),167.50,0.00,167.50
Regeneration and Local Services,Direct Services,010900,Fleet - Meadowfield Fleet,Transport,215013,Running Costs of Vehicles,10-May-2018,000007350360543,DVLA VEHICLE TAX,9399,Vehicle Excise Duty (VED),652.50,0.00,652.50
Regeneration and Local Services,Direct Services,010561,Fleet - Morrison Busty Fleet,Transport,215013,Running Costs of Vehicles,10-May-2018,000007350360545,DVLA VEHICLE TAX,9399,Vehicle Excise Duty (VED),252.50,0.00,252.50
Regeneration and Local Services,Direct Services,010561,Fleet - Morrison Busty Fleet,Transport,215013,Running Costs of Vehicles,10-May-2018,000007350360549,DVLA VEHICLE TAX,9399,Vehicle Excise Duty (VED),252.50,0.00,252.50
Regeneration and Local Services,Direct Services,010900,Fleet - Meadowfield Fleet,Transport,215013,Running Costs of Vehicles,10-May-2018,000007350360553,DVLA VEHICLE TAX,9399,Vehicle Excise Duty (VED),167.50,0.00,167.50
Regeneration and Local Services,Direct Services,010551,Fleet - Chilton Fleet,Transport,215013,Running Costs of Vehicles,10-May-2018,000007350360555,DVLA VEHICLE TAX,9399,Vehicle Excise Duty (VED),252.50,0.00,252.50
Regeneration and Local Services,Direct Services,010900,Fleet - Meadowfield Fleet,Transport,215013,Running Costs of Vehicles,10-May-2018,000007350360559,DVLA VEHICLE TAX,9399,Vehicle Excise Duty (VED),652.50,0.00,652.50
Regeneration and Local Services,Direct Services,010561,Fleet - Morrison Busty Fleet,Transport,215013,Running Costs of Vehicles,10-May-2018,000007350360561,DVLA VEHICLE TAX,9399,Vehicle Excise Duty (VED),652.50,0.00,652.50
Regeneration and Local Services,Direct Services,010561,Fleet - Morrison Busty Fleet,Transport,215013,Running Costs of Vehicles,10-May-2018,000007350360563,DVLA VEHICLE TAX,9399,Vehicle Excise Duty (VED),252.50,0.00,252.50
Regeneration and Local Services,Direct Services,010900,Fleet - Meadowfield Fleet,Transport,215013,Running Costs of Vehicles,10-May-2018,000007350360565,DVLA VEHICLE TAX,9399,Vehicle Excise Duty (VED),652.50,0.00,652.50
Regeneration and Local Services,Culture & Sport,010664,Freemans Quay Leisure Centre,Supplies and Services,324117,Provisions E324,10-May-2018,000007350360567,ASDA STORES LTD 4313,5411,Catering costs - provisions,24.00,0.00,24.00
Regeneration and Local Services,Culture & Sport,054813,Gala Theatre - Technical,Supplies and Services,340001,Postages E340,10-May-2018,000007350360571,TNT_DIRECT,4215,Postages,10.74,0.00,10.74
Regeneration and Local Services,Economic Development and Housing,030737,Durham Works Flexible Fund,Transport,235057,Public Transport,10-May-2018,000007350360575,ARRIVA NORTH EAST,4131,Staff travelling,25.00,0.00,25.00
Regeneration and Local Services,Economic Development and Housing,030737,Durham Works Flexible Fund,Transport,235057,Public Transport,10-May-2018,000007350360601,ARRIVA NORTH EAST,4131,Staff travelling,8.40,0.00,8.40
Regeneration and Local Services,Economic Development and Housing,030737,Durham Works Flexible Fund,Transport,235057,Public Transport,10-May-2018,000007350360603,GO NORTH EAST LIMITED,4131,Staff travelling,5.10,0.00,5.10
Children and Young Peoples Services,"Head of Early Help, Inclusion and Vulnerable Children",071445,Chester le Street One Point Hub,Supplies and Services,324117,Provisions E324,10-May-2018,000007350360605,JR HOLLAND FOODSERVICE,5422,Catering costs - provisions,54.24,0.00,54.24
Children and Young Peoples Services,"Head of Early Help, Inclusion and Vulnerable Children",085956,Lumley,Supplies and Services,312011,Newspapers books and periodicals E312,10-May-2018,000007350360611,Amazon UK Marketplace,5942,Books-school library,1.99,0.33,1.66
Children and Young Peoples Services,"Head of Early Help, Inclusion and Vulnerable Children",085962,Durham,Supplies and Services,304259,Equipment and Materials,10-May-2018,000007350360613,Amazon EU,5969,Equipment-purchase and rental,74.95,12.49,62.46
Children and Young Peoples Services,"Head of Early Help, Inclusion and Vulnerable Children",085965,Barnard,Supplies and Services,324117,Provisions E324,10-May-2018,000007350360617,TESCO STORES 6329,5411,Catering costs - provisions,85.19,0.00,85.19
Children and Young Peoples Services,"Head of Early Help, Inclusion and Vulnerable Children",085954,Walworth,Supplies and Services,328041,Clothing uniforms and laundry E328,10-May-2018,000007350360625,M and M Direct Ltd,5941,Clothing uniforms and laundry,-34.99,0.00,-34.99
Regeneration and Local Services,Spatial Policy Planning Assets & Environment,031222,North Pennines Allen Valleys Landscape Partnership,Supplies and Services,324117,Provisions E324,10-May-2018,000007350360637,CO-OP GROUP FOOD,5411,Catering costs - provisions,5.32,0.00,5.32
Regeneration and Local Services,Culture & Sport,011060,Hardwick Park Catering,Supplies and Services,324117,Provisions E324,10-May-2018,000007350360643,JR HOLLAND FOODSERVICE,5422,Catering costs - provisions,28.01,0.00,28.01
Regeneration and Local Services,Culture & Sport,054815,Gala Theatre Stage School,Supplies and Services,304221,Equipment and Materials,10-May-2018,000007350360655,PAYPAL SJMODERNANT,5169,Direct materials,14.99,0.00,14.99
Regeneration and Local Services,Culture & Sport,054815,Gala Theatre Stage School,Supplies and Services,304259,Equipment and Materials,10-May-2018,000007350360659,KARAOKE RECISIO,5733,Equipment-purchase and rental,1.50,0.00,1.50
Children and Young Peoples Services,Head of Childrens Social Care,085332,Middlestone Moor CU,Supplies and Services,324117,Provisions E324,10-May-2018,000007350360673,TESCO STORES 2916,5411,Catering costs - provisions,49.57,0.00,49.57
Regeneration and Local Services,Direct Services,021234,Catering - Locomotion,Supplies and Services,324117,Provisions E324,10-May-2018,000007350360677,JR HOLLAND FOODSERVICE,5422,Catering costs - provisions,24.54,0.00,24.54
Regeneration and Local Services,Direct Services,021234,Catering - Locomotion,Supplies and Services,324117,Provisions E324,10-May-2018,000007350360679,JR HOLLAND FOODSERVICE,5422,Catering costs - provisions,22.54,0.00,22.54
Regeneration and Local Services,Direct Services,010525,Catering - Green Lane,Supplies and Services,324117,Provisions E324,10-May-2018,000007350360693,JR HOLLAND FOODSERVICE,5422,Catering costs - provisions,95.28,0.00,95.28
Regeneration and Local Services,Direct Services,022921,WRAP Project,Supplies and Services,384999,Miscellaneous Expenses,10-May-2018,000007350360721,WWW.ARGOS.CO.UK,5310,Other expenses,157.91,0.00,157.91
Children and Young Peoples Services,Head of Childrens Social Care,085623,Families First Bishop Auckland,Supplies and Services,338045,Services,10-May-2018,000007350360737,NEWCASTLE CC INET,9399,Legal expenses 338045,11.00,0.00,11.00
Regeneration and Local Services,Economic Development and Housing,030737,Durham Works Flexible Fund,Transport,230031,Contract Hire,10-May-2018,000007350360775,ARRIVA NORTH EAST,4131,Pupils-transport to play fields etc,7.00,0.00,7.00
Children and Young Peoples Services,Head of Childrens Social Care,085342,9 Cedar Drive Aycliffe,Supplies and Services,308011,Furniture,10-May-2018,000007350360787,"HOMEFAIR BLINDS,",5714,Furniture repair and replacement,93.00,0.00,93.00
Regeneration and Local Services,Direct Services,010367,C&G - South Grounds Maintenance,Supplies and Services,324117,Provisions E324,10-May-2018,000007350360803,J M RAINE,5399,Catering costs - provisions,162.24,27.04,135.20
Adult and Health Services,Head of Adults,055643,Hawthorn House LD Respite Unit,Supplies and Services,324117,Provisions E324,10-May-2018,000007350360807,JR HOLLAND FOODSERVICE,5422,Catering costs - provisions,7.08,0.00,7.08
Regeneration and Local Services,Spatial Policy Planning Assets & Environment,031200,North Pennines Core,Transport,235057,Public Transport,10-May-2018,000007350360813,NS EDE-WAGENINGEN,4112,Staff travelling,14.58,0.00,14.58
Regeneration and Local Services,Spatial Policy Planning Assets & Environment,031200,North Pennines Core,Supplies and Services,348037,Subsistence E348,10-May-2018,000007350360815,THE GOLDEN ARCH (1203,5814,Subsistence,9.28,0.00,9.28
Children and Young Peoples Services,"Head of Early Help, Inclusion and Vulnerable Children",074000,TTF-Attachment and Results,Supplies and Services,312011,Newspapers books and periodicals E312,10-May-2018,000007350360863,Amazon UK Marketplace,5942,Books-school library,2.79,0.00,2.79
Children and Young Peoples Services,"Head of Early Help, Inclusion and Vulnerable Children",074000,TTF-Attachment and Results,Supplies and Services,324117,Provisions E324,10-May-2018,000007350360867,ASDA GEORGE COM LEEDS,5411,Catering costs - provisions,32.95,5.49,27.46
Resources,Digital and Customer Services,065335,School Services - Implementations,Supplies and Services,304639,Equipment and Materials,10-May-2018,000007350360873,AMZ replacebase,4816,Technicians-supplies,124.05,20.68,103.37
Regeneration and Local Services,Culture & Sport,026591,Hardwick Park,Supplies and Services,304245,Equipment and Materials,10-May-2018,000007350360893,AMAZON SVCS EU-UK AMAZ,5942,Materials,78.94,0.00,78.94
Regeneration and Local Services,Technical Services,010984,Training and Development,Supplies and Services,342033,Computers and Communications,10-May-2018,000007350360965,WWW.NISBETS.COM,5964,Computer hardware,83.98,14.00,69.98
Regeneration and Local Services,Direct Services,010301,C&G - North Grounds Maintenance,Supplies and Services,304259,Equipment and Materials,10-May-2018,000007350361005,LEAMSIDE NURSERY,5261,Equipment-purchase and rental,110.00,0.00,110.00
Regeneration and Local Services,Direct Services,010814,Bldg Serv - R&M General,Supplies and Services,338064,Services,10-May-2018,000007350361015,DISCLOSURE SCOT,9399,Disclosure & Barring (DBS) Fees,25.00,0.00,25.00
Resources,Corporate Finance & Commercial Services,066820,Occupational Health Service,Employees,040149,Recruitment Instruction and Training,10-May-2018,000007350361017,WWW.FOM.AC.UK,8699,Training-all costs,540.00,0.00,540.00
Resources,Finance & Transactional Services,065180,Collections,Supplies and Services,338064,Services,10-May-2018,000007350361027,DISCLOSURE SCOT,9399,Disclosure & Barring (DBS) Fees,25.00,0.00,25.00
Regeneration and Local Services,Economic Development and Housing,030554,International Relations,Transport,235057,Public Transport,10-May-2018,000007350361045,PRINCE BISHOP SHOPPING,7523,Staff travelling,2.10,0.00,2.10
Regeneration and Local Services,Economic Development and Housing,031576,B& B - Temp Accom,Supplies and Services,364320,Grants to Voluntary Organisations,10-May-2018,000007356920093,PREMIER INN,3811,Accommodation assistance,66.00,11.00,55.00
Regeneration and Local Services,Direct Services,010383,C&G - South Street Cleansing,Transport,215995,Running Costs of Vehicles,10-May-2018,000007356920135,SNOWBALLS (RAILWAY,5533,Vehicle running expenses,38.14,6.36,31.78
Regeneration and Local Services,Culture & Sport,011060,Hardwick Park Catering,Supplies and Services,324117,Provisions E324,10-May-2018,000007356920341,BATLEYS PERTH,5300,Catering costs - provisions,345.12,57.52,287.60
Regeneration and Local Services,Culture & Sport,011060,Hardwick Park Catering,Supplies and Services,324117,Provisions E324,10-May-2018,000007356920341 - 1,BATLEYS PERTH,5300,Catering costs - provisions,237.87,,237.87
Regeneration and Local Services,Culture & Sport,011060,Hardwick Park Catering,Supplies and Services,324117,Provisions E324,10-May-2018,000007356920343,BATLEYS PERTH,5300,Catering costs - provisions,82.38,13.73,68.65
Regeneration and Local Services,Culture & Sport,011060,Hardwick Park Catering,Supplies and Services,324117,Provisions E324,10-May-2018,000007356920343 - 1,BATLEYS PERTH,5300,Catering costs - provisions,49.06,,49.06
Regeneration and Local Services,Direct Services,021234,Catering - Locomotion,Supplies and Services,324117,Provisions E324,10-May-2018,000007356920389,BATLEYS PERTH,5300,Catering costs - provisions,297.18,49.53,247.65
Regeneration and Local Services,Direct Services,021235,Catering - Wharton Park,Supplies and Services,324117,Provisions E324,10-May-2018,000007356920745,BATLEYS PERTH,5300,Catering costs - provisions,206.10,34.35,171.75
Regeneration and Local Services,Direct Services,021235,Catering - Wharton Park,Supplies and Services,324117,Provisions E324,10-May-2018,000007356920745 - 1,BATLEYS PERTH,5300,Catering costs - provisions,19.20,,19.20
Children and Young Peoples Services,Head of Education and Skills,071801,Selby Cottage Childcare Centre,Supplies and Services,304259,Equipment and Materials,11-May-2018,000007350360299,ITUNES.COM/BILL,5735,Equipment-purchase and rental,5.73,0.00,5.73
Regeneration and Local Services,Spatial Policy Planning Assets & Environment,031200,North Pennines Core,Transport,235057,Public Transport,11-May-2018,000007350360819,NS EDE-WAGENINGEN,4112,Staff travelling,0.40,0.00,0.40
Regeneration and Local Services,Spatial Policy Planning Assets & Environment,031200,North Pennines Core,Supplies and Services,348037,Subsistence E348,11-May-2018,000007350360823,THE GOLDEN ARCH (1204,5814,Subsistence,0.26,0.00,0.26
Regeneration and Local Services,Economic Development and Housing,031576,B& B - Temp Accom,Supplies and Services,364320,Grants to Voluntary Organisations,11-May-2018,000007356920095,PREMIER INN,3811,Accommodation assistance,195.50,32.58,162.92
Regeneration and Local Services,Economic Development and Housing,031576,B& B - Temp Accom,Supplies and Services,364320,Grants to Voluntary Organisations,11-May-2018,000007356920097,PREMIER INN,3811,Accommodation assistance,186.50,31.08,155.42
Resources,Digital and Customer Services,065487,ICT Telephony Recharges,Supplies and Services,344033,Telephones,11-May-2018,000007356920101,Amazon UK Marketplace,5942,Telephones general-all costs,39.80,0.00,39.80
Children and Young Peoples Services,Head of Education and Skills,071903,EYDCP-Sustainability EDS,Supplies and Services,372009,Subscriptions E372,11-May-2018,000007356920181,OFSTED INTERNET,9399,Subscriptions 372009,220.00,0.00,220.00
Regeneration and Local Services,Direct Services,021242,Catering - County Hall,Supplies and Services,324117,Provisions E324,11-May-2018,000007356920183,HOPWELLS LTD,5811,Catering costs - provisions,228.27,0.00,228.27
Regeneration and Local Services,Direct Services,021242,Catering - County Hall,Supplies and Services,324117,Provisions E324,11-May-2018,000007356920187,HOPWELLS LTD,5811,Catering costs - provisions,225.90,0.00,225.90
Regeneration and Local Services,Direct Services,021242,Catering - County Hall,Supplies and Services,324117,Provisions E324,11-May-2018,000007356920189,HOPWELLS LTD,5811,Catering costs - provisions,101.22,16.87,84.35
Regeneration and Local Services,Direct Services,021242,Catering - County Hall,Supplies and Services,324117,Provisions E324,11-May-2018,000007356920189 - 1,HOPWELLS LTD,5811,Catering costs - provisions,67.45,,67.45
Regeneration and Local Services,Direct Services,021242,Catering - County Hall,Supplies and Services,324117,Provisions E324,11-May-2018,000007356920195,HOPWELLS LTD,5811,Catering costs - provisions,-15.16,0.00,-15.16
Regeneration and Local Services,Culture & Sport,054812,Gala Theatre - Catering etc,Supplies and Services,324117,Provisions E324,11-May-2018,000007356920203,HOPWELLS LTD,5811,Catering costs - provisions,31.52,0.00,31.52
Children and Young Peoples Services,Head of Childrens Social Care,085334,West Rainton Satelite Home,Supplies and Services,312011,Newspapers books and periodicals E312,11-May-2018,000007356920249,Amazon UK Marketplace,5942,Books-school library,12.99,0.00,12.99
Children and Young Peoples Services,Head of Childrens Social Care,085334,West Rainton Satelite Home,Supplies and Services,312011,Newspapers books and periodicals E312,11-May-2018,000007356920251,Amazon UK Marketplace,5942,Books-school library,8.99,0.00,8.99
Children and Young Peoples Services,Head of Childrens Social Care,085334,West Rainton Satelite Home,Supplies and Services,312011,Newspapers books and periodicals E312,11-May-2018,000007356920255,Amazon UK Marketplace,5942,Books-school library,32.27,0.00,32.27
Children and Young Peoples Services,Head of Childrens Social Care,085334,West Rainton Satelite Home,Supplies and Services,324117,Provisions E324,11-May-2018,000007356920259,TESCO STORES 2371,5411,Catering costs - provisions,24.76,0.00,24.76
Regeneration and Local Services,Direct Services,010367,C&G - South Grounds Maintenance,Supplies and Services,304259,Equipment and Materials,11-May-2018,000007356920265,SCREWFIX,5211,Equipment-purchase and rental,39.46,6.58,32.88
Children and Young Peoples Services,Head of Childrens Social Care,085341,High Etherley Satelite Home,Supplies and Services,384871,Miscellaneous Expenses,11-May-2018,000007356920275,WWW.TICKETLINE.CO.UK,7922,Training-other activities,22.00,0.00,22.00
Regeneration and Local Services,Economic Development and Housing,030737,Durham Works Flexible Fund,Transport,235057,Public Transport,11-May-2018,000007356920295,ARRIVA NORTH EAST,4131,Staff travelling,25.00,0.00,25.00
Regeneration and Local Services,Economic Development and Housing,030737,Durham Works Flexible Fund,Transport,235057,Public Transport,11-May-2018,000007356920297,ARRIVA NORTH EAST,4131,Staff travelling,25.00,0.00,25.00
Children and Young Peoples Services,"Head of Early Help, Inclusion and Vulnerable Children",085956,Lumley,Supplies and Services,324117,Provisions E324,11-May-2018,000007356920305,TESCO STORES 6329,5411,Catering costs - provisions,87.42,0.00,87.42
Children and Young Peoples Services,"Head of Early Help, Inclusion and Vulnerable Children",085965,Barnard,Supplies and Services,328041,Clothing uniforms and laundry E328,11-May-2018,000007356920307,FOOTASYLUM PLC,5941,Clothing uniforms and laundry,-42.49,0.00,-42.49
Regeneration and Local Services,Culture & Sport,054813,Gala Theatre - Technical,Supplies and Services,304221,Equipment and Materials,11-May-2018,000007356920313,SECURE.BECTU.ORG,6300,Direct materials,120.00,0.00,120.00
Regeneration and Local Services,Culture & Sport,011060,Hardwick Park Catering,Supplies and Services,324117,Provisions E324,11-May-2018,000007356920329,HOPWELLS LTD,5811,Catering costs - provisions,580.56,96.76,483.80
Regeneration and Local Services,Culture & Sport,011060,Hardwick Park Catering,Supplies and Services,324117,Provisions E324,11-May-2018,000007356920329 - 1,HOPWELLS LTD,5811,Catering costs - provisions,88.22,,88.22
Regeneration and Local Services,Culture & Sport,011060,Hardwick Park Catering,Supplies and Services,324117,Provisions E324,11-May-2018,000007356920331,HOPWELLS LTD,5811,Catering costs - provisions,216.18,36.03,180.15
Regeneration and Local Services,Culture & Sport,011060,Hardwick Park Catering,Supplies and Services,324117,Provisions E324,11-May-2018,000007356920331 - 1,HOPWELLS LTD,5811,Catering costs - provisions,77.37,,77.37
Regeneration and Local Services,Culture & Sport,011060,Hardwick Park Catering,Supplies and Services,324117,Provisions E324,11-May-2018,000007356920335,HOPWELLS LTD,5811,Catering costs - provisions,127.50,21.25,106.25
Regeneration and Local Services,Culture & Sport,011060,Hardwick Park Catering,Supplies and Services,324117,Provisions E324,11-May-2018,000007356920335 - 1,HOPWELLS LTD,5811,Catering costs - provisions,42.07,,42.07
Regeneration and Local Services,Culture & Sport,011060,Hardwick Park Catering,Supplies and Services,324117,Provisions E324,11-May-2018,000007356920339,HOPWELLS LTD,5811,Catering costs - provisions,99.72,16.62,83.10
Regeneration and Local Services,Culture & Sport,011060,Hardwick Park Catering,Supplies and Services,324117,Provisions E324,11-May-2018,000007356920339 - 1,HOPWELLS LTD,5811,Catering costs - provisions,68.11,,68.11
Regeneration and Local Services,Culture & Sport,011060,Hardwick Park Catering,Supplies and Services,324117,Provisions E324,11-May-2018,000007356920349,HOPWELLS LTD,5811,Catering costs - provisions,-13.08,-2.18,-10.90
Regeneration and Local Services,Culture & Sport,011060,Hardwick Park Catering,Supplies and Services,324117,Provisions E324,11-May-2018,000007356920351,HOPWELLS LTD,5811,Catering costs - provisions,-41.14,-6.85,-34.29
Children and Young Peoples Services,Head of Childrens Social Care,085332,Middlestone Moor CU,Supplies and Services,324117,Provisions E324,11-May-2018,000007356920373,ASDA SUPERSTORE 4987,5411,Catering costs - provisions,95.04,0.00,95.04
Regeneration and Local Services,Direct Services,021234,Catering - Locomotion,Supplies and Services,324117,Provisions E324,11-May-2018,000007356920379,HOPWELLS LTD,5811,Catering costs - provisions,313.98,52.33,261.65
Regeneration and Local Services,Direct Services,021234,Catering - Locomotion,Supplies and Services,324117,Provisions E324,11-May-2018,000007356920379 - 1,HOPWELLS LTD,5811,Catering costs - provisions,150.74,,150.74
Regeneration and Local Services,Direct Services,021234,Catering - Locomotion,Supplies and Services,324117,Provisions E324,11-May-2018,000007356920387,HOPWELLS LTD,5811,Catering costs - provisions,104.88,0.00,104.88
Regeneration and Local Services,Direct Services,010525,Catering - Green Lane,Supplies and Services,324117,Provisions E324,11-May-2018,000007356920395,HOPWELLS LTD,5811,Catering costs - provisions,210.22,0.00,210.22
Resources,Corporate Finance & Commercial Services,069800,Corporate Procurement,Supplies and Services,384999,Miscellaneous Expenses,11-May-2018,000007356920411,Amazon UK Marketplace,5942,Other expenses,8.77,0.00,8.77
Regeneration and Local Services,Direct Services,022921,WRAP Project,Supplies and Services,384999,Miscellaneous Expenses,11-May-2018,000007356920413,AMAZON SVCS EU-UK AMAZ,5942,Other expenses,9.99,0.00,9.99
Resources,Corporate Finance & Commercial Services,069800,Corporate Procurement,Supplies and Services,384999,Miscellaneous Expenses,11-May-2018,000007356920415,AMAZON SVCS EU-UK AMAZ,5942,Other expenses,40.98,0.00,40.98
Regeneration and Local Services,Direct Services,022921,WRAP Project,Supplies and Services,384999,Miscellaneous Expenses,11-May-2018,000007356920417,AMAZON SVCS EU-UK AMAZ,5942,Other expenses,27.70,0.00,27.70
Regeneration and Local Services,Direct Services,022921,WRAP Project,Supplies and Services,384999,Miscellaneous Expenses,11-May-2018,000007356920421,AMAZON SVCS EU-UK AMAZ,5942,Other expenses,52.20,0.00,52.20
Children and Young Peoples Services,Head of Education and Skills,088037,One Point YEI,Supplies and Services,338045,Services,11-May-2018,000007356920427,WORCESTERSHIRE COU,9399,Legal expenses 338045,12.00,0.00,12.00
Children and Young Peoples Services,Head of Childrens Social Care,085332,Middlestone Moor CU,Supplies and Services,324117,Provisions E324,11-May-2018,000007356920437,TESCO STORES 6329,5411,Catering costs - provisions,81.39,0.00,81.39
Children and Young Peoples Services,Head of Childrens Social Care,085333,Coxhoe Satelite Home,Supplies and Services,324117,Provisions E324,11-May-2018,000007356920471,TESCO STORES 2371,5411,Catering costs - provisions,141.37,0.00,141.37
Regeneration and Local Services,Economic Development and Housing,031576,B& B - Temp Accom,Supplies and Services,364320,Grants to Voluntary Organisations,11-May-2018,000007356920507,PREMIER INN,3811,Accommodation assistance,187.50,31.25,156.25
Adult and Health Services,Head of Adults,055643,Hawthorn House LD Respite Unit,Supplies and Services,324117,Provisions E324,11-May-2018,000007356920509,HOPWELLS LTD,5811,Catering costs - provisions,64.97,0.00,64.97
Children and Young Peoples Services,Head of Education and Skills,070264,EDC Premises,Supplies and Services,308011,Furniture,11-May-2018,000007356920527,IKEA LIMITED,5712,Furniture repair and replacement,77.55,0.00,77.55
Regeneration and Local Services,Culture & Sport,054235,Bishop Auckland Town Hall Cafe,Supplies and Services,324117,Provisions E324,11-May-2018,000007356920569,HOPWELLS LTD,5811,Catering costs - provisions,46.72,0.00,46.72
Regeneration and Local Services,Transport and Contracted Services,031701,Care Connect All Localities,Supplies and Services,344033,Telephones,11-May-2018,000007356920571,BT BILL PAYMENT 2,4812,Telephones general-all costs,131.15,0.00,131.15
Regeneration and Local Services,Transport and Contracted Services,031701,Care Connect All Localities,Supplies and Services,344033,Telephones,11-May-2018,000007356920577,BT BILL PAYMENT 2,4812,Telephones general-all costs,131.15,0.00,131.15
Regeneration and Local Services,Direct Services,021324,Catering - Meadowfield,Supplies and Services,324117,Provisions E324,11-May-2018,000007356920579,HOPWELLS LTD,5811,Catering costs - provisions,65.36,0.00,65.36
Regeneration and Local Services,Culture & Sport,054820,Gala Theatre - Overheads,Supplies and Services,384999,Miscellaneous Expenses,11-May-2018,000007356920643,G M PACKAGING (UK) LTD,5046,Other expenses,7.08,1.18,5.90
Regeneration and Local Services,Culture & Sport,054820,Gala Theatre - Overheads,Supplies and Services,324117,Provisions E324,11-May-2018,000007356920645,TESCO STORES 6029,5411,Catering costs - provisions,13.35,0.00,13.35
Resources,Legal & Democratic Services,067910,Democratic Representation,Supplies and Services,372009,Subscriptions E372,11-May-2018,000007356920695,WWW.ICO.GOV.UK,9399,Subscriptions 372009,35.00,0.00,35.00
Resources,Legal & Democratic Services,067910,Democratic Representation,Supplies and Services,372009,Subscriptions E372,11-May-2018,000007356920697,WWW.ICO.GOV.UK,9399,Subscriptions 372009,35.00,0.00,35.00
Resources,Legal & Democratic Services,067910,Democratic Representation,Supplies and Services,372009,Subscriptions E372,11-May-2018,000007356920699,WWW.ICO.GOV.UK,9399,Subscriptions 372009,35.00,0.00,35.00
Regeneration and Local Services,Direct Services,021235,Catering - Wharton Park,Supplies and Services,324117,Provisions E324,11-May-2018,000007356920733,HOPWELLS LTD,5811,Catering costs - provisions,237.66,39.61,198.05
Regeneration and Local Services,Direct Services,021235,Catering - Wharton Park,Supplies and Services,324117,Provisions E324,11-May-2018,000007356920733 - 1,HOPWELLS LTD,5811,Catering costs - provisions,117.34,,117.34
Regeneration and Local Services,Direct Services,021235,Catering - Wharton Park,Supplies and Services,324117,Provisions E324,11-May-2018,000007356920737,HOPWELLS LTD,5811,Catering costs - provisions,133.80,22.30,111.50
Regeneration and Local Services,Direct Services,021235,Catering - Wharton Park,Supplies and Services,324117,Provisions E324,11-May-2018,000007356920737 - 1,HOPWELLS LTD,5811,Catering costs - provisions,15.01,,15.01
Regeneration and Local Services,Direct Services,021235,Catering - Wharton Park,Supplies and Services,324117,Provisions E324,11-May-2018,000007356920741,HOPWELLS LTD,5811,Catering costs - provisions,75.48,12.58,62.90
Regeneration and Local Services,Direct Services,021235,Catering - Wharton Park,Supplies and Services,324117,Provisions E324,11-May-2018,000007356920741 - 1,HOPWELLS LTD,5811,Catering costs - provisions,0.03,,0.03
Regeneration and Local Services,Direct Services,021235,Catering - Wharton Park,Supplies and Services,324117,Provisions E324,11-May-2018,000007356920747,HOPWELLS LTD,5811,Catering costs - provisions,-19.26,-3.21,-16.05
Children and Young Peoples Services,Head of Childrens Social Care,085801,CDYOS - Support,Supplies and Services,324117,Provisions E324,11-May-2018,000007356920765,ASDA SUPERSTORE,5411,Catering costs - provisions,15.03,0.00,15.03
Regeneration and Local Services,Direct Services,021242,Catering - County Hall,Supplies and Services,324117,Provisions E324,11-May-2018,000007364319035,BATLEYS PERTH,5300,Catering costs - provisions,585.66,97.61,488.05
Regeneration and Local Services,Direct Services,021242,Catering - County Hall,Supplies and Services,324117,Provisions E324,11-May-2018,000007364319035 - 1,BATLEYS PERTH,5300,Catering costs - provisions,309.25,,309.25
Children and Young Peoples Services,Head of Education and Skills,071903,EYDCP-Sustainability EDS,Supplies and Services,312011,Newspapers books and periodicals E312,11-May-2018,000007364319189,Amazon UK Marketplace,5942,Books-school library,98.25,0.00,98.25
Regeneration and Local Services,Culture & Sport,054813,Gala Theatre - Technical,Supplies and Services,312011,Newspapers books and periodicals E312,11-May-2018,000007364319223,Amazon UK Marketplace,5942,Books-school library,130.85,0.00,130.85
Regeneration and Local Services,Culture & Sport,054813,Gala Theatre - Technical,Supplies and Services,312011,Newspapers books and periodicals E312,11-May-2018,000007364319227,Amazon UK Marketplace,5942,Books-school library,13.84,0.00,13.84
Regeneration and Local Services,Culture & Sport,011060,Hardwick Park Catering,Supplies and Services,324117,Provisions E324,11-May-2018,000007364319259,BATLEYS PERTH,5300,Catering costs - provisions,136.20,22.70,113.50
Regeneration and Local Services,Culture & Sport,011060,Hardwick Park Catering,Supplies and Services,324117,Provisions E324,11-May-2018,000007364319259 - 1,BATLEYS PERTH,5300,Catering costs - provisions,132.28,,132.28
Regeneration and Local Services,Direct Services,010525,Catering - Green Lane,Supplies and Services,324117,Provisions E324,11-May-2018,000007364319307,BATLEYS PERTH,5300,Catering costs - provisions,169.38,28.23,141.15
Regeneration and Local Services,Direct Services,010525,Catering - Green Lane,Supplies and Services,324117,Provisions E324,11-May-2018,000007364319307 - 1,BATLEYS PERTH,5300,Catering costs - provisions,76.56,,76.56
Adult and Health Services,Head of Adults,055643,Hawthorn House LD Respite Unit,Supplies and Services,324117,Provisions E324,11-May-2018,000007364319455,BATLEYS PERTH,5300,Catering costs - provisions,17.76,2.96,14.80
Adult and Health Services,Head of Adults,055643,Hawthorn House LD Respite Unit,Supplies and Services,324117,Provisions E324,11-May-2018,000007364319455 - 1,BATLEYS PERTH,5300,Catering costs - provisions,67.01,,67.01
Adult and Health Services,Head of Adults,055643,Hawthorn House LD Respite Unit,Supplies and Services,324117,Provisions E324,11-May-2018,000007364319459,BATLEYS PERTH,5300,Catering costs - provisions,22.46,3.74,18.72
Resources,Digital and Customer Services,069010,Administration,Supplies and Services,312011,Newspapers books and periodicals E312,11-May-2018,000007364319685,Amazon UK Marketplace,5942,Books-school library,6.98,0.00,6.98
Regeneration and Local Services,Spatial Policy Planning Assets & Environment,031200,North Pennines Core,Supplies and Services,312011,Newspapers books and periodicals E312,11-May-2018,000007364319749,Amazon UK Marketplace,5942,Books-school library,39.49,0.00,39.49
Children and Young Peoples Services,"Head of Early Help, Inclusion and Vulnerable Children",085954,Walworth,Supplies and Services,304649,Equipment and Materials,11-May-2018,000007419664651,ARGOS RETAIL GROUP,5310,Toys,64.97,0.00,64.97
Children and Young Peoples Services,Head of Childrens Social Care,085341,High Etherley Satelite Home,Supplies and Services,324117,Provisions E324,12-May-2018,000007356920059,TESCO STORES 6329,5411,Catering costs - provisions,20.75,0.00,20.75
Children and Young Peoples Services,Head of Childrens Social Care,085341,High Etherley Satelite Home,Transport,215995,Running Costs of Vehicles,12-May-2018,000007356920061,TESCO PFS 4214,5541,Vehicle running expenses,51.04,0.00,51.04
Children and Young Peoples Services,Head of Childrens Social Care,085341,High Etherley Satelite Home,Supplies and Services,312011,Newspapers books and periodicals E312,12-May-2018,000007356920065,WATERSTONES,5942,Books-school library,3.40,0.00,3.40
Regeneration and Local Services,Economic Development and Housing,031576,B& B - Temp Accom,Transport,235073,Public Transport,12-May-2018,000007356920247,STAGECOACH SERVICE,4131,Travel-clients/students/children,12.50,0.00,12.50
Children and Young Peoples Services,"Head of Early Help, Inclusion and Vulnerable Children",085954,Walworth,Supplies and Services,324117,Provisions E324,12-May-2018,000007356920309,TESCO STORES 6329,5411,Catering costs - provisions,70.54,0.00,70.54
Regeneration and Local Services,Culture & Sport,054820,Gala Theatre - Overheads,Supplies and Services,324117,Provisions E324,12-May-2018,000007356920647,TESCO STORES 6029,5411,Catering costs - provisions,42.20,0.00,42.20
Regeneration and Local Services,Culture & Sport,054813,Gala Theatre - Technical,Supplies and Services,312011,Newspapers books and periodicals E312,13-May-2018,000007356920315,Amazon UK Marketplace,5942,Books-school library,49.00,0.00,49.00
Regeneration and Local Services,Culture & Sport,054813,Gala Theatre - Technical,Supplies and Services,312011,Newspapers books and periodicals E312,13-May-2018,000007356920319,Amazon UK Marketplace,5942,Books-school library,16.99,0.00,16.99
Regeneration and Local Services,Culture & Sport,054813,Gala Theatre - Technical,Supplies and Services,312011,Newspapers books and periodicals E312,13-May-2018,000007356920321,Amazon UK Marketplace,5942,Books-school library,8.99,0.00,8.99
Children and Young Peoples Services,Head of Childrens Social Care,085342,9 Cedar Drive Aycliffe,Supplies and Services,328041,Clothing uniforms and laundry E328,13-May-2018,000007356920483,W BOYES & CO LTD NEWTO,5310,Clothing uniforms and laundry,1.50,0.00,1.50
Children and Young Peoples Services,Head of Childrens Social Care,085342,9 Cedar Drive Aycliffe,Supplies and Services,324117,Provisions E324,13-May-2018,000007356920485,TESCO STORES 2916,5411,Catering costs - provisions,3.00,0.00,3.00
Children and Young Peoples Services,Head of Childrens Social Care,085342,9 Cedar Drive Aycliffe,Supplies and Services,304999,Equipment and Materials,13-May-2018,000007356920489,SAVERS HEALTH & BEAUTY,5912,Misc equipment tools and materials,10.37,0.00,10.37
Dedicated Schools Grant,DSG High Needs Block,079095,Children In Public Care - Revenue,Supplies and Services,312011,Newspapers books and periodicals E312,13-May-2018,000007356920547,Amazon EU,5969,Books-school library,22.96,3.83,19.13
Resources,Digital and Customer Services,069010,Administration,Supplies and Services,340001,Postages E340,13-May-2018,000007356920703,Amazon UK Marketplace,5942,Postages,9.99,0.00,9.99
Resources,Digital and Customer Services,069010,Administration,Supplies and Services,340001,Postages E340,13-May-2018,000007356920705,Amazon UK Marketplace,5942,Postages,42.51,0.00,42.51
Resources,Digital and Customer Services,069010,Administration,Supplies and Services,340001,Postages E340,13-May-2018,000007356920707,Amazon UK Marketplace,5942,Postages,19.99,0.00,19.99
Resources,Digital and Customer Services,069010,Administration,Supplies and Services,340001,Postages E340,13-May-2018,000007356920709,Amazon UK Marketplace,5942,Postages,19.99,0.00,19.99
Resources,Resources Management,069000,Resources Management,Supplies and Services,324117,Provisions E324,13-May-2018,000007368076295,CO-OP GROUP 310016,5411,Catering costs - provisions,10.90,0.00,10.90
Regeneration and Local Services,Culture & Sport,054813,Gala Theatre - Technical,Supplies and Services,304259,Equipment and Materials,13-May-2018,000007401383419,SCREWFIX DIRECT,5211,Equipment-purchase and rental,24.56,0.00,24.56
Children and Young Peoples Services,Head of Childrens Social Care,085342,9 Cedar Drive Aycliffe,Supplies and Services,328041,Clothing uniforms and laundry E328,13-May-2018,000007401383669,POUNDWORLD,5310,Clothing uniforms and laundry,6.00,0.00,6.00
Regeneration and Local Services,Culture & Sport,054813,Gala Theatre - Technical,Supplies and Services,312011,Newspapers books and periodicals E312,14-May-2018,000007356920323,Amazon UK Marketplace,5942,Books-school library,12.49,0.00,12.49
Children and Young Peoples Services,Head of Education and Skills,071801,Selby Cottage Childcare Centre,Supplies and Services,324117,Provisions E324,14-May-2018,000007364318921,TESCO STORES 2278,5411,Catering costs - provisions,38.51,0.00,38.51
Regeneration and Local Services,Economic Development and Housing,030699,Business Growth and Innovation General,Supplies and Services,304999,Equipment and Materials,14-May-2018,000007364318989,MAILCHIMP MISC,5968,Misc equipment tools and materials,1.48,0.00,1.48
Children and Young Peoples Services,"Head of Early Help, Inclusion and Vulnerable Children",088105,BA/BC/Crook 0-19 Community Family Hub,Supplies and Services,304335,Equipment and Materials,14-May-2018,000007364319013,Amazon EU,5969,ICT supplies etc,75.25,0.00,75.25
Regeneration and Local Services,Direct Services,021242,Catering - County Hall,Supplies and Services,324117,Provisions E324,14-May-2018,000007364319017,WWW.ADELIEFOODS.CO.UK,5499,Catering costs - provisions,191.59,0.00,191.59
Regeneration and Local Services,Direct Services,021242,Catering - County Hall,Supplies and Services,324117,Provisions E324,14-May-2018,000007364319021,WWW.ADELIEFOODS.CO.UK,5499,Catering costs - provisions,172.20,0.00,172.20
Regeneration and Local Services,Direct Services,021242,Catering - County Hall,Supplies and Services,324117,Provisions E324,14-May-2018,000007364319025,WWW.ADELIEFOODS.CO.UK,5499,Catering costs - provisions,123.43,0.00,123.43
Regeneration and Local Services,Direct Services,021242,Catering - County Hall,Supplies and Services,324117,Provisions E324,14-May-2018,000007364319027,WWW.ADELIEFOODS.CO.UK,5499,Catering costs - provisions,72.78,0.00,72.78
Regeneration and Local Services,Direct Services,021242,Catering - County Hall,Supplies and Services,324117,Provisions E324,14-May-2018,000007364319031,FREEMAN CATERING BUTCH,5422,Catering costs - provisions,203.78,0.00,203.78
Regeneration and Local Services,Direct Services,021242,Catering - County Hall,Supplies and Services,324117,Provisions E324,14-May-2018,000007364319033,FREEMAN CATERING BUTCH,5422,Catering costs - provisions,16.73,0.00,16.73
Children and Young Peoples Services,Head of Childrens Social Care,085361,LAC & Permanence Team 1,Supplies and Services,384999,Miscellaneous Expenses,14-May-2018,000007364319077,HM PASSPORT OFFICE,9399,Other expenses,49.00,0.00,49.00
Children and Young Peoples Services,Head of Childrens Social Care,085333,Coxhoe Satelite Home,Supplies and Services,304999,Equipment and Materials,14-May-2018,000007364319081,NORTON AP1256977992,5968,Misc equipment tools and materials,79.99,0.00,79.99
Regeneration and Local Services,Economic Development and Housing,030749,Employability - Youth Contract,Transport,235057,Public Transport,14-May-2018,000007364319103,ARRIVA NORTH EAST,4131,Staff travelling,6.50,0.00,6.50
Regeneration and Local Services,Economic Development and Housing,030749,Employability - Youth Contract,Transport,235057,Public Transport,14-May-2018,000007364319107,ARRIVA NORTH EAST,4131,Staff travelling,6.50,0.00,6.50
Regeneration and Local Services,Economic Development and Housing,030749,Employability - Youth Contract,Transport,235057,Public Transport,14-May-2018,000007364319111,GO NORTH EAST LIMITED,4131,Staff travelling,6.50,0.00,6.50
Regeneration and Local Services,Economic Development and Housing,030749,Employability - Youth Contract,Transport,235057,Public Transport,14-May-2018,000007364319113,GO NORTH EAST LIMITED,4131,Staff travelling,6.50,0.00,6.50
Children and Young Peoples Services,Head of Education and Skills,071732,Dean Bank Childcare,Supplies and Services,312011,Newspapers books and periodicals E312,14-May-2018,000007364319141,Amazon UK Marketplace,5942,Books-school library,22.97,0.00,22.97
Children and Young Peoples Services,Head of Education and Skills,071732,Dean Bank Childcare,Supplies and Services,324117,Provisions E324,14-May-2018,000007364319145,SAINSBURYS SACAT (2303,5411,Catering costs - provisions,23.20,0.00,23.20
Children and Young Peoples Services,Head of Education and Skills,071732,Dean Bank Childcare,Supplies and Services,324117,Provisions E324,14-May-2018,000007364319149,ASDA GROCERIES ONLINE,5411,Catering costs - provisions,53.36,0.00,53.36
Regeneration and Local Services,Culture & Sport,011223,Operations Locality 1,Supplies and Services,340001,Postages E340,14-May-2018,000007364319155,POST OFFICE COUNTER,9402,Postages,11.00,0.00,11.00
Children and Young Peoples Services,"Head of Early Help, Inclusion and Vulnerable Children",085952,Secure Education,Supplies and Services,324117,Provisions E324,14-May-2018,000007364319217,TESCO STORES 6329,5411,Catering costs - provisions,182.15,0.00,182.15
Children and Young Peoples Services,"Head of Early Help, Inclusion and Vulnerable Children",085954,Walworth,Supplies and Services,328041,Clothing uniforms and laundry E328,14-May-2018,000007364319219,WWW.ASOS.COM,5651,Clothing uniforms and laundry,-74.50,0.00,-74.50
Regeneration and Local Services,Culture & Sport,054813,Gala Theatre - Technical,Supplies and Services,312011,Newspapers books and periodicals E312,14-May-2018,000007364319221,Amazon UK Marketplace,5942,Books-school library,37.00,0.00,37.00
Regeneration and Local Services,Culture & Sport,054813,Gala Theatre - Technical,Supplies and Services,312011,Newspapers books and periodicals E312,14-May-2018,000007364319229,Amazon UK Marketplace,5942,Books-school library,2.49,0.00,2.49
Regeneration and Local Services,Culture & Sport,054813,Gala Theatre - Technical,Supplies and Services,312011,Newspapers books and periodicals E312,14-May-2018,000007364319233,Amazon UK Marketplace,5942,Books-school library,22.97,0.00,22.97
Regeneration and Local Services,Culture & Sport,054813,Gala Theatre - Technical,Supplies and Services,312011,Newspapers books and periodicals E312,14-May-2018,000007364319235,Amazon UK Marketplace,5942,Books-school library,7.99,0.00,7.99
Regeneration and Local Services,Culture & Sport,054813,Gala Theatre - Technical,Supplies and Services,312011,Newspapers books and periodicals E312,14-May-2018,000007364319237,Amazon UK Marketplace,5942,Books-school library,52.95,0.00,52.95
Regeneration and Local Services,Culture & Sport,054813,Gala Theatre - Technical,Supplies and Services,312011,Newspapers books and periodicals E312,14-May-2018,000007364319241,Amazon UK Marketplace,5942,Books-school library,58.09,0.00,58.09
Regeneration and Local Services,Culture & Sport,054813,Gala Theatre - Technical,Supplies and Services,384999,Miscellaneous Expenses,14-May-2018,000007364319245,PALLET TRUCK DEPOT,5046,Other expenses,261.60,0.00,261.60
Regeneration and Local Services,Culture & Sport,011060,Hardwick Park Catering,Supplies and Services,324117,Provisions E324,14-May-2018,000007364319253,FREEMAN CATERING BUTCH,5422,Catering costs - provisions,72.16,0.00,72.16
Regeneration and Local Services,Culture & Sport,011060,Hardwick Park Catering,Supplies and Services,324117,Provisions E324,14-May-2018,000007364319255,FREEMAN CATERING BUTCH,5422,Catering costs - provisions,37.30,0.00,37.30
Regeneration and Local Services,Culture & Sport,011060,Hardwick Park Catering,Supplies and Services,324117,Provisions E324,14-May-2018,000007364319257,FREEMAN CATERING BUTCH,5422,Catering costs - provisions,34.25,0.00,34.25
Children and Young Peoples Services,Head of Childrens Social Care,085332,Middlestone Moor CU,Supplies and Services,304245,Equipment and Materials,14-May-2018,000007364319267,B & Q 1120,5211,Materials,90.00,0.00,90.00
Regeneration and Local Services,Direct Services,021234,Catering - Locomotion,Supplies and Services,324117,Provisions E324,14-May-2018,000007364319271,WWW.ADELIEFOODS.CO.UK,5499,Catering costs - provisions,82.66,0.00,82.66
Regeneration and Local Services,Direct Services,021234,Catering - Locomotion,Supplies and Services,324117,Provisions E324,14-May-2018,000007364319273,WWW.ADELIEFOODS.CO.UK,5499,Catering costs - provisions,65.36,0.00,65.36
Regeneration and Local Services,Direct Services,021234,Catering - Locomotion,Supplies and Services,324117,Provisions E324,14-May-2018,000007364319277,WWW.ADELIEFOODS.CO.UK,5499,Catering costs - provisions,44.11,0.00,44.11
Regeneration and Local Services,Direct Services,021234,Catering - Locomotion,Supplies and Services,324117,Provisions E324,14-May-2018,000007364319279,FREEMAN CATERING BUTCH,5422,Catering costs - provisions,87.28,0.00,87.28
Regeneration and Local Services,Direct Services,010525,Catering - Green Lane,Supplies and Services,324117,Provisions E324,14-May-2018,000007364319301,WWW.ADELIEFOODS.CO.UK,5499,Catering costs - provisions,42.75,0.00,42.75
Regeneration and Local Services,Direct Services,010525,Catering - Green Lane,Supplies and Services,324117,Provisions E324,14-May-2018,000007364319305,WWW.ADELIEFOODS.CO.UK,5499,Catering costs - provisions,34.00,0.00,34.00
Regeneration and Local Services,Direct Services,022921,WRAP Project,Supplies and Services,384999,Miscellaneous Expenses,14-May-2018,000007364319315,AMAZON SVCS EU-UK AMAZ,5942,Other expenses,18.56,3.09,15.47
Adult and Health Services,Head of Adults,055301,Stanley Pathways,Supplies and Services,324117,Provisions E324,14-May-2018,000007364319405,ASDA SUPERSTORE,5411,Catering costs - provisions,4.11,0.00,4.11
Adult and Health Services,Head of Adults,055643,Hawthorn House LD Respite Unit,Supplies and Services,324117,Provisions E324,14-May-2018,000007364319451,FREEMAN CATERING BUTCH,5422,Catering costs - provisions,32.49,0.00,32.49
Regeneration and Local Services,Direct Services,010301,C&G - North Grounds Maintenance,Supplies and Services,328041,Clothing uniforms and laundry E328,14-May-2018,000007364319489,THOMAS OWEN & SONS /N/,5611,Clothing uniforms and laundry,102.72,17.12,85.60
Children and Young Peoples Services,"Head of Early Help, Inclusion and Vulnerable Children",074000,TTF-Attachment and Results,Supplies and Services,324117,Provisions E324,14-May-2018,000007364319495,ASDA GEORGE COM LEEDS,5411,Catering costs - provisions,149.95,24.99,124.96
Resources,Legal & Democratic Services,067910,Democratic Representation,Supplies and Services,364320,Grants to Voluntary Organisations,14-May-2018,000007364319507,IMPERIAL LONDON HOTELS,7011,Accommodation assistance,270.00,0.00,270.00
Dedicated Schools Grant,DSG High Needs Block,079095,Children In Public Care - Revenue,Supplies and Services,312011,Newspapers books and periodicals E312,14-May-2018,000007364319513,Amazon UK Marketplace,5942,Books-school library,12.48,0.00,12.48
Regeneration and Local Services,Culture & Sport,026591,Hardwick Park,Supplies and Services,304245,Equipment and Materials,14-May-2018,000007364319533,SCREWFIX DIRECT LT,5211,Materials,3.99,0.67,3.32
Regeneration and Local Services,Direct Services,021324,Catering - Meadowfield,Supplies and Services,324117,Provisions E324,14-May-2018,000007364319539,FREEMAN CATERING BUTCH,5422,Catering costs - provisions,79.18,0.00,79.18
Regeneration and Local Services,EnvironmentHealth & Consumer Protection,010809,Env HealthConsumer Protection Manag,Third Party Payments 4THIRD,430100,Rendered by Private Contractors,14-May-2018,000007364319543,EB CHANGING HYDROLOGY,7399,Payments to sub-contractors,20.00,0.00,20.00
Regeneration and Local Services,EnvironmentHealth & Consumer Protection,010809,Env HealthConsumer Protection Manag,Third Party Payments 4THIRD,430100,Rendered by Private Contractors,14-May-2018,000007364319547,EB CHANGING HYDROLOGY,7399,Payments to sub-contractors,20.00,0.00,20.00
Regeneration and Local Services,Direct Services,010301,C&G - North Grounds Maintenance,Supplies and Services,304221,Equipment and Materials,14-May-2018,000007364319563,GUSTHARTS CHAINSAW CTR,7699,Direct materials,57.86,0.00,57.86
Regeneration and Local Services,Culture & Sport,010593,Shildon Leisure Centre - General,Employees,040149,Recruitment Instruction and Training,14-May-2018,000007364319629,WWW.FILMBANK.CO.UK,7829,Training-all costs,99.60,16.60,83.00
Resources,Digital and Customer Services,069010,Administration,Supplies and Services,340001,Postages E340,14-May-2018,000007364319677,Amazon UK Marketplace,5942,Postages,17.68,0.00,17.68
Resources,Digital and Customer Services,069010,Administration,Supplies and Services,340001,Postages E340,14-May-2018,000007364319681,Amazon UK Marketplace,5942,Postages,2.15,0.00,2.15
Resources,Digital and Customer Services,069010,Administration,Supplies and Services,340001,Postages E340,14-May-2018,000007364319687,Amazon UK Marketplace,5942,Postages,9.18,0.00,9.18
Adult and Health Services,Head of Adults,056601,Substance Misuse,Supplies and Services,312011,Newspapers books and periodicals E312,14-May-2018,000007364319691,Amazon EU,5969,Books-school library,72.52,0.00,72.52
Regeneration and Local Services,Economic Development and Housing,030749,Employability - Youth Contract,Transport,235057,Public Transport,14-May-2018,000007364319771,ARRIVA NORTH EAST,4131,Staff travelling,7.00,0.00,7.00
Regeneration and Local Services,Economic Development and Housing,030699,Business Growth and Innovation General,Supplies and Services,342033,Computers and Communications,14-May-2018,000007368075935,WATCHFULPAYPAL,7379,Computer hardware,14.76,0.00,14.76
Regeneration and Local Services,Culture & Sport,054812,Gala Theatre - Catering etc,Supplies and Services,324117,Provisions E324,14-May-2018,000007368076027,BATLEYS PERTH,5300,Catering costs - provisions,178.80,29.80,149.00
Regeneration and Local Services,Culture & Sport,054812,Gala Theatre - Catering etc,Supplies and Services,324117,Provisions E324,14-May-2018,000007368076027 - 1,BATLEYS PERTH,5300,Catering costs - provisions,104.57,,104.57
Regeneration and Local Services,Economic Development and Housing,031576,B& B - Temp Accom,Supplies and Services,364320,Grants to Voluntary Organisations,14-May-2018,000007368076035,PREMIER INN,3811,Accommodation assistance,73.00,12.17,60.83
Regeneration and Local Services,Economic Development and Housing,031576,B& B - Temp Accom,Supplies and Services,364320,Grants to Voluntary Organisations,14-May-2018,000007368076039,PREMIER INN,3811,Accommodation assistance,490.00,81.67,408.33
Regeneration and Local Services,Economic Development and Housing,031576,B& B - Temp Accom,Supplies and Services,364320,Grants to Voluntary Organisations,14-May-2018,000007368076041,PREMIER INN,3811,Accommodation assistance,146.00,24.33,121.67
Children and Young Peoples Services,Head of Childrens Social Care,085334,West Rainton Satelite Home,Supplies and Services,308011,Furniture,14-May-2018,000007368076109,IKEA LIMITED,5712,Furniture repair and replacement,105.50,0.00,105.50
Children and Young Peoples Services,Head of Education and Skills,071732,Dean Bank Childcare,Supplies and Services,324117,Provisions E324,14-May-2018,000007368076133,CO-OP GROUP 010503,5411,Catering costs - provisions,4.40,0.00,4.40
Adult and Health Services,Head of Adults,055202,Support and Recovery,Supplies and Services,304259,Equipment and Materials,14-May-2018,000007368076157,WILKO DURHAM 426,5722,Equipment-purchase and rental,4.00,0.00,4.00
Children and Young Peoples Services,"Head of Early Help, Inclusion and Vulnerable Children",071441,Bishop Auckland One Point Hub,Supplies and Services,304259,Equipment and Materials,14-May-2018,000007368076251,WILKO RETAIL LIMIT,5722,Equipment-purchase and rental,4.00,0.00,4.00
Resources,Digital and Customer Services,065335,School Services - Implementations,Supplies and Services,304303,Equipment and Materials,14-May-2018,000007368076385,WWW.RICHERSOUNDS.COM,5732,Network for resale,242.99,40.50,202.49
Regeneration and Local Services,EnvironmentHealth & Consumer Protection,010809,Env HealthConsumer Protection Manag,Supplies and Services,372009,Subscriptions E372,14-May-2018,000007368076451,WWW.BROWNFIELDBREIFING,2741,Subscriptions 372009,118.80,19.80,99.00
Regeneration and Local Services,Direct Services,021235,Catering - Wharton Park,Supplies and Services,324117,Provisions E324,14-May-2018,000007368076587,BATLEYS PERTH,5300,Catering costs - provisions,217.14,36.19,180.95
Regeneration and Local Services,Direct Services,021235,Catering - Wharton Park,Supplies and Services,324117,Provisions E324,14-May-2018,000007368076587 - 1,BATLEYS PERTH,5300,Catering costs - provisions,39.34,,39.34
Regeneration and Local Services,Economic Development and Housing,030699,Business Growth and Innovation General,Supplies and Services,304999,Equipment and Materials,15-May-2018,000007364318991,MAILCHIMP MISC,5968,Misc equipment tools and materials,0.04,0.00,0.04
Children and Young Peoples Services,Head of Childrens Social Care,085341,High Etherley Satelite Home,Supplies and Services,324117,Provisions E324,15-May-2018,000007368075851,TESCO STORES 6329,5411,Catering costs - provisions,95.36,0.00,95.36
Children and Young Peoples Services,Head of Education and Skills,071801,Selby Cottage Childcare Centre,Supplies and Services,324117,Provisions E324,15-May-2018,000007368075867,ASDA GROCERIES ONLINE,5411,Catering costs - provisions,5.00,0.00,5.00
Adult and Health Services,Head of Adults,055302,Durham Pathways,Supplies and Services,324117,Provisions E324,15-May-2018,000007368075909,SAINSBURYS SACAT 0776,5411,Catering costs - provisions,5.50,0.00,5.50
Adult and Health Services,Head of Adults,055302,Durham Pathways,Supplies and Services,304259,Equipment and Materials,15-May-2018,000007368075913,WILKO DURHAM 426,5722,Equipment-purchase and rental,2.00,0.00,2.00
Adult and Health Services,Head of Adults,055302,Durham Pathways,Supplies and Services,324117,Provisions E324,15-May-2018,000007368075915,LIDL UK DURHAM,5411,Catering costs - provisions,5.56,0.00,5.56
Children and Young Peoples Services,Head of Childrens Social Care,085342,9 Cedar Drive Aycliffe,Supplies and Services,324117,Provisions E324,15-May-2018,000007368075931,GEORGE BOLAM (FOODS) L,5499,Catering costs - provisions,167.87,0.00,167.87
Regeneration and Local Services,Economic Development and Housing,030699,Business Growth and Innovation General,Supplies and Services,304999,Equipment and Materials,15-May-2018,000007368075937,MOZ,5817,Misc equipment tools and materials,73.11,0.00,73.11
Regeneration and Local Services,Economic Development and Housing,030699,Business Growth and Innovation General,Supplies and Services,312011,Newspapers books and periodicals E312,15-May-2018,000007368075941,FASTHOSTS INTERNET,4816,Books-school library,16.78,2.80,13.98
Adult and Health Services,Head of Adults,052720,Mental Health S28A and Central,Income 7SUM,720130,Fees and Charges,15-May-2018,000007368075959,CCBCOFFICE,9222,Fees-legal,100.00,0.00,100.00
Adult and Health Services,Head of Adults,052760,OP Management,Income 7SUM,720130,Fees and Charges,15-May-2018,000007368075963,WWW.MONEYCLAIM.GOV,9399,Fees-legal,105.00,0.00,105.00
Adult and Health Services,Head of Adults,052760,OP Management,Income 7SUM,720130,Fees and Charges,15-May-2018,000007368075965,WWW.MONEYCLAIM.GOV,9399,Fees-legal,60.00,0.00,60.00
Regeneration and Local Services,Direct Services,010367,C&G - South Grounds Maintenance,Supplies and Services,304259,Equipment and Materials,15-May-2018,000007368075985,HORNS GARDEN CENTR,5261,Equipment-purchase and rental,17.99,0.00,17.99
Children and Young Peoples Services,"Head of Early Help, Inclusion and Vulnerable Children",071440,Barnard Castle One Point Hub,Supplies and Services,332047,Printing Stationery and Gen Off Exps,15-May-2018,000007368076001,Amazon UK Marketplace,5942,Stationery,15.96,0.00,15.96
Regeneration and Local Services,Economic Development and Housing,030544,Rural Employability - Client Engagement,Transport,230031,Contract Hire,15-May-2018,000007368076005,ARRIVA NORTH EAST,4131,Pupils-transport to play fields etc,28.00,0.00,28.00
Regeneration and Local Services,Direct Services,021242,Catering - County Hall,Supplies and Services,324117,Provisions E324,15-May-2018,000007368076009,JR HOLLAND FOODSERVICE,5422,Catering costs - provisions,80.67,0.00,80.67
Children and Young Peoples Services,Head of Childrens Social Care,085511,Emergency Duty Team,Supplies and Services,352001,Conference Expenses,15-May-2018,000007368076065,HOTEL 52,7011,Conferencesseminars fees etc,120.00,0.00,120.00
Regeneration and Local Services,Culture & Sport,011217,Commercial Management,Supplies and Services,344033,Telephones,15-May-2018,000007368076087,TEXTANYWHERE LTD,4814,Telephones general-all costs,291.00,48.50,242.50
Regeneration and Local Services,Direct Services,010900,Fleet - Meadowfield Fleet,Transport,215013,Running Costs of Vehicles,15-May-2018,000007368076115,DVLA VEHICLE TAX,9399,Vehicle Excise Duty (VED),122.50,0.00,122.50
Children and Young Peoples Services,Head of Childrens Social Care,085341,High Etherley Satelite Home,Supplies and Services,384871,Miscellaneous Expenses,15-May-2018,000007368076139,SHOWCASE TEESIDE,7832,Training-other activities,28.40,0.00,28.40
Children and Young Peoples Services,Head of Childrens Social Care,085341,High Etherley Satelite Home,Supplies and Services,348037,Subsistence E348,15-May-2018,000007368076141,MCDONALDS,5814,Subsistence,11.67,0.00,11.67
Children and Young Peoples Services,"Head of Early Help, Inclusion and Vulnerable Children",071445,Chester le Street One Point Hub,Supplies and Services,348037,Subsistence E348,15-May-2018,000007368076175,R.O.F. 59,5812,Subsistence,85.00,0.00,85.00
Regeneration and Local Services,Culture & Sport,054813,Gala Theatre - Technical,Supplies and Services,304221,Equipment and Materials,15-May-2018,000007368076179,WWW.SCAFFOLDING-DIRECT,5085,Direct materials,67.92,0.00,67.92
Regeneration and Local Services,Culture & Sport,054815,Gala Theatre Stage School,Supplies and Services,312011,Newspapers books and periodicals E312,15-May-2018,000007368076199,Amazon UK Marketplace,5942,Books-school library,22.19,0.00,22.19
Regeneration and Local Services,Culture & Sport,054815,Gala Theatre Stage School,Supplies and Services,312011,Newspapers books and periodicals E312,15-May-2018,000007368076201,Amazon UK Marketplace,5942,Books-school library,4.09,0.00,4.09
Regeneration and Local Services,Culture & Sport,054819,Gala Theatre - Theatre,Employees,040149,Recruitment Instruction and Training,15-May-2018,000007368076205,SPOTLIGHT,8699,Training-all costs,252.00,0.00,252.00
Regeneration and Local Services,Culture & Sport,054815,Gala Theatre Stage School,Supplies and Services,312011,Newspapers books and periodicals E312,15-May-2018,000007368076207,Amazon UK Marketplace,5942,Books-school library,11.64,0.00,11.64
Children and Young Peoples Services,Head of Childrens Social Care,085332,Middlestone Moor CU,Supplies and Services,324117,Provisions E324,15-May-2018,000007368076223,ALDI 15 774,5411,Catering costs - provisions,31.29,0.00,31.29
Children and Young Peoples Services,"Head of Early Help, Inclusion and Vulnerable Children",085962,Durham,Supplies and Services,324117,Provisions E324,15-May-2018,000007368076229,TESCO STORES 6329,5411,Catering costs - provisions,73.70,0.00,73.70
Children and Young Peoples Services,Head of Childrens Social Care,085352,Tow Law CU,Supplies and Services,324117,Provisions E324,15-May-2018,000007368076243,TESCO STORES 4358,5411,Catering costs - provisions,16.00,0.00,16.00
Children and Young Peoples Services,"Head of Early Help, Inclusion and Vulnerable Children",071441,Bishop Auckland One Point Hub,Premises,145023,Cleaning and Domestic Supplies,15-May-2018,000007368076255,HOME BARGAINS,5251,Cleaning and domestic materials,3.99,0.00,3.99
Children and Young Peoples Services,Head of Childrens Social Care,085333,Coxhoe Satelite Home,Supplies and Services,324117,Provisions E324,15-May-2018,000007368076289,CO-OP GROUP 310016,5411,Catering costs - provisions,25.28,0.00,25.28
Regeneration and Local Services,Economic Development and Housing,030692,Durham Dales Centre - Management and Admin,Supplies and Services,324117,Provisions E324,15-May-2018,000007368076317,JR HOLLAND FOODSERVICE,5422,Catering costs - provisions,26.02,0.00,26.02
Adult and Health Services,Head of Adults,055643,Hawthorn House LD Respite Unit,Supplies and Services,324117,Provisions E324,15-May-2018,000007368076331,JR HOLLAND FOODSERVICE,5422,Catering costs - provisions,23.12,0.00,23.12
Children and Young Peoples Services,Head of Childrens Social Care,085380,Operations Manager Adoption & Fostering,Supplies and Services,324117,Provisions E324,15-May-2018,000007368076359,ASDA STORES,5411,Catering costs - provisions,12.49,0.00,12.49
Children and Young Peoples Services,"Head of Early Help, Inclusion and Vulnerable Children",085956,Lumley,Supplies and Services,328041,Clothing uniforms and laundry E328,15-May-2018,000007368076391,FOOTASYLUM PLC,5941,Clothing uniforms and laundry,109.99,0.00,109.99
Children and Young Peoples Services,"Head of Early Help, Inclusion and Vulnerable Children",085962,Durham,Supplies and Services,328041,Clothing uniforms and laundry E328,15-May-2018,000007368076395,VERY,5964,Clothing uniforms and laundry,128.99,0.00,128.99
Children and Young Peoples Services,"Head of Early Help, Inclusion and Vulnerable Children",085957,Secure Management,Supplies and Services,342033,Computers and Communications,15-May-2018,000007368076399,VERY,5964,Computer hardware,103.99,0.00,103.99
